Payment Date,Transaction number,Non recoverable VAT,Amount,Supplier,Supplier Number,Expense Type,Directorate,Service area
21/08/2023,888350,0,5631.32,22 ST PETERS ROAD HOME,8400008500,ResPlcmts-ProvPayWA,Adults & Health,Bexley Care
21/08/2023,888367,0,8004.68,A S D  UNIQUE SERVICES LLP,8400046000,ResPlcmts-ProvPayWA,Adults & Health,Bexley Care
04/08/2023,888374,0,-2401,ABANTU CARE UK,8400028800,CommServs-ProvPayOP,Adults & Health,Bexley Care
04/08/2023,888375,0,-2401,ABANTU CARE UK,8400028800,CommServs-ProvPayOP,Adults & Health,Bexley Care
04/08/2023,888376,0,-2401,ABANTU CARE UK,8400028800,CommServs-ProvPayOP,Adults & Health,Bexley Care
04/08/2023,888377,0,-2401,ABANTU CARE UK,8400028800,CommServs-ProvPayOP,Adults & Health,Bexley Care
04/08/2023,888378,0,-2401,ABANTU CARE UK,8400028800,CommServs-ProvPayOP,Adults & Health,Bexley Care
04/08/2023,888379,0,-2401,ABANTU CARE UK,8400028800,CommServs-ProvPayOP,Adults & Health,Bexley Care
04/08/2023,888380,0,-2401,ABANTU CARE UK,8400028800,CommServs-ProvPayOP,Adults & Health,Bexley Care
04/08/2023,888381,0,-1372,ABANTU CARE UK,8400028800,CommServs-ProvPayOP,Adults & Health,Bexley Care
04/08/2023,888382,0,716.56,ABANTU CARE UK,8400028800,CommServs-ProvPayWA,Adults & Health,Bexley Care
04/08/2023,888383,0,716.56,ABANTU CARE UK,8400028800,CommServs-ProvPayWA,Adults & Health,Bexley Care
04/08/2023,888384,0,716.56,ABANTU CARE UK,8400028800,CommServs-ProvPayWA,Adults & Health,Bexley Care
04/08/2023,888385,0,716.56,ABANTU CARE UK,8400028800,CommServs-ProvPayOP,Adults & Health,Bexley Care
04/08/2023,888386,0,1202.46,ABANTU CARE UK,8400028800,CommServs-ProvPayWA,Adults & Health,Bexley Care
04/08/2023,888387,0,1372,ABANTU CARE UK,8400028800,CommServs-ProvPayOP,Adults & Health,Bexley Care
04/08/2023,888388,0,1454.32,ABANTU CARE UK,8400028800,CommServs-ProvPayOP,Adults & Health,Bexley Care
04/08/2023,888389,0,1817.9,ABANTU CARE UK,8400028800,CommServs-ProvPayOP,Adults & Health,Bexley Care
04/08/2023,888390,0,2401,ABANTU CARE UK,8400028800,CommServs-ProvPayOP,Adults & Health,Bexley Care
04/08/2023,888391,0,2401,ABANTU CARE UK,8400028800,CommServs-ProvPayOP,Adults & Health,Bexley Care
04/08/2023,888392,0,2401,ABANTU CARE UK,8400028800,CommServs-ProvPayOP,Adults & Health,Bexley Care
04/08/2023,888393,0,2401,ABANTU CARE UK,8400028800,CommServs-ProvPayOP,Adults & Health,Bexley Care
04/08/2023,888394,0,2401,ABANTU CARE UK,8400028800,CommServs-ProvPayOP,Adults & Health,Bexley Care
04/08/2023,888395,0,2401,ABANTU CARE UK,8400028800,CommServs-ProvPayOP,Adults & Health,Bexley Care
04/08/2023,888396,0,2401,ABANTU CARE UK,8400028800,CommServs-ProvPayOP,Adults & Health,Bexley Care
04/08/2023,888397,0,2401,ABANTU CARE UK,8400028800,CommServs-ProvPayOP,Adults & Health,Bexley Care
04/08/2023,888398,0,2507.96,ABANTU CARE UK,8400028800,CommServs-ProvPayOP,Adults & Health,Bexley Care
04/08/2023,888399,0,2507.96,ABANTU CARE UK,8400028800,CommServs-ProvPayOP,Adults & Health,Bexley Care
04/08/2023,888400,0,2507.96,ABANTU CARE UK,8400028800,CommServs-ProvPayOP,Adults & Health,Bexley Care
04/08/2023,888401,0,2507.96,ABANTU CARE UK,8400028800,CommServs-ProvPayWA,Adults & Health,Bexley Care
04/08/2023,888402,0,2507.96,ABANTU CARE UK,8400028800,CommServs-ProvPayWA,Adults & Health,Bexley Care
04/08/2023,888403,0,2507.96,ABANTU CARE UK,8400028800,CommServs-ProvPayWA,Adults & Health,Bexley Care
04/08/2023,888404,0,2507.96,ABANTU CARE UK,8400028800,CommServs-ProvPayWA,Adults & Health,Bexley Care
04/08/2023,888405,0,2545.06,ABANTU CARE UK,8400028800,CommServs-ProvPayOP,Adults & Health,Bexley Care
04/08/2023,888406,0,2545.06,ABANTU CARE UK,8400028800,CommServs-ProvPayOP,Adults & Health,Bexley Care
04/08/2023,888407,0,2545.06,ABANTU CARE UK,8400028800,CommServs-ProvPayOP,Adults & Health,Bexley Care
04/08/2023,888408,0,2545.06,ABANTU CARE UK,8400028800,CommServs-ProvPayOP,Adults & Health,Bexley Care
04/08/2023,888409,0,2545.06,ABANTU CARE UK,8400028800,CommServs-ProvPayOP,Adults & Health,Bexley Care
04/08/2023,888410,0,2545.06,ABANTU CARE UK,8400028800,CommServs-ProvPayOP,Adults & Health,Bexley Care
04/08/2023,888411,0,2545.06,ABANTU CARE UK,8400028800,CommServs-ProvPayOP,Adults & Health,Bexley Care
04/08/2023,888412,0,2545.06,ABANTU CARE UK,8400028800,CommServs-ProvPayOP,Adults & Health,Bexley Care
04/08/2023,888413,0,2545.06,ABANTU CARE UK,8400028800,CommServs-ProvPayOP,Adults & Health,Bexley Care
04/08/2023,888414,0,2545.06,ABANTU CARE UK,8400028800,CommServs-ProvPayOP,Adults & Health,Bexley Care
04/08/2023,888415,0,2545.06,ABANTU CARE UK,8400028800,CommServs-ProvPayOP,Adults & Health,Bexley Care
04/08/2023,888416,0,2545.06,ABANTU CARE UK,8400028800,CommServs-ProvPayWA,Adults & Health,Bexley Care
21/08/2023,888417,0,3808.2,ABANTU HEALTHCARE SL,8400040700,CommServs-ProvPayWA,Adults & Health,Bexley Care
21/08/2023,888418,0,6144,ABANTU HEALTHCARE SL,8400040700,CommServs-ProvPayWA,Adults & Health,Bexley Care
21/08/2023,888419,0,10540,ABANTU HEALTHCARE SL,8400040700,CommServs-ProvPayWA,Adults & Health,Bexley Care
21/08/2023,888420,0,-1811.55,ABBOTTSLEIGH MEWS,8400020100,ResPlcmts-ProvPayOP,Adults & Health,Bexley Care
21/08/2023,888421,0,-1811.55,ABBOTTSLEIGH MEWS,8400020100,ResPlcmts-ProvPayOP,Adults & Health,Bexley Care
21/08/2023,888422,0,-1811.55,ABBOTTSLEIGH MEWS,8400020100,ResPlcmts-ProvPayOP,Adults & Health,Bexley Care
21/08/2023,888423,0,-1811.55,ABBOTTSLEIGH MEWS,8400020100,ResPlcmts-ProvPayOP,Adults & Health,Bexley Care
21/08/2023,888424,0,-1811.55,ABBOTTSLEIGH MEWS,8400020100,ResPlcmts-ProvPayOP,Adults & Health,Bexley Care
21/08/2023,888425,0,-1811.55,ABBOTTSLEIGH MEWS,8400020100,ResPlcmts-ProvPayOP,Adults & Health,Bexley Care
21/08/2023,888426,0,-1811.55,ABBOTTSLEIGH MEWS,8400020100,ResPlcmts-ProvPayOP,Adults & Health,Bexley Care
21/08/2023,888427,0,-1811.55,ABBOTTSLEIGH MEWS,8400020100,ResEmRespPlcmts-ProvPayOP,Adults & Health,Bexley Care
21/08/2023,888428,0,-1359.2,ABBOTTSLEIGH MEWS,8400020100,CRAG income - Nursing,Adults & Health,Bexley Care
21/08/2023,888429,0,-1266.79,ABBOTTSLEIGH MEWS,8400020100,ResEmRespPlcmts-ProvPayOP,Adults & Health,Bexley Care
21/08/2023,888430,0,-1266.79,ABBOTTSLEIGH MEWS,8400020100,ResPlcmts-ProvPayOP,Adults & Health,Bexley Care
21/08/2023,888431,0,-1266.79,ABBOTTSLEIGH MEWS,8400020100,ResPlcmts-ProvPayOP,Adults & Health,Bexley Care
21/08/2023,888432,0,-1122.56,ABBOTTSLEIGH MEWS,8400020100,CRAG income - Nursing,Adults & Health,Bexley Care
21/08/2023,888433,0,-1097.24,ABBOTTSLEIGH MEWS,8400020100,CRAG income - Nursing,Adults & Health,Bexley Care
21/08/2023,888434,0,-963.56,ABBOTTSLEIGH MEWS,8400020100,CRAG income - Nursing,Adults & Health,Bexley Care
21/08/2023,888435,0,-772.76,ABBOTTSLEIGH MEWS,8400020100,CRAG income - Nursing,Adults & Health,Bexley Care
21/08/2023,888436,0,561.43,ABBOTTSLEIGH MEWS,8400020100,ResPlcmts-ProvPayOP,Adults & Health,Bexley Care
21/08/2023,888437,0,627.57,ABBOTTSLEIGH MEWS,8400020100,ResEmRespPlcmts-ProvPayOP,Adults & Health,Bexley Care
21/08/2023,888438,0,935.96,ABBOTTSLEIGH MEWS,8400020100,NurPlcmts-ProvPayOP,Adults & Health,Bexley Care
21/08/2023,888439,0,962.51,ABBOTTSLEIGH MEWS,8400020100,NurPlcmts-ProvPayOP,Adults & Health,Bexley Care
21/08/2023,888440,0,1266.79,ABBOTTSLEIGH MEWS,8400020100,ResPlcmts-ProvPayOP,Adults & Health,Bexley Care
21/08/2023,888441,0,1266.79,ABBOTTSLEIGH MEWS,8400020100,ResPlcmts-ProvPayOP,Adults & Health,Bexley Care
21/08/2023,888442,0,1308.34,ABBOTTSLEIGH MEWS,8400020100,ResPlcmts-ProvPayOP,Adults & Health,Bexley Care
21/08/2023,888443,0,1351.94,ABBOTTSLEIGH MEWS,8400020100,NurPlcmts-ProvPayOP,Adults & Health,Bexley Care
21/08/2023,888444,0,1509.62,ABBOTTSLEIGH MEWS,8400020100,ResEmRespPlcmts-ProvPayOP,Adults & Health,Bexley Care
21/08/2023,888445,0,1811.55,ABBOTTSLEIGH MEWS,8400020100,ResEmRespPlcmts-ProvPayOP,Adults & Health,Bexley Care
21/08/2023,888446,0,1811.55,ABBOTTSLEIGH MEWS,8400020100,ResPlcmts-ProvPayOP,Adults & Health,Bexley Care
21/08/2023,888447,0,1811.55,ABBOTTSLEIGH MEWS,8400020100,ResPlcmts-ProvPayOP,Adults & Health,Bexley Care
21/08/2023,888448,0,1811.55,ABBOTTSLEIGH MEWS,8400020100,ResPlcmts-ProvPayOP,Adults & Health,Bexley Care
21/08/2023,888449,0,1811.55,ABBOTTSLEIGH MEWS,8400020100,ResPlcmts-ProvPayOP,Adults & Health,Bexley Care
21/08/2023,888450,0,1811.55,ABBOTTSLEIGH MEWS,8400020100,ResPlcmts-ProvPayOP,Adults & Health,Bexley Care
21/08/2023,888451,0,1811.55,ABBOTTSLEIGH MEWS,8400020100,ResPlcmts-ProvPayOP,Adults & Health,Bexley Care
21/08/2023,888452,0,1811.55,ABBOTTSLEIGH MEWS,8400020100,ResPlcmts-ProvPayOP,Adults & Health,Bexley Care
21/08/2023,888453,0,2079.91,ABBOTTSLEIGH MEWS,8400020100,ASC Interim Beds,Adults & Health,Bexley Care
21/08/2023,888454,0,2183.91,ABBOTTSLEIGH MEWS,8400020100,NurPlcmts-ProvPayOP,Adults & Health,Bexley Care
21/08/2023,888455,0,2728.48,ABBOTTSLEIGH MEWS,8400020100,ResPlcmts-ProvPayOP,Adults & Health,Bexley Care
21/08/2023,888456,0,2728.48,ABBOTTSLEIGH MEWS,8400020100,ResPlcmts-ProvPayOP,Adults & Health,Bexley Care
21/08/2023,888457,0,2728.48,ABBOTTSLEIGH MEWS,8400020100,ResPlcmts-ProvPayOP,Adults & Health,Bexley Care
21/08/2023,888458,0,2773.24,ABBOTTSLEIGH MEWS,8400020100,NurPlcmts-ProvPayOP,Adults & Health,Bexley Care
21/08/2023,888459,0,2773.24,ABBOTTSLEIGH MEWS,8400020100,NurPlcmts-ProvPayOP,Adults & Health,Bexley Care
21/08/2023,888460,0,2773.24,ABBOTTSLEIGH MEWS,8400020100,NurPlcmts-ProvPayOP,Adults & Health,Bexley Care
21/08/2023,888461,0,2773.24,ABBOTTSLEIGH MEWS,8400020100,NurPlcmts-ProvPayOP,Adults & Health,Bexley Care
21/08/2023,888462,0,2773.24,ABBOTTSLEIGH MEWS,8400020100,NurPlcmts-ProvPayOP,Adults & Health,Bexley Care
21/08/2023,888463,0,2773.24,ABBOTTSLEIGH MEWS,8400020100,NurPlcmts-ProvPayOP,Adults & Health,Bexley Care
21/08/2023,888464,0,2773.24,ABBOTTSLEIGH MEWS,8400020100,ASC Interim Beds,Adults & Health,Bexley Care
21/08/2023,888465,0,2773.24,ABBOTTSLEIGH MEWS,8400020100,ASC Interim Beds,Adults & Health,Bexley Care
21/08/2023,888466,0,2817.96,ABBOTTSLEIGH MEWS,8400020100,ResPlcmts-ProvPayOP,Adults & Health,Bexley Care
21/08/2023,888467,0,2817.96,ABBOTTSLEIGH MEWS,8400020100,ResPlcmts-ProvPayOP,Adults & Health,Bexley Care
21/08/2023,888468,0,2817.96,ABBOTTSLEIGH MEWS,8400020100,ResPlcmts-ProvPayOP,Adults & Health,Bexley Care
21/08/2023,888469,0,2817.96,ABBOTTSLEIGH MEWS,8400020100,ResPlcmts-ProvPayOP,Adults & Health,Bexley Care
21/08/2023,888470,0,2817.96,ABBOTTSLEIGH MEWS,8400020100,ResPlcmts-ProvPayOP,Adults & Health,Bexley Care
21/08/2023,888471,0,2817.96,ABBOTTSLEIGH MEWS,8400020100,ResPlcmts-ProvPayOP,Adults & Health,Bexley Care
21/08/2023,888472,0,2817.96,ABBOTTSLEIGH MEWS,8400020100,ResPlcmts-ProvPayOP,Adults & Health,Bexley Care
21/08/2023,888473,0,2864.92,ABBOTTSLEIGH MEWS,8400020100,ResPlcmts-ProvPayOP,Adults & Health,Bexley Care
21/08/2023,888474,0,2864.92,ABBOTTSLEIGH MEWS,8400020100,ResPlcmts-ProvPayOP,Adults & Health,Bexley Care
21/08/2023,888475,0,2864.92,ABBOTTSLEIGH MEWS,8400020100,ResPlcmts-ProvPayOP,Adults & Health,Bexley Care
21/08/2023,888476,0,2864.92,ABBOTTSLEIGH MEWS,8400020100,ResPlcmts-ProvPayOP,Adults & Health,Bexley Care
21/08/2023,888477,0,2887.53,ABBOTTSLEIGH MEWS,8400020100,ResEmRespPlcmts-ProvPayOP,Adults & Health,Bexley Care
21/08/2023,888478,0,2911.88,ABBOTTSLEIGH MEWS,8400020100,NurPlcmts-ProvPayOP,Adults & Health,Bexley Care
21/08/2023,888479,0,2911.88,ABBOTTSLEIGH MEWS,8400020100,NurPlcmts-ProvPayOP,Adults & Health,Bexley Care
21/08/2023,888480,0,2911.88,ABBOTTSLEIGH MEWS,8400020100,NurPlcmts-ProvPayOP,Adults & Health,Bexley Care
21/08/2023,888481,0,2911.88,ABBOTTSLEIGH MEWS,8400020100,NurPlcmts-ProvPayOP,Adults & Health,Bexley Care
21/08/2023,888482,0,2911.88,ABBOTTSLEIGH MEWS,8400020100,NurPlcmts-ProvPayOP,Adults & Health,Bexley Care
21/08/2023,888483,0,2911.88,ABBOTTSLEIGH MEWS,8400020100,NurPlcmts-ProvPayOP,Adults & Health,Bexley Care
21/08/2023,888484,0,2911.88,ABBOTTSLEIGH MEWS,8400020100,NurPlcmts-ProvPayOP,Adults & Health,Bexley Care
21/08/2023,888485,0,2911.88,ABBOTTSLEIGH MEWS,8400020100,NurPlcmts-ProvPayOP,Adults & Health,Bexley Care
21/08/2023,888486,0,2911.88,ABBOTTSLEIGH MEWS,8400020100,NurPlcmts-ProvPayOP,Adults & Health,Bexley Care
21/08/2023,888487,0,2911.88,ABBOTTSLEIGH MEWS,8400020100,ASC Interim Beds,Adults & Health,Bexley Care
21/08/2023,888488,0,2958.84,ABBOTTSLEIGH MEWS,8400020100,ResPlcmts-ProvPayOP,Adults & Health,Bexley Care
21/08/2023,888489,0,2958.84,ABBOTTSLEIGH MEWS,8400020100,ResPlcmts-ProvPayOP,Adults & Health,Bexley Care
21/08/2023,888490,0,2958.84,ABBOTTSLEIGH MEWS,8400020100,ResPlcmts-ProvPayOP,Adults & Health,Bexley Care
21/08/2023,888491,0,3850.04,ABBOTTSLEIGH MEWS,8400020100,NurPlcmts-ProvPayOP,Adults & Health,Bexley Care
21/08/2023,888492,0,3850.04,ABBOTTSLEIGH MEWS,8400020100,NurPlcmts-ProvPayOP,Adults & Health,Bexley Care
21/08/2023,888493,0,3850.04,ABBOTTSLEIGH MEWS,8400020100,NurPlcmts-ProvPayOP,Adults & Health,Bexley Care
21/08/2023,888494,0,3850.04,ABBOTTSLEIGH MEWS,8400020100,NurPlcmts-ProvPayOP,Adults & Health,Bexley Care
21/08/2023,888495,0,3850.04,ABBOTTSLEIGH MEWS,8400020100,NurPlcmts-ProvPayOP,Adults & Health,Bexley Care
21/08/2023,888496,0,4042.52,ABBOTTSLEIGH MEWS,8400020100,NurPlcmts-ProvPayOP,Adults & Health,Bexley Care
21/08/2023,888497,0,4042.52,ABBOTTSLEIGH MEWS,8400020100,NurPlcmts-ProvPayOP,Adults & Health,Bexley Care
21/08/2023,888498,0,4042.52,ABBOTTSLEIGH MEWS,8400020100,NurPlcmts-ProvPayOP,Adults & Health,Bexley Care
21/08/2023,888499,0,4042.52,ABBOTTSLEIGH MEWS,8400020100,NurPlcmts-ProvPayOP,Adults & Health,Bexley Care
21/08/2023,888500,0,4042.52,ABBOTTSLEIGH MEWS,8400020100,NurPlcmts-ProvPayOP,Adults & Health,Bexley Care
21/08/2023,888501,0,4042.52,ABBOTTSLEIGH MEWS,8400020100,NurPlcmts-ProvPayOP,Adults & Health,Bexley Care
21/08/2023,888502,0,4042.52,ABBOTTSLEIGH MEWS,8400020100,NurPlcmts-ProvPayOP,Adults & Health,Bexley Care
21/08/2023,888503,0,4042.52,ABBOTTSLEIGH MEWS,8400020100,NurPlcmts-ProvPayOP,Adults & Health,Bexley Care
21/08/2023,888504,0,4042.52,ABBOTTSLEIGH MEWS,8400020100,NurPlcmts-ProvPayOP,Adults & Health,Bexley Care
21/08/2023,888505,0,4042.52,ABBOTTSLEIGH MEWS,8400020100,NurPlcmts-ProvPayOP,Adults & Health,Bexley Care
21/08/2023,888506,0,4042.52,ABBOTTSLEIGH MEWS,8400020100,NurPlcmts-ProvPayOP,Adults & Health,Bexley Care
21/08/2023,888507,0,4429.71,ABBOTTSLEIGH MEWS,8400020100,NurPlcmts-ProvPayOP,Adults & Health,Bexley Care
21/08/2023,888508,0,5040,ABBOTTSLEIGH MEWS,8400020100,ResPlcmts-ProvPayOP,Adults & Health,Bexley Care
21/08/2023,888510,0,942.72,REDACTED PERSONAL DATA,8300105400,CommServs-DirectPayWA,Adults & Health,Bexley Care
21/08/2023,888511,0,942.72,REDACTED PERSONAL DATA,8300105400,CommServs-DirectPayWA,Adults & Health,Bexley Care
21/08/2023,888512,0,942.72,REDACTED PERSONAL DATA,8300105400,CommServs-DirectPayWA,Adults & Health,Bexley Care
04/08/2023,888516,0,4100,ACCESS UK LTD,7600003500,CommServs-ProvPayOP,Adults & Health,Bexley Care
04/08/2023,888517,0,4100,ACCESS UK LTD,7600003500,CommServs-ProvPayOP,Adults & Health,Bexley Care
04/08/2023,888518,0,4100,ACCESS UK LTD,7600003500,CommServs-ProvPayOP,Adults & Health,Bexley Care
02/08/2023,888523,0,11940,ACCORA,7058800,Specialist Equip for Svce Prov,Adults & Health,Bexley Care
10/08/2023,888524,0,4580,ACCORA,7058800,Specialist Equip for Svce Prov,Adults & Health,Bexley Care
24/08/2023,888525,0,4580,ACCORA,7058800,Specialist Equip for Svce Prov,Adults & Health,Bexley Care
29/08/2023,888526,0,4580,ACCORA,7058800,Specialist Equip for Svce Prov,Adults & Health,Bexley Care
31/08/2023,888527,0,3674,ACCORA,7058800,Specialist Equip for Svce Prov,Adults & Health,Bexley Care
31/08/2023,888528,0,4580,ACCORA,7058800,Specialist Equip for Svce Prov,Adults & Health,Bexley Care
21/08/2023,888529,0,8000,ACHIEVE TOGETHER LTD,8400485500,ResPlcmts-ProvPayOP,Adults & Health,Bexley Care
21/08/2023,888533,0,-1532.96,ADELAIDE RCHE/NH,8400025700,CRAG income - Res Em Respite,Adults & Health,Bexley Care
21/08/2023,888534,0,-1263.23,ADELAIDE RCHE/NH,8400025700,NurPlcmts-ProvPayOP,Adults & Health,Bexley Care
21/08/2023,888535,0,-608.96,ADELAIDE RCHE/NH,8400025700,CRAG income - Res Em Respite,Adults & Health,Bexley Care
21/08/2023,888536,0,884.26,ADELAIDE RCHE/NH,8400025700,NurPlcmts-ProvPayOP,Adults & Health,Bexley Care
21/08/2023,888537,0,2021.17,ADELAIDE RCHE/NH,8400025700,ResPlcmts-ProvPayOP,Adults & Health,Bexley Care
21/08/2023,888538,0,2503.28,ADELAIDE RCHE/NH,8400025700,ResPlcmts-ProvPayOP,Adults & Health,Bexley Care
21/08/2023,888539,0,2510.48,ADELAIDE RCHE/NH,8400025700,ResPlcmts-ProvPayOP,Adults & Health,Bexley Care
21/08/2023,888540,0,2510.48,ADELAIDE RCHE/NH,8400025700,ResPlcmts-ProvPayOP,Adults & Health,Bexley Care
21/08/2023,888541,0,2510.48,ADELAIDE RCHE/NH,8400025700,ResPlcmts-ProvPayOP,Adults & Health,Bexley Care
21/08/2023,888542,0,2585.8,ADELAIDE RCHE/NH,8400025700,ResPlcmts-ProvPayOP,Adults & Health,Bexley Care
21/08/2023,888543,0,2585.8,ADELAIDE RCHE/NH,8400025700,ResPlcmts-ProvPayOP,Adults & Health,Bexley Care
21/08/2023,888544,0,2585.8,ADELAIDE RCHE/NH,8400025700,ResPlcmts-ProvPayOP,Adults & Health,Bexley Care
21/08/2023,888545,0,2585.8,ADELAIDE RCHE/NH,8400025700,ResPlcmts-ProvPayOP,Adults & Health,Bexley Care
21/08/2023,888546,0,2585.8,ADELAIDE RCHE/NH,8400025700,ResPlcmts-ProvPayOP,Adults & Health,Bexley Care
21/08/2023,888547,0,2608.6,ADELAIDE RCHE/NH,8400025700,NurPlcmts-ProvPayOP,Adults & Health,Bexley Care
21/08/2023,888548,0,2884,ADELAIDE RCHE/NH,8400025700,ResPlcmts-ProvPayOP,Adults & Health,Bexley Care
21/08/2023,888549,0,3502,ADELAIDE RCHE/NH,8400025700,NurPlcmts-ProvPayOP,Adults & Health,Bexley Care
21/08/2023,888550,0,3502,ADELAIDE RCHE/NH,8400025700,ResPlcmts-ProvPayOP,Adults & Health,Bexley Care
21/08/2023,888551,0,3537.04,ADELAIDE RCHE/NH,8400025700,NurPlcmts-ProvPayOP,Adults & Health,Bexley Care
21/08/2023,888552,0,3537.04,ADELAIDE RCHE/NH,8400025700,NurPlcmts-ProvPayOP,Adults & Health,Bexley Care
21/08/2023,888553,0,3537.04,ADELAIDE RCHE/NH,8400025700,NurPlcmts-ProvPayOP,Adults & Health,Bexley Care
21/08/2023,888554,0,3537.04,ADELAIDE RCHE/NH,8400025700,NurPlcmts-ProvPayOP,Adults & Health,Bexley Care
21/08/2023,888555,0,3537.04,ADELAIDE RCHE/NH,8400025700,NurPlcmts-ProvPayOP,Adults & Health,Bexley Care
21/08/2023,888556,0,3537.04,ADELAIDE RCHE/NH,8400025700,NurPlcmts-ProvPayOP,Adults & Health,Bexley Care
21/08/2023,888557,0,3537.04,ADELAIDE RCHE/NH,8400025700,NurPlcmts-ProvPayOP,Adults & Health,Bexley Care
21/08/2023,888558,0,3537.04,ADELAIDE RCHE/NH,8400025700,NurPlcmts-ProvPayOP,Adults & Health,Bexley Care
21/08/2023,888559,0,3537.04,ADELAIDE RCHE/NH,8400025700,NurPlcmts-ProvPayOP,Adults & Health,Bexley Care
21/08/2023,888560,0,3537.04,ADELAIDE RCHE/NH,8400025700,NurPlcmts-ProvPayOP,Adults & Health,Bexley Care
21/08/2023,888561,0,3537.04,ADELAIDE RCHE/NH,8400025700,NurPlcmts-ProvPayOP,Adults & Health,Bexley Care
21/08/2023,888562,0,3537.04,ADELAIDE RCHE/NH,8400025700,ASC Interim Beds,Adults & Health,Bexley Care
21/08/2023,888563,0,3537.04,ADELAIDE RCHE/NH,8400025700,NurPlcmts-ProvPayOP,Adults & Health,Bexley Care
21/08/2023,888564,0,3537.04,ADELAIDE RCHE/NH,8400025700,NurPlcmts-ProvPayOP,Adults & Health,Bexley Care
21/08/2023,888565,0,3537.04,ADELAIDE RCHE/NH,8400025700,NurPlcmts-ProvPayOP,Adults & Health,Bexley Care
21/08/2023,888566,0,3537.04,ADELAIDE RCHE/NH,8400025700,NurPlcmts-ProvPayOP,Adults & Health,Bexley Care
21/08/2023,888567,0,3537.04,ADELAIDE RCHE/NH,8400025700,ResPlcmts-ProvPayOP,Adults & Health,Bexley Care
21/08/2023,888568,0,3537.04,ADELAIDE RCHE/NH,8400025700,ResPlcmts-ProvPayOP,Adults & Health,Bexley Care
21/08/2023,888569,0,3537.04,ADELAIDE RCHE/NH,8400025700,ResPlcmts-ProvPayOP,Adults & Health,Bexley Care
21/08/2023,888570,0,3537.04,ADELAIDE RCHE/NH,8400025700,ResPlcmts-ProvPayOP,Adults & Health,Bexley Care
21/08/2023,888571,0,3537.04,ADELAIDE RCHE/NH,8400025700,ResPlcmts-ProvPayOP,Adults & Health,Bexley Care
21/08/2023,888572,0,3537.04,ADELAIDE RCHE/NH,8400025700,ResPlcmts-ProvPayOP,Adults & Health,Bexley Care
21/08/2023,888573,0,3537.04,ADELAIDE RCHE/NH,8400025700,ResPlcmts-ProvPayOP,Adults & Health,Bexley Care
21/08/2023,888574,0,3537.04,ADELAIDE RCHE/NH,8400025700,NurPlcmts-ProvPayOP,Adults & Health,Bexley Care
21/08/2023,888575,0,3631.56,ADELAIDE RCHE/NH,8400025700,NurPlcmts-ProvPayOP,Adults & Health,Bexley Care
21/08/2023,888576,0,3631.56,ADELAIDE RCHE/NH,8400025700,NurPlcmts-ProvPayOP,Adults & Health,Bexley Care
21/08/2023,888577,0,3673.96,ADELAIDE RCHE/NH,8400025700,NurPlcmts-ProvPayOP,Adults & Health,Bexley Care
21/08/2023,888578,0,4512,ADELAIDE RCHE/NH,8400025700,NurPlcmts-ProvPayOP,Adults & Health,Bexley Care
21/08/2023,888579,0,4512,ADELAIDE RCHE/NH,8400025700,NurPlcmts-ProvPayOP,Adults & Health,Bexley Care
21/08/2023,888580,0,4512,ADELAIDE RCHE/NH,8400025700,ResPlcmts-ProvPayOP,Adults & Health,Bexley Care
21/08/2023,888581,0,4512,ADELAIDE RCHE/NH,8400025700,ResPlcmts-ProvPayOP,Adults & Health,Bexley Care
21/08/2023,888582,0,5200,ADELAIDE RCHE/NH,8400025700,ResPlcmts-ProvPayOP,Adults & Health,Bexley Care
21/08/2023,888583,0,5200,ADELAIDE RCHE/NH,8400025700,ResPlcmts-ProvPayOP,Adults & Health,Bexley Care
21/08/2023,888584,0,6000,ADELAIDE RCHE/NH,8400025700,NurPlcmts-ProvPayOP,Adults & Health,Bexley Care
21/08/2023,888587,0,826.88,REDACTED PERSONAL DATA,8300029900,CommServs-DirectPayWA,Adults & Health,Bexley Care
21/08/2023,888589,0,1606.96,ADVANCE UK,8400010900,CommServs-ProvPayWA,Adults & Health,Bexley Care
21/08/2023,888590,0,6817.8,ADVANCE UK,8400010900,CommServs-ProvPayWA,Adults & Health,Bexley Care
21/08/2023,888591,0,6958.84,ADVANCE UK,8400010900,CommServs-ProvPayWA,Adults & Health,Bexley Care
21/08/2023,888592,0,7886.24,ADVANCE UK,8400010900,CommServs-ProvPayWA,Adults & Health,Bexley Care
21/08/2023,888593,0,12125.16,ADVANCE UK,8400010900,CommServs-ProvPayWA,Adults & Health,Bexley Care
15/08/2023,888594,0,851.8,ADVOCACY FOR ALL,7178800,DoLS Payments - Paid RPRs,Adults & Health,Bexley Care
21/08/2023,888598,0,612,AGE UK,8400001300,CommServs-ProvPayOP,Adults & Health,Bexley Care
21/08/2023,888599,0,612,AGE UK,8400001300,CommServs-ProvPayOP,Adults & Health,Bexley Care
21/08/2023,888600,0,612,AGE UK,8400001300,CommServs-ProvPayOP,Adults & Health,Bexley Care
21/08/2023,888601,0,612,AGE UK,8400001300,CommServs-ProvPayOP,Adults & Health,Bexley Care
29/08/2023,888611,0,900,AJ RABEY LTD,10104800,ICT Other Expenditure,Adults & Health,Bexley Care
29/08/2023,888612,0,2400,AJ RABEY LTD,10104800,Professional Services General,Adults & Health,Bexley Care
21/08/2023,888622,0,816,REDACTED PERSONAL DATA,8300100300,CommServs-ISFDirectPayWA,Adults & Health,Bexley Care
21/08/2023,888623,0,775.2,REDACTED PERSONAL DATA,8300092300,CommServs-DirectPayWA,Adults & Health,Bexley Care
21/08/2023,888624,0,1885.44,REDACTED PERSONAL DATA,8300092300,CommServs-DirectPayWA,Adults & Health,Bexley Care
21/08/2023,888626,0,628.48,REDACTED PERSONAL DATA,8300103500,CommServs-DirectPayWA,Adults & Health,Bexley Care
04/08/2023,888627,0,1055.76,ALLIED PUBLICITY SERVICES (MANCHESTER) L,8656301,NurEmRespPlcmts-ProvPayOP,Adults & Health,Bexley Care
21/08/2023,888644,0,4326.32,AMBIENT SUPPORT LIMITED,8400022800,CommServs-ProvPayWA,Adults & Health,Bexley Care
21/08/2023,888645,0,4483.52,AMBIENT SUPPORT LIMITED,8400022800,CommServs-ProvPayWA,Adults & Health,Bexley Care
21/08/2023,888646,0,4780.32,AMBIENT SUPPORT LIMITED,8400022800,CommServs-ProvPayWA,Adults & Health,Bexley Care
21/08/2023,888647,0,5363.16,AMBIENT SUPPORT LIMITED,8400022800,CommServs-ProvPayWA,Adults & Health,Bexley Care
21/08/2023,888648,0,5639.92,AMBIENT SUPPORT LIMITED,8400022800,CommServs-ProvPayWA,Adults & Health,Bexley Care
21/08/2023,888649,0,6740.28,AMBIENT SUPPORT LIMITED,8400022800,CommServs-ProvPayWA,Adults & Health,Bexley Care
21/08/2023,888650,0,10200.12,AMBIENT SUPPORT LIMITED,8400022800,CommServs-ProvPayWA,Adults & Health,Bexley Care
21/08/2023,888652,0,-5317.28,AN DARACH HOUSE,8400021300,ResPlcmts-ProvPayWA,Adults & Health,Bexley Care
21/08/2023,888653,0,-5317.28,AN DARACH HOUSE,8400021300,ResPlcmts-ProvPayWA,Adults & Health,Bexley Care
21/08/2023,888654,0,-5317.28,AN DARACH HOUSE,8400021300,ResPlcmts-ProvPayWA,Adults & Health,Bexley Care
21/08/2023,888655,0,-5317.28,AN DARACH HOUSE,8400021300,ResPlcmts-ProvPayWA,Adults & Health,Bexley Care
21/08/2023,888656,0,-2658.64,AN DARACH HOUSE,8400021300,ResPlcmts-ProvPayWA,Adults & Health,Bexley Care
21/08/2023,888657,0,2818.16,AN DARACH HOUSE,8400021300,ResPlcmts-ProvPayWA,Adults & Health,Bexley Care
21/08/2023,888658,0,5636.32,AN DARACH HOUSE,8400021300,ResPlcmts-ProvPayWA,Adults & Health,Bexley Care
21/08/2023,888659,0,5636.32,AN DARACH HOUSE,8400021300,ResPlcmts-ProvPayWA,Adults & Health,Bexley Care
21/08/2023,888660,0,5636.32,AN DARACH HOUSE,8400021300,ResPlcmts-ProvPayWA,Adults & Health,Bexley Care
21/08/2023,888661,0,5636.32,AN DARACH HOUSE,8400021300,ResPlcmts-ProvPayWA,Adults & Health,Bexley Care
21/08/2023,888662,0,5636.32,AN DARACH HOUSE,8400021300,ResPlcmts-ProvPayWA,Adults & Health,Bexley Care
21/08/2023,888663,0,693.71,ANAHITA REHABILITATION CENTRE,8400004900,ResPlcmts-ProvPayWA,Adults & Health,Bexley Care
21/08/2023,888664,0,4856,ANAHITA REHABILITATION CENTRE,8400004900,ResPlcmts-ProvPayWA,Adults & Health,Bexley Care
21/08/2023,888665,0,4856,ANAHITA REHABILITATION CENTRE,8400004900,ResPlcmts-ProvPayWA,Adults & Health,Bexley Care
21/08/2023,888666,0,911.04,REDACTED PERSONAL DATA,8400039100,CommServs-ProvPayWA,Adults & Health,Bexley Care
21/08/2023,888667,0,775.2,REDACTED PERSONAL DATA,8300081100,CommServs-DirectPayWA,Adults & Health,Bexley Care
21/08/2023,888668,0,620.16,REDACTED PERSONAL DATA,8300105500,CommServs-DirectPayWA,Adults & Health,Bexley Care
21/08/2023,888675,0,589.2,REDACTED PERSONAL DATA,8300082300,CommServs-DirectPayOP,Adults & Health,Bexley Care
21/08/2023,888678,0,956.08,REDACTED PERSONAL DATA,8300078300,CommServs-DirectPayWA,Adults & Health,Bexley Care
21/08/2023,888679,0,4400,ANTOKOL CARE HOME,8400480800,ResPlcmts-ProvPayOP,Adults & Health,Bexley Care
21/08/2023,888686,0,1539.2,REDACTED PERSONAL DATA,8300084000,CommServs-DirectPayWA,Adults & Health,Bexley Care
21/08/2023,888690,0,3500,ARK HOUSE REHAB LTD,8400485600,ResPlcmts-ProvPayWA,Adults & Health,Bexley Care
21/08/2023,888691,0,1885.44,REDACTED PERSONAL DATA,8300079500,CommServs-DirectPayOP,Adults & Health,Bexley Care
21/08/2023,888693,0,3224,ASHBOURNE LODGE,8400481700,NurPlcmts-ProvPayOP,Adults & Health,Bexley Care
21/08/2023,888694,0,-627.08,ASHGOLD HOUSE,8400002200,CRAG income - Residential,Adults & Health,Bexley Care
21/08/2023,888695,0,5191,ASHGOLD HOUSE,8400002200,ResPlcmts-ProvPayWA,Adults & Health,Bexley Care
21/08/2023,888696,0,13228,ASHLEIGH HOUSE,8400010800,ResPlcmts-ProvPayWA,Adults & Health,Bexley Care
21/08/2023,888697,0,2135.72,ASHWEST HOUSE,8400043000,CommServs-ProvPayWA,Adults & Health,Bexley Care
21/08/2023,888708,0,1093.52,ASPENS CHARITIES LTD,8400025600,CommServs-ProvPayWA,Adults & Health,Bexley Care
21/08/2023,888709,0,1486.16,ASPENS CHARITIES LTD,8400025600,CommServs-ProvPayWA,Adults & Health,Bexley Care
21/08/2023,888710,0,1835.96,ASPENS CHARITIES LTD,8400025600,CommServs-ProvPayWA,Adults & Health,Bexley Care
21/08/2023,888711,0,2103.04,ASPENS CHARITIES LTD,8400025600,CommServs-ProvPayWA,Adults & Health,Bexley Care
21/08/2023,888712,0,2207.16,ASPENS CHARITIES LTD,8400025600,CommServs-ProvPayWA,Adults & Health,Bexley Care
21/08/2023,888713,0,2385.92,ASPENS CHARITIES LTD,8400025600,CommServs-ProvPayWA,Adults & Health,Bexley Care
21/08/2023,888714,0,2471.32,ASPENS CHARITIES LTD,8400025600,CommServs-ProvPayWA,Adults & Health,Bexley Care
21/08/2023,888715,0,3127.96,ASPENS CHARITIES LTD,8400025600,CommServs-ProvPayWA,Adults & Health,Bexley Care
21/08/2023,888716,0,3147.56,ASPENS CHARITIES LTD,8400025600,CommServs-ProvPayWA,Adults & Health,Bexley Care
17/08/2023,888721,0,2579.12,ASTON HOUSE CARE HOME,8400045700,ResPlcmts-ProvPayOP,Adults & Health,Bexley Care
04/08/2023,888722,0,501.2,ATHLONE CARE LTD,8400020700,CommServs-ProvPayOP,Adults & Health,Bexley Care
04/08/2023,888723,0,501.2,ATHLONE CARE LTD,8400020700,CommServs-ProvPayOP,Adults & Health,Bexley Care
04/08/2023,888724,0,554.4,ATHLONE CARE LTD,8400020700,CommServs-ProvPayOP,Adults & Health,Bexley Care
04/08/2023,888725,0,582.4,ATHLONE CARE LTD,8400020700,CommServs-ProvPayOP,Adults & Health,Bexley Care
04/08/2023,888726,0,582.4,ATHLONE CARE LTD,8400020700,CommServs-ProvPayOP,Adults & Health,Bexley Care
04/08/2023,888727,0,600.8,ATHLONE CARE LTD,8400020700,CommServs-ProvPayOP,Adults & Health,Bexley Care
04/08/2023,888728,0,646.8,ATHLONE CARE LTD,8400020700,CommServs-ProvPayOP,Adults & Health,Bexley Care
04/08/2023,888729,0,646.8,ATHLONE CARE LTD,8400020700,CommServs-ProvPayOP,Adults & Health,Bexley Care
04/08/2023,888730,0,646.8,ATHLONE CARE LTD,8400020700,CommServs-ProvPayOP,Adults & Health,Bexley Care
04/08/2023,888731,0,646.8,ATHLONE CARE LTD,8400020700,CommServs-ProvPayWA,Adults & Health,Bexley Care
04/08/2023,888732,0,646.8,ATHLONE CARE LTD,8400020700,CommServs-ProvPayWA,Adults & Health,Bexley Care
04/08/2023,888733,0,646.8,ATHLONE CARE LTD,8400020700,CommServs-ProvPayOP,Adults & Health,Bexley Care
04/08/2023,888734,0,646.8,ATHLONE CARE LTD,8400020700,CommServs-ProvPayOP,Adults & Health,Bexley Care
04/08/2023,888735,0,690.4,ATHLONE CARE LTD,8400020700,CommServs-ProvPayOP,Adults & Health,Bexley Care
04/08/2023,888736,0,711.2,ATHLONE CARE LTD,8400020700,CommServs-ProvPayOP,Adults & Health,Bexley Care
04/08/2023,888737,0,711.2,ATHLONE CARE LTD,8400020700,CommServs-ProvPayOP,Adults & Health,Bexley Care
04/08/2023,888738,0,711.2,ATHLONE CARE LTD,8400020700,CommServs-ProvPayOP,Adults & Health,Bexley Care
04/08/2023,888739,0,711.76,ATHLONE CARE LTD,8400020700,CommServs-ProvPayOP,Adults & Health,Bexley Care
04/08/2023,888740,0,711.76,ATHLONE CARE LTD,8400020700,CommServs-ProvPayOP,Adults & Health,Bexley Care
04/08/2023,888741,0,799.48,ATHLONE CARE LTD,8400020700,CommServs-ProvPayOP,Adults & Health,Bexley Care
04/08/2023,888742,0,799.48,ATHLONE CARE LTD,8400020700,CommServs-ProvPayOP,Adults & Health,Bexley Care
04/08/2023,888743,0,841.12,ATHLONE CARE LTD,8400020700,CommServs-ProvPayOP,Adults & Health,Bexley Care
04/08/2023,888744,0,1569.24,ATHLONE CARE LTD,8400020700,CommServs-ProvPayOP,Adults & Health,Bexley Care
04/08/2023,888745,0,1581.92,ATHLONE CARE LTD,8400020700,CommServs-ProvPayOP,Adults & Health,Bexley Care
04/08/2023,888746,0,1885.44,ATHLONE CARE LTD,8400020700,CommServs-ProvPayOP,Adults & Health,Bexley Care
04/08/2023,888747,0,3299.52,ATHLONE CARE LTD,8400020700,CommServs-ProvPayOP,Adults & Health,Bexley Care
04/08/2023,888748,0,3299.52,ATHLONE CARE LTD,8400020700,CommServs-ProvPayOP,Adults & Health,Bexley Care
21/08/2023,888749,0,501.2,ATHLONE CARE LTD,8400020700,CommServs-ProvPayOP,Adults & Health,Bexley Care
21/08/2023,888750,0,501.2,ATHLONE CARE LTD,8400020700,CommServs-ProvPayOP,Adults & Health,Bexley Care
21/08/2023,888751,0,501.2,ATHLONE CARE LTD,8400020700,CommServs-ProvPayOP,Adults & Health,Bexley Care
21/08/2023,888752,0,582.4,ATHLONE CARE LTD,8400020700,CommServs-ProvPayOP,Adults & Health,Bexley Care
21/08/2023,888753,0,582.4,ATHLONE CARE LTD,8400020700,CommServs-ProvPayOP,Adults & Health,Bexley Care
21/08/2023,888754,0,646.8,ATHLONE CARE LTD,8400020700,CommServs-ProvPayWA,Adults & Health,Bexley Care
21/08/2023,888755,0,646.8,ATHLONE CARE LTD,8400020700,CommServs-ProvPayOP,Adults & Health,Bexley Care
21/08/2023,888756,0,646.8,ATHLONE CARE LTD,8400020700,CommServs-ProvPayOP,Adults & Health,Bexley Care
21/08/2023,888757,0,646.8,ATHLONE CARE LTD,8400020700,CommServs-ProvPayOP,Adults & Health,Bexley Care
21/08/2023,888758,0,646.8,ATHLONE CARE LTD,8400020700,CommServs-ProvPayWA,Adults & Health,Bexley Care
21/08/2023,888759,0,646.8,ATHLONE CARE LTD,8400020700,CommServs-ProvPayOP,Adults & Health,Bexley Care
21/08/2023,888760,0,646.8,ATHLONE CARE LTD,8400020700,CommServs-ProvPayOP,Adults & Health,Bexley Care
21/08/2023,888761,0,646.8,ATHLONE CARE LTD,8400020700,CommServs-ProvPayOP,Adults & Health,Bexley Care
21/08/2023,888762,0,711.2,ATHLONE CARE LTD,8400020700,CommServs-ProvPayOP,Adults & Health,Bexley Care
21/08/2023,888763,0,711.2,ATHLONE CARE LTD,8400020700,CommServs-ProvPayOP,Adults & Health,Bexley Care
21/08/2023,888764,0,711.2,ATHLONE CARE LTD,8400020700,CommServs-ProvPayOP,Adults & Health,Bexley Care
21/08/2023,888765,0,711.76,ATHLONE CARE LTD,8400020700,CommServs-ProvPayOP,Adults & Health,Bexley Care
21/08/2023,888766,0,711.76,ATHLONE CARE LTD,8400020700,CommServs-ProvPayOP,Adults & Health,Bexley Care
21/08/2023,888767,0,799.48,ATHLONE CARE LTD,8400020700,CommServs-ProvPayOP,Adults & Health,Bexley Care
21/08/2023,888768,0,799.48,ATHLONE CARE LTD,8400020700,CommServs-ProvPayOP,Adults & Health,Bexley Care
21/08/2023,888769,0,841.12,ATHLONE CARE LTD,8400020700,CommServs-ProvPayOP,Adults & Health,Bexley Care
21/08/2023,888770,0,841.12,ATHLONE CARE LTD,8400020700,CommServs-ProvPayOP,Adults & Health,Bexley Care
21/08/2023,888771,0,1481.59,ATHLONE CARE LTD,8400020700,CommServs-ProvPayOP,Adults & Health,Bexley Care
21/08/2023,888772,0,1520.08,ATHLONE CARE LTD,8400020700,CommServs-ProvPayOP,Adults & Health,Bexley Care
21/08/2023,888773,0,3299.52,ATHLONE CARE LTD,8400020700,CommServs-ProvPayOP,Adults & Health,Bexley Care
21/08/2023,888774,0,3299.52,ATHLONE CARE LTD,8400020700,CommServs-ProvPayOP,Adults & Health,Bexley Care
29/08/2023,888775,0,501.2,ATHLONE CARE LTD,8400020700,CommServs-ProvPayOP,Adults & Health,Bexley Care
29/08/2023,888776,0,582.4,ATHLONE CARE LTD,8400020700,CommServs-ProvPayOP,Adults & Health,Bexley Care
29/08/2023,888777,0,646.8,ATHLONE CARE LTD,8400020700,CommServs-ProvPayWA,Adults & Health,Bexley Care
29/08/2023,888778,0,646.8,ATHLONE CARE LTD,8400020700,CommServs-ProvPayOP,Adults & Health,Bexley Care
29/08/2023,888779,0,646.8,ATHLONE CARE LTD,8400020700,CommServs-ProvPayOP,Adults & Health,Bexley Care
29/08/2023,888780,0,646.8,ATHLONE CARE LTD,8400020700,CommServs-ProvPayOP,Adults & Health,Bexley Care
29/08/2023,888781,0,711.2,ATHLONE CARE LTD,8400020700,CommServs-ProvPayOP,Adults & Health,Bexley Care
29/08/2023,888782,0,711.76,ATHLONE CARE LTD,8400020700,CommServs-ProvPayOP,Adults & Health,Bexley Care
29/08/2023,888783,0,799.48,ATHLONE CARE LTD,8400020700,CommServs-ProvPayOP,Adults & Health,Bexley Care
29/08/2023,888784,0,841.12,ATHLONE CARE LTD,8400020700,CommServs-ProvPayOP,Adults & Health,Bexley Care
29/08/2023,888785,0,1550.47,ATHLONE CARE LTD,8400020700,CommServs-ProvPayOP,Adults & Health,Bexley Care
29/08/2023,888786,0,3299.52,ATHLONE CARE LTD,8400020700,CommServs-ProvPayOP,Adults & Health,Bexley Care
02/08/2023,888787,0,1093.54,ATTENTI CONSULTING,10065500,Adult Contract Pymt - General,Adults & Health,Bexley Care
02/08/2023,888788,0,1950.27,ATTENTI CONSULTING,10065500,Adult Contract Pymt - General,Adults & Health,Bexley Care
02/08/2023,888789,0,2795.58,ATTENTI CONSULTING,10065500,Adult Contract Pymt - General,Adults & Health,Bexley Care
21/08/2023,888792,0,-930.96,AURORA NEXUS,8400021400,CommServs-ProvPayWA,Adults & Health,Bexley Care
21/08/2023,888793,0,5303.12,AURORA NEXUS,8400021400,CommServs-ProvPayOP,Adults & Health,Bexley Care
21/08/2023,888794,0,5303.12,AURORA NEXUS,8400021400,CommServs-ProvPayOP,Adults & Health,Bexley Care
14/08/2023,888795,0,582.4,AUSTEN ALLEN (CARE AGENCY),8400009400,CommServs-ProvPayOP,Adults & Health,Bexley Care
14/08/2023,888796,0,582.4,AUSTEN ALLEN (CARE AGENCY),8400009400,CommServs-ProvPayOP,Adults & Health,Bexley Care
14/08/2023,888797,0,582.4,AUSTEN ALLEN (CARE AGENCY),8400009400,CommServs-ProvPayOP,Adults & Health,Bexley Care
14/08/2023,888798,0,582.4,AUSTEN ALLEN (CARE AGENCY),8400009400,CommServs-ProvPayOP,Adults & Health,Bexley Care
14/08/2023,888799,0,582.4,AUSTEN ALLEN (CARE AGENCY),8400009400,CommServs-ProvPayOP,Adults & Health,Bexley Care
21/08/2023,888800,0,582.4,AUSTEN ALLEN (CARE AGENCY),8400009400,CommServs-ProvPayOP,Adults & Health,Bexley Care
21/08/2023,888801,0,582.4,AUSTEN ALLEN (CARE AGENCY),8400009400,CommServs-ProvPayOP,Adults & Health,Bexley Care
21/08/2023,888802,0,582.4,AUSTEN ALLEN (CARE AGENCY),8400009400,CommServs-ProvPayOP,Adults & Health,Bexley Care
21/08/2023,888803,0,582.4,AUSTEN ALLEN (CARE AGENCY),8400009400,CommServs-ProvPayOP,Adults & Health,Bexley Care
21/08/2023,888804,0,582.4,AUSTEN ALLEN (CARE AGENCY),8400009400,CommServs-ProvPayOP,Adults & Health,Bexley Care
21/08/2023,888805,0,582.4,AUSTEN ALLEN (CARE AGENCY),8400009400,CommServs-ProvPayOP,Adults & Health,Bexley Care
04/08/2023,888806,0,582.4,AVANTE CARE & SUPPORT,8400032400,CommServs-ProvPayOP,Adults & Health,Bexley Care
04/08/2023,888807,0,615.02,AVANTE CARE & SUPPORT,8400032400,CommServs-ProvPayOP,Adults & Health,Bexley Care
04/08/2023,888808,0,646.8,AVANTE CARE & SUPPORT,8400032400,CommServs-ProvPayOP,Adults & Health,Bexley Care
04/08/2023,888809,0,646.8,AVANTE CARE & SUPPORT,8400032400,CommServs-ProvPayOP,Adults & Health,Bexley Care
04/08/2023,888810,0,646.8,AVANTE CARE & SUPPORT,8400032400,CommServs-ProvPayOP,Adults & Health,Bexley Care
04/08/2023,888811,0,646.8,AVANTE CARE & SUPPORT,8400032400,CommServs-ProvPayOP,Adults & Health,Bexley Care
04/08/2023,888812,0,649.36,AVANTE CARE & SUPPORT,8400032400,CommServs-ProvPayOP,Adults & Health,Bexley Care
04/08/2023,888813,0,656.08,AVANTE CARE & SUPPORT,8400032400,CommServs-ProvPayOP,Adults & Health,Bexley Care
04/08/2023,888814,0,681.2,AVANTE CARE & SUPPORT,8400032400,CommServs-ProvPayWA,Adults & Health,Bexley Care
04/08/2023,888815,0,840.56,AVANTE CARE & SUPPORT,8400032400,CommServs-ProvPayOP,Adults & Health,Bexley Care
04/08/2023,888816,0,904.96,AVANTE CARE & SUPPORT,8400032400,CommServs-ProvPayOP,Adults & Health,Bexley Care
14/08/2023,888817,0,536.28,AVANTE CARE & SUPPORT,8400032400,CommServs-ProvPayOP,Adults & Health,Bexley Care
14/08/2023,888818,0,610.72,AVANTE CARE & SUPPORT,8400032400,CommServs-ProvPayOP,Adults & Health,Bexley Care
14/08/2023,888819,0,622.08,AVANTE CARE & SUPPORT,8400032400,CommServs-ProvPayOP,Adults & Health,Bexley Care
14/08/2023,888820,0,635.44,AVANTE CARE & SUPPORT,8400032400,CommServs-ProvPayOP,Adults & Health,Bexley Care
14/08/2023,888821,0,702.08,AVANTE CARE & SUPPORT,8400032400,CommServs-ProvPayOP,Adults & Health,Bexley Care
14/08/2023,888822,0,707.04,AVANTE CARE & SUPPORT,8400032400,CommServs-ProvPayOP,Adults & Health,Bexley Care
14/08/2023,888823,0,739.12,AVANTE CARE & SUPPORT,8400032400,CommServs-ProvPayOP,Adults & Health,Bexley Care
14/08/2023,888824,0,802.21,AVANTE CARE & SUPPORT,8400032400,CommServs-ProvPayOP,Adults & Health,Bexley Care
15/08/2023,888825,0,798.77,AVANTE CARE & SUPPORT,8400032400,CommServs-ProvPayWA,Adults & Health,Bexley Care
15/08/2023,888826,0,975.8,AVANTE CARE & SUPPORT,8400032400,CommServs-ProvPayOP,Adults & Health,Bexley Care
21/08/2023,888827,0,582.4,AVANTE CARE & SUPPORT,8400032400,CommServs-ProvPayOP,Adults & Health,Bexley Care
21/08/2023,888828,0,615.02,AVANTE CARE & SUPPORT,8400032400,CommServs-ProvPayOP,Adults & Health,Bexley Care
21/08/2023,888829,0,646.8,AVANTE CARE & SUPPORT,8400032400,CommServs-ProvPayOP,Adults & Health,Bexley Care
21/08/2023,888830,0,646.8,AVANTE CARE & SUPPORT,8400032400,CommServs-ProvPayOP,Adults & Health,Bexley Care
21/08/2023,888831,0,646.8,AVANTE CARE & SUPPORT,8400032400,CommServs-ProvPayOP,Adults & Health,Bexley Care
21/08/2023,888832,0,646.8,AVANTE CARE & SUPPORT,8400032400,CommServs-ProvPayOP,Adults & Health,Bexley Care
21/08/2023,888833,0,649.36,AVANTE CARE & SUPPORT,8400032400,CommServs-ProvPayOP,Adults & Health,Bexley Care
21/08/2023,888834,0,656.08,AVANTE CARE & SUPPORT,8400032400,CommServs-ProvPayOP,Adults & Health,Bexley Care
21/08/2023,888835,0,681.2,AVANTE CARE & SUPPORT,8400032400,CommServs-ProvPayWA,Adults & Health,Bexley Care
21/08/2023,888836,0,840.56,AVANTE CARE & SUPPORT,8400032400,CommServs-ProvPayOP,Adults & Health,Bexley Care
21/08/2023,888837,0,904.96,AVANTE CARE & SUPPORT,8400032400,CommServs-ProvPayOP,Adults & Health,Bexley Care
21/08/2023,888840,0,1717.98,AVENUES TRUST GROUP,8400484400,CommServs-ProvPayWA,Adults & Health,Bexley Care
21/08/2023,888841,0,5018.85,AVENUES TRUST GROUP,8400484400,CommServs-ProvPayWA,Adults & Health,Bexley Care
21/08/2023,888842,0,11701.2,AVENUES TRUST GROUP,8400484400,CommServs-ProvPayWA,Adults & Health,Bexley Care
21/08/2023,888843,0,14914.6,AVENUES TRUST GROUP,8400484400,ASC Interim Beds,Adults & Health,Bexley Care
21/08/2023,888848,0,1260.6,REDACTED PERSONAL DATA,8400482600,ResPlcmts-ProvPayOP,Adults & Health,Bexley Care
21/08/2023,888853,0,2261.41,REDACTED PERSONAL DATA,8300105600,CommServs-DirectPayOP,Adults & Health,Bexley Care
21/08/2023,888854,0,2435.36,REDACTED PERSONAL DATA,8300105600,CommServs-DirectPayOP,Adults & Health,Bexley Care
21/08/2023,888890,0,1414.08,REDACTED PERSONAL DATA,8300095800,CommServs-DirectPayOP,Adults & Health,Bexley Care
21/08/2023,888891,0,3142.4,REDACTED PERSONAL DATA,8300081700,CommServs-DirectPayOP,Adults & Health,Bexley Care
17/08/2023,888892,0,1021.28,REDACTED PERSONAL DATA,8300080700,CommServs-DirectPayOP,Adults & Health,Bexley Care
14/08/2023,888896,0,509.82,BARTS HEALTH NHS TRUST,8270200,Sexual Health Payments,Adults & Health,Health & Wellbeing
14/08/2023,888897,0,521.9,BARTS HEALTH NHS TRUST,8270200,Sexual Health Payments,Adults & Health,Health & Wellbeing
14/08/2023,888898,0,554.2,BARTS HEALTH NHS TRUST,8270200,Sexual Health Payments,Adults & Health,Health & Wellbeing
14/08/2023,888899,0,1132.67,BARTS HEALTH NHS TRUST,8270200,Sexual Health Payments,Adults & Health,Health & Wellbeing
14/08/2023,888900,0,1757.79,BARTS HEALTH NHS TRUST,8270200,BARTS Health NHS Trust,Adults & Health,Health & Wellbeing
24/08/2023,888901,0,1615.22,BARTS HEALTH NHS TRUST,8270200,BARTS Health NHS Trust,Adults & Health,Health & Wellbeing
21/08/2023,888902,0,2400,BAUGH HOUSE,8400019300,NurPlcmts-ProvPayOP,Adults & Health,Bexley Care
21/08/2023,888903,0,4800,BAUGH HOUSE,8400019300,NurPlcmts-ProvPayOP,Adults & Health,Bexley Care
21/08/2023,888904,0,5200,BAUGH HOUSE,8400019300,NurPlcmts-ProvPayOP,Adults & Health,Bexley Care
21/08/2023,888905,0,5200,BAUGH HOUSE,8400019300,NurPlcmts-ProvPayWA,Adults & Health,Bexley Care
21/08/2023,888906,0,5200,BAUGH HOUSE,8400019300,ResPlcmts-ProvPayOP,Adults & Health,Bexley Care
21/08/2023,888907,0,5400,BAUGH HOUSE,8400019300,NurPlcmts-ProvPayOP,Adults & Health,Bexley Care
21/08/2023,888908,0,6000,BAUGH HOUSE,8400019300,ResPlcmts-ProvPayOP,Adults & Health,Bexley Care
21/08/2023,888914,0,6251.96,BEAVER LANE,8400016900,ResPlcmts-ProvPayWA,Adults & Health,Bexley Care
21/08/2023,888919,0,3630.96,BEECHCARE INCORPORATING PETER GIDNE,8400003600,NurPlcmts-ProvPayWA,Adults & Health,Bexley Care
21/08/2023,888920,0,11800,BEECHCARE INCORPORATING PETER GIDNE,8400003600,ResEmRespPlcmts-ProvPayWA,Adults & Health,Bexley Care
21/08/2023,888921,0,896.8,REDACTED PERSONAL DATA,8400022300,CommServs-ProvPayWA,Adults & Health,Bexley Care
21/08/2023,888922,0,1311.04,REDACTED PERSONAL DATA,8400022300,CommServs-ProvPayWA,Adults & Health,Bexley Care
21/08/2023,888928,0,600,REDACTED PERSONAL DATA,8300024700,CommServs-DirectPayWA,Adults & Health,Bexley Care
21/08/2023,888929,0,803.52,REDACTED PERSONAL DATA,8300024700,CommServs-DirectPayWA,Adults & Health,Bexley Care
21/08/2023,888930,0,2148.6,REDACTED PERSONAL DATA,8300024700,CommServs-DirectPayWA,Adults & Health,Bexley Care
21/08/2023,888931,0,2864.8,REDACTED PERSONAL DATA,8300024700,CommServs-DirectPayWA,Adults & Health,Bexley Care
24/08/2023,888944,0,47336.08,BEXLEY ACCESSIBLE TRANSPORT SCHEME,5917800,CommServs Payments Total,Adults & Health,Bexley Care
04/08/2023,888946,0,825,BEXLEY GROUP PRACTICE,6353700,Public Health Payments,Adults & Health,Health & Wellbeing
17/08/2023,888947,0,290335.28,BEXLEY HEALTH NEIGHBOURHOOD CARE CIC,8676400,Adult Contract Pymt - General,Adults & Health,Bexley Care
24/08/2023,888951,0,85000,BEXLEY VOLUNTARY SERVICE COUNCIL,78500,Health Inequalities,Adults & Health,Health & Wellbeing
21/08/2023,888955,0,633.08,REDACTED PERSONAL DATA,8300080100,CommServs-DirectPayOP,Adults & Health,Bexley Care
21/08/2023,888956,0,1454.76,REDACTED PERSONAL DATA,8400012600,CommServs-ProvPayWA,Adults & Health,Bexley Care
21/08/2023,888957,0,2007.76,REDACTED PERSONAL DATA,8400012600,CommServs-ProvPayOP,Adults & Health,Bexley Care
21/08/2023,888964,0,6292.16,BIRLING HOUSE,8400005500,ResPlcmts-ProvPayWA,Adults & Health,Bexley Care
21/08/2023,888965,0,7489.92,BIRLING HOUSE,8400005500,ResPlcmts-ProvPayOP,Adults & Health,Bexley Care
21/08/2023,888973,0,-6966.68,BISHOPS LODGE,8400005200,ResPlcmts-ProvPayWA,Adults & Health,Bexley Care
21/08/2023,888974,0,-6966.68,BISHOPS LODGE,8400005200,ResPlcmts-ProvPayWA,Adults & Health,Bexley Care
21/08/2023,888975,0,-6966.68,BISHOPS LODGE,8400005200,ResPlcmts-ProvPayWA,Adults & Health,Bexley Care
21/08/2023,888976,0,-6966.68,BISHOPS LODGE,8400005200,ResPlcmts-ProvPayWA,Adults & Health,Bexley Care
21/08/2023,888977,0,-6966.68,BISHOPS LODGE,8400005200,ResPlcmts-ProvPayWA,Adults & Health,Bexley Care
21/08/2023,888978,0,-3483.34,BISHOPS LODGE,8400005200,ResPlcmts-ProvPayWA,Adults & Health,Bexley Care
21/08/2023,888979,0,3692.34,BISHOPS LODGE,8400005200,ResPlcmts-ProvPayWA,Adults & Health,Bexley Care
21/08/2023,888980,0,6966.68,BISHOPS LODGE,8400005200,ResPlcmts-ProvPayWA,Adults & Health,Bexley Care
21/08/2023,888981,0,7384.68,BISHOPS LODGE,8400005200,ResPlcmts-ProvPayWA,Adults & Health,Bexley Care
21/08/2023,888982,0,7384.68,BISHOPS LODGE,8400005200,ResPlcmts-ProvPayWA,Adults & Health,Bexley Care
21/08/2023,888983,0,7384.68,BISHOPS LODGE,8400005200,ResPlcmts-ProvPayWA,Adults & Health,Bexley Care
21/08/2023,888984,0,7384.68,BISHOPS LODGE,8400005200,ResPlcmts-ProvPayWA,Adults & Health,Bexley Care
21/08/2023,888985,0,7384.68,BISHOPS LODGE,8400005200,ResPlcmts-ProvPayWA,Adults & Health,Bexley Care
21/08/2023,888986,0,1049.08,REDACTED PERSONAL DATA,8400037900,CommServs-ProvPayWA,Adults & Health,Bexley Care
21/08/2023,888994,0,3675.48,BLOSSOM LODGE,8400001800,CommServs-ProvPayOP,Adults & Health,Bexley Care
24/08/2023,888995,0,18536,BLUE LOZENGE LIMITED,10173100,Staff Recruitment Costs,Adults & Health,Bexley Care
21/08/2023,888996,0,1575.42,BLUEBIRD CARE,8400033500,CommServs-ProvPayWA,Adults & Health,Bexley Care
21/08/2023,888998,0,-10884.16,BLYTHE HOUSE,8400026600,ResPlcmts-ProvPayWA,Adults & Health,Bexley Care
21/08/2023,888999,0,-10884.16,BLYTHE HOUSE,8400026600,ResPlcmts-ProvPayWA,Adults & Health,Bexley Care
21/08/2023,889000,0,-10884.16,BLYTHE HOUSE,8400026600,ResPlcmts-ProvPayWA,Adults & Health,Bexley Care
21/08/2023,889001,0,-10884.16,BLYTHE HOUSE,8400026600,ResPlcmts-ProvPayWA,Adults & Health,Bexley Care
21/08/2023,889002,0,-5442.08,BLYTHE HOUSE,8400026600,ResPlcmts-ProvPayWA,Adults & Health,Bexley Care
21/08/2023,889003,0,5768.6,BLYTHE HOUSE,8400026600,ResPlcmts-ProvPayWA,Adults & Health,Bexley Care
21/08/2023,889004,0,11537.2,BLYTHE HOUSE,8400026600,ResPlcmts-ProvPayWA,Adults & Health,Bexley Care
21/08/2023,889005,0,11537.2,BLYTHE HOUSE,8400026600,ResPlcmts-ProvPayWA,Adults & Health,Bexley Care
21/08/2023,889006,0,11537.2,BLYTHE HOUSE,8400026600,ResPlcmts-ProvPayWA,Adults & Health,Bexley Care
21/08/2023,889007,0,11537.2,BLYTHE HOUSE,8400026600,ResPlcmts-ProvPayWA,Adults & Health,Bexley Care
21/08/2023,889008,0,11537.2,BLYTHE HOUSE,8400026600,ResPlcmts-ProvPayWA,Adults & Health,Bexley Care
21/08/2023,889013,0,3364.32,BOLDSHAVES OAST,8400001500,ResPlcmts-ProvPayWA,Adults & Health,Bexley Care
21/08/2023,889014,0,9135.04,BOLDSHAVES OAST,8400001500,ResPlcmts-ProvPayWA,Adults & Health,Bexley Care
31/08/2023,889024,0,5400,BRENDA SCANLAN CONSULTING LTD,10094400,Agency Staff,Adults & Health,Bexley Care
21/08/2023,889025,0,-1104.66,REDACTED PERSONAL DATA,8300105200,CommServs-DirectPayOP,Adults & Health,Bexley Care
21/08/2023,889026,0,-889.92,REDACTED PERSONAL DATA,8300105200,FC Income - Direct Payments,Adults & Health,Bexley Care
21/08/2023,889027,0,-889.92,REDACTED PERSONAL DATA,8300105200,FC Income - Direct Payments,Adults & Health,Bexley Care
21/08/2023,889028,0,-533.24,REDACTED PERSONAL DATA,8300105200,FC Income - Direct Payments,Adults & Health,Bexley Care
21/08/2023,889029,0,578.63,REDACTED PERSONAL DATA,8300105200,CommServs-DirectPayOP,Adults & Health,Bexley Care
21/08/2023,889030,0,784.43,REDACTED PERSONAL DATA,8300105200,CommServs-DirectPayOP,Adults & Health,Bexley Care
21/08/2023,889031,0,1292,REDACTED PERSONAL DATA,8300105200,CommServs-DirectPayOP,Adults & Health,Bexley Care
21/08/2023,889032,0,1472.88,REDACTED PERSONAL DATA,8300105200,CommServs-DirectPayOP,Adults & Health,Bexley Care
21/08/2023,889033,0,1472.88,REDACTED PERSONAL DATA,8300105200,CommServs-DirectPayOP,Adults & Health,Bexley Care
04/08/2023,889036,0,547.56,BRIDGES HEALTH CARE,8400016800,CommServs-ProvPayOP,Adults & Health,Bexley Care
04/08/2023,889037,0,555.16,BRIDGES HEALTH CARE,8400016800,CommServs-ProvPayOP,Adults & Health,Bexley Care
04/08/2023,889038,0,555.76,BRIDGES HEALTH CARE,8400016800,CommServs-ProvPayOP,Adults & Health,Bexley Care
04/08/2023,889039,0,573.92,BRIDGES HEALTH CARE,8400016800,CommServs-ProvPayOP,Adults & Health,Bexley Care
04/08/2023,889040,0,583,BRIDGES HEALTH CARE,8400016800,CommServs-ProvPayOP,Adults & Health,Bexley Care
04/08/2023,889041,0,592.08,BRIDGES HEALTH CARE,8400016800,CommServs-ProvPayOP,Adults & Health,Bexley Care
04/08/2023,889042,0,595.6,BRIDGES HEALTH CARE,8400016800,CommServs-ProvPayOP,Adults & Health,Bexley Care
04/08/2023,889043,0,628.64,BRIDGES HEALTH CARE,8400016800,CommServs-ProvPayOP,Adults & Health,Bexley Care
04/08/2023,889044,0,637.72,BRIDGES HEALTH CARE,8400016800,CommServs-ProvPayOP,Adults & Health,Bexley Care
04/08/2023,889045,0,646.8,BRIDGES HEALTH CARE,8400016800,CommServs-ProvPayOP,Adults & Health,Bexley Care
04/08/2023,889046,0,693.4,BRIDGES HEALTH CARE,8400016800,CommServs-ProvPayOP,Adults & Health,Bexley Care
04/08/2023,889047,0,846.16,BRIDGES HEALTH CARE,8400016800,CommServs-ProvPayWA,Adults & Health,Bexley Care
14/08/2023,889048,0,537.24,BRIDGES HEALTH CARE,8400016800,CommServs-ProvPayOP,Adults & Health,Bexley Care
14/08/2023,889049,0,556.64,BRIDGES HEALTH CARE,8400016800,CommServs-ProvPayOP,Adults & Health,Bexley Care
14/08/2023,889050,0,574.04,BRIDGES HEALTH CARE,8400016800,CommServs-ProvPayOP,Adults & Health,Bexley Care
14/08/2023,889051,0,583.12,BRIDGES HEALTH CARE,8400016800,CommServs-ProvPayOP,Adults & Health,Bexley Care
14/08/2023,889052,0,583.12,BRIDGES HEALTH CARE,8400016800,CommServs-ProvPayOP,Adults & Health,Bexley Care
14/08/2023,889053,0,584.24,BRIDGES HEALTH CARE,8400016800,CommServs-ProvPayOP,Adults & Health,Bexley Care
14/08/2023,889054,0,592.08,BRIDGES HEALTH CARE,8400016800,CommServs-ProvPayOP,Adults & Health,Bexley Care
14/08/2023,889055,0,637.6,BRIDGES HEALTH CARE,8400016800,CommServs-ProvPayOP,Adults & Health,Bexley Care
14/08/2023,889056,0,637.72,BRIDGES HEALTH CARE,8400016800,CommServs-ProvPayOP,Adults & Health,Bexley Care
14/08/2023,889057,0,637.72,BRIDGES HEALTH CARE,8400016800,CommServs-ProvPayOP,Adults & Health,Bexley Care
14/08/2023,889058,0,702.68,BRIDGES HEALTH CARE,8400016800,CommServs-ProvPayOP,Adults & Health,Bexley Care
14/08/2023,889059,0,846.16,BRIDGES HEALTH CARE,8400016800,CommServs-ProvPayWA,Adults & Health,Bexley Care
21/08/2023,889060,0,513.92,BRIDGES HEALTH CARE,8400016800,CommServs-ProvPayOP,Adults & Health,Bexley Care
21/08/2023,889061,0,519.08,BRIDGES HEALTH CARE,8400016800,CommServs-ProvPayOP,Adults & Health,Bexley Care
21/08/2023,889062,0,546.44,BRIDGES HEALTH CARE,8400016800,CommServs-ProvPayOP,Adults & Health,Bexley Care
21/08/2023,889063,0,547.2,BRIDGES HEALTH CARE,8400016800,CommServs-ProvPayOP,Adults & Health,Bexley Care
21/08/2023,889064,0,555.4,BRIDGES HEALTH CARE,8400016800,CommServs-ProvPayOP,Adults & Health,Bexley Care
21/08/2023,889065,0,574.04,BRIDGES HEALTH CARE,8400016800,CommServs-ProvPayOP,Adults & Health,Bexley Care
21/08/2023,889066,0,637.72,BRIDGES HEALTH CARE,8400016800,CommServs-ProvPayOP,Adults & Health,Bexley Care
21/08/2023,889067,0,637.72,BRIDGES HEALTH CARE,8400016800,CommServs-ProvPayOP,Adults & Health,Bexley Care
21/08/2023,889068,0,637.72,BRIDGES HEALTH CARE,8400016800,CommServs-ProvPayOP,Adults & Health,Bexley Care
21/08/2023,889069,0,684.52,BRIDGES HEALTH CARE,8400016800,CommServs-ProvPayOP,Adults & Health,Bexley Care
21/08/2023,889070,0,855.24,BRIDGES HEALTH CARE,8400016800,CommServs-ProvPayWA,Adults & Health,Bexley Care
29/08/2023,889071,0,511.24,BRIDGES HEALTH CARE,8400016800,CommServs-ProvPayOP,Adults & Health,Bexley Care
29/08/2023,889072,0,518.96,BRIDGES HEALTH CARE,8400016800,CommServs-ProvPayOP,Adults & Health,Bexley Care
29/08/2023,889073,0,519.08,BRIDGES HEALTH CARE,8400016800,CommServs-ProvPayOP,Adults & Health,Bexley Care
29/08/2023,889074,0,546.44,BRIDGES HEALTH CARE,8400016800,CommServs-ProvPayOP,Adults & Health,Bexley Care
29/08/2023,889075,0,556,BRIDGES HEALTH CARE,8400016800,CommServs-ProvPayOP,Adults & Health,Bexley Care
29/08/2023,889076,0,564.6,BRIDGES HEALTH CARE,8400016800,CommServs-ProvPayOP,Adults & Health,Bexley Care
29/08/2023,889077,0,593.2,BRIDGES HEALTH CARE,8400016800,CommServs-ProvPayOP,Adults & Health,Bexley Care
29/08/2023,889078,0,637.72,BRIDGES HEALTH CARE,8400016800,CommServs-ProvPayOP,Adults & Health,Bexley Care
29/08/2023,889079,0,646.8,BRIDGES HEALTH CARE,8400016800,CommServs-ProvPayOP,Adults & Health,Bexley Care
29/08/2023,889080,0,693.6,BRIDGES HEALTH CARE,8400016800,CommServs-ProvPayOP,Adults & Health,Bexley Care
29/08/2023,889081,0,836.96,BRIDGES HEALTH CARE,8400016800,CommServs-ProvPayWA,Adults & Health,Bexley Care
21/08/2023,889082,0,5085.88,BRIDGESIDE LODGE CARE CENTRE,8400009300,NurPlcmts-ProvPayOP,Adults & Health,Bexley Care
22/08/2023,889086,0,501.04,BRITISH GAS TRADING LIMITED,508901,Gas,Adults & Health,Bexley Care
21/08/2023,889088,0,923.52,REDACTED PERSONAL DATA,8300090600,CommServs-DirectPayWA,Adults & Health,Bexley Care
29/08/2023,889092,0,7567,BROMLEY HEALTHCARE �  SOUTH LCN,8400483200,CommServs-ProvPayOP,Adults & Health,Bexley Care
29/08/2023,889093,0,46000,BROMLEY HEALTHCARE �  SOUTH LCN,8400483200,CommServs-ProvPayOP,Adults & Health,Bexley Care
21/08/2023,889094,0,-2999.12,BROOK HOUSE NURSING HOME,8400008800,NurPlcmts-ProvPayOP,Adults & Health,Bexley Care
21/08/2023,889095,0,-2999.12,BROOK HOUSE NURSING HOME,8400008800,NurPlcmts-ProvPayOP,Adults & Health,Bexley Care
21/08/2023,889096,0,-2999.12,BROOK HOUSE NURSING HOME,8400008800,NurPlcmts-ProvPayOP,Adults & Health,Bexley Care
21/08/2023,889097,0,-1248.92,BROOK HOUSE NURSING HOME,8400008800,ASC Interim Beds,Adults & Health,Bexley Care
21/08/2023,889098,0,-964,BROOK HOUSE NURSING HOME,8400008800,NurPlcmts-ProvPayOP,Adults & Health,Bexley Care
21/08/2023,889099,0,1248.92,BROOK HOUSE NURSING HOME,8400008800,NurPlcmts-ProvPayOP,Adults & Health,Bexley Care
21/08/2023,889100,0,2563.8,BROOK HOUSE NURSING HOME,8400008800,NurPlcmts-ProvPayOP,Adults & Health,Bexley Care
21/08/2023,889101,0,2563.8,BROOK HOUSE NURSING HOME,8400008800,NurPlcmts-ProvPayOP,Adults & Health,Bexley Care
21/08/2023,889102,0,3179.08,BROOK HOUSE NURSING HOME,8400008800,NurPlcmts-ProvPayOP,Adults & Health,Bexley Care
21/08/2023,889103,0,3179.08,BROOK HOUSE NURSING HOME,8400008800,NurPlcmts-ProvPayOP,Adults & Health,Bexley Care
21/08/2023,889104,0,3179.08,BROOK HOUSE NURSING HOME,8400008800,NurPlcmts-ProvPayOP,Adults & Health,Bexley Care
21/08/2023,889105,0,3179.08,BROOK HOUSE NURSING HOME,8400008800,NurPlcmts-ProvPayWA,Adults & Health,Bexley Care
21/08/2023,889106,0,3179.08,BROOK HOUSE NURSING HOME,8400008800,NurPlcmts-ProvPayOP,Adults & Health,Bexley Care
21/08/2023,889107,0,3179.08,BROOK HOUSE NURSING HOME,8400008800,NurPlcmts-ProvPayOP,Adults & Health,Bexley Care
21/08/2023,889108,0,3551.08,BROOK HOUSE NURSING HOME,8400008800,NurPlcmts-ProvPayOP,Adults & Health,Bexley Care
21/08/2023,889109,0,3642.08,BROOK HOUSE NURSING HOME,8400008800,NurPlcmts-ProvPayOP,Adults & Health,Bexley Care
21/08/2023,889110,0,4049.6,BROOK HOUSE NURSING HOME,8400008800,NurPlcmts-ProvPayOP,Adults & Health,Bexley Care
21/08/2023,889111,0,4800,BROOK HOUSE NURSING HOME,8400008800,NurPlcmts-ProvPayWA,Adults & Health,Bexley Care
21/08/2023,889112,0,501.2,BROWNCROSS HEALTHCARE LIMITED,8400039700,CommServs-ProvPayWA,Adults & Health,Bexley Care
21/08/2023,889113,0,501.2,BROWNCROSS HEALTHCARE LIMITED,8400039700,CommServs-ProvPayWA,Adults & Health,Bexley Care
21/08/2023,889114,0,501.2,BROWNCROSS HEALTHCARE LIMITED,8400039700,CommServs-ProvPayWA,Adults & Health,Bexley Care
21/08/2023,889115,0,501.2,BROWNCROSS HEALTHCARE LIMITED,8400039700,CommServs-ProvPayWA,Adults & Health,Bexley Care
21/08/2023,889116,0,501.2,BROWNCROSS HEALTHCARE LIMITED,8400039700,CommServs-ProvPayWA,Adults & Health,Bexley Care
21/08/2023,889117,0,501.2,BROWNCROSS HEALTHCARE LIMITED,8400039700,CommServs-ProvPayWA,Adults & Health,Bexley Care
21/08/2023,889118,0,501.2,BROWNCROSS HEALTHCARE LIMITED,8400039700,CommServs-ProvPayWA,Adults & Health,Bexley Care
21/08/2023,889119,0,501.2,BROWNCROSS HEALTHCARE LIMITED,8400039700,CommServs-ProvPayWA,Adults & Health,Bexley Care
21/08/2023,889120,0,510.82,BROWNCROSS HEALTHCARE LIMITED,8400039700,CommServs-ProvPayOP,Adults & Health,Bexley Care
21/08/2023,889121,0,511,BROWNCROSS HEALTHCARE LIMITED,8400039700,CommServs-ProvPayOP,Adults & Health,Bexley Care
21/08/2023,889122,0,551.04,BROWNCROSS HEALTHCARE LIMITED,8400039700,CommServs-ProvPayOP,Adults & Health,Bexley Care
21/08/2023,889123,0,554.62,BROWNCROSS HEALTHCARE LIMITED,8400039700,CommServs-ProvPayOP,Adults & Health,Bexley Care
21/08/2023,889124,0,573.32,BROWNCROSS HEALTHCARE LIMITED,8400039700,CommServs-ProvPayOP,Adults & Health,Bexley Care
21/08/2023,889125,0,582.4,BROWNCROSS HEALTHCARE LIMITED,8400039700,CommServs-ProvPayOP,Adults & Health,Bexley Care
21/08/2023,889126,0,596.2,BROWNCROSS HEALTHCARE LIMITED,8400039700,CommServs-ProvPayOP,Adults & Health,Bexley Care
21/08/2023,889127,0,646.8,BROWNCROSS HEALTHCARE LIMITED,8400039700,CommServs-ProvPayOP,Adults & Health,Bexley Care
21/08/2023,889128,0,646.8,BROWNCROSS HEALTHCARE LIMITED,8400039700,CommServs-ProvPayOP,Adults & Health,Bexley Care
21/08/2023,889129,0,646.8,BROWNCROSS HEALTHCARE LIMITED,8400039700,CommServs-ProvPayOP,Adults & Health,Bexley Care
21/08/2023,889130,0,646.8,BROWNCROSS HEALTHCARE LIMITED,8400039700,CommServs-ProvPayOP,Adults & Health,Bexley Care
21/08/2023,889131,0,646.8,BROWNCROSS HEALTHCARE LIMITED,8400039700,CommServs-ProvPayOP,Adults & Health,Bexley Care
21/08/2023,889132,0,646.8,BROWNCROSS HEALTHCARE LIMITED,8400039700,CommServs-ProvPayOP,Adults & Health,Bexley Care
21/08/2023,889133,0,646.8,BROWNCROSS HEALTHCARE LIMITED,8400039700,CommServs-ProvPayOP,Adults & Health,Bexley Care
21/08/2023,889134,0,646.8,BROWNCROSS HEALTHCARE LIMITED,8400039700,CommServs-ProvPayOP,Adults & Health,Bexley Care
21/08/2023,889135,0,646.8,BROWNCROSS HEALTHCARE LIMITED,8400039700,CommServs-ProvPayOP,Adults & Health,Bexley Care
21/08/2023,889136,0,646.8,BROWNCROSS HEALTHCARE LIMITED,8400039700,CommServs-ProvPayOP,Adults & Health,Bexley Care
21/08/2023,889137,0,646.8,BROWNCROSS HEALTHCARE LIMITED,8400039700,CommServs-ProvPayOP,Adults & Health,Bexley Care
21/08/2023,889138,0,646.8,BROWNCROSS HEALTHCARE LIMITED,8400039700,CommServs-ProvPayOP,Adults & Health,Bexley Care
21/08/2023,889139,0,646.8,BROWNCROSS HEALTHCARE LIMITED,8400039700,CommServs-ProvPayOP,Adults & Health,Bexley Care
21/08/2023,889140,0,646.8,BROWNCROSS HEALTHCARE LIMITED,8400039700,CommServs-ProvPayOP,Adults & Health,Bexley Care
21/08/2023,889141,0,646.8,BROWNCROSS HEALTHCARE LIMITED,8400039700,CommServs-ProvPayOP,Adults & Health,Bexley Care
21/08/2023,889142,0,646.8,BROWNCROSS HEALTHCARE LIMITED,8400039700,CommServs-ProvPayOP,Adults & Health,Bexley Care
21/08/2023,889143,0,646.8,BROWNCROSS HEALTHCARE LIMITED,8400039700,CommServs-ProvPayOP,Adults & Health,Bexley Care
21/08/2023,889144,0,646.8,BROWNCROSS HEALTHCARE LIMITED,8400039700,CommServs-ProvPayOP,Adults & Health,Bexley Care
21/08/2023,889145,0,646.8,BROWNCROSS HEALTHCARE LIMITED,8400039700,CommServs-ProvPayOP,Adults & Health,Bexley Care
21/08/2023,889146,0,646.8,BROWNCROSS HEALTHCARE LIMITED,8400039700,CommServs-ProvPayOP,Adults & Health,Bexley Care
21/08/2023,889147,0,659.4,BROWNCROSS HEALTHCARE LIMITED,8400039700,CommServs-ProvPayOP,Adults & Health,Bexley Care
21/08/2023,889148,0,708.9,BROWNCROSS HEALTHCARE LIMITED,8400039700,CommServs-ProvPayOP,Adults & Health,Bexley Care
21/08/2023,889149,0,711.76,BROWNCROSS HEALTHCARE LIMITED,8400039700,CommServs-ProvPayOP,Adults & Health,Bexley Care
21/08/2023,889150,0,711.76,BROWNCROSS HEALTHCARE LIMITED,8400039700,CommServs-ProvPayOP,Adults & Health,Bexley Care
21/08/2023,889151,0,711.76,BROWNCROSS HEALTHCARE LIMITED,8400039700,CommServs-ProvPayOP,Adults & Health,Bexley Care
21/08/2023,889152,0,711.76,BROWNCROSS HEALTHCARE LIMITED,8400039700,CommServs-ProvPayOP,Adults & Health,Bexley Care
21/08/2023,889153,0,730.8,BROWNCROSS HEALTHCARE LIMITED,8400039700,CommServs-ProvPayOP,Adults & Health,Bexley Care
21/08/2023,889154,0,840.56,BROWNCROSS HEALTHCARE LIMITED,8400039700,CommServs-ProvPayOP,Adults & Health,Bexley Care
21/08/2023,889155,0,840.56,BROWNCROSS HEALTHCARE LIMITED,8400039700,CommServs-ProvPayOP,Adults & Health,Bexley Care
21/08/2023,889156,0,840.56,BROWNCROSS HEALTHCARE LIMITED,8400039700,CommServs-ProvPayOP,Adults & Health,Bexley Care
21/08/2023,889157,0,840.56,BROWNCROSS HEALTHCARE LIMITED,8400039700,CommServs-ProvPayOP,Adults & Health,Bexley Care
21/08/2023,889158,0,1152.72,BROWNCROSS HEALTHCARE LIMITED,8400039700,CommServs-ProvPayOP,Adults & Health,Bexley Care
21/08/2023,889159,0,1152.72,BROWNCROSS HEALTHCARE LIMITED,8400039700,CommServs-ProvPayOP,Adults & Health,Bexley Care
21/08/2023,889160,0,1152.72,BROWNCROSS HEALTHCARE LIMITED,8400039700,CommServs-ProvPayOP,Adults & Health,Bexley Care
21/08/2023,889161,0,1152.72,BROWNCROSS HEALTHCARE LIMITED,8400039700,CommServs-ProvPayOP,Adults & Health,Bexley Care
21/08/2023,889162,0,1304.73,BROWNCROSS HEALTHCARE LIMITED,8400039700,CommServs-ProvPayOP,Adults & Health,Bexley Care
21/08/2023,889163,0,4777.21,BROWNCROSS HEALTHCARE LIMITED,8400039700,CommServs-ProvPayOP,Adults & Health,Bexley Care
21/08/2023,889164,0,9072.95,BROWNCROSS HEALTHCARE LIMITED,8400039700,CommServs-ProvPayOP,Adults & Health,Bexley Care
21/08/2023,889178,0,-546.56,CABRINI HOUSE,8400034700,CRAG income - Residential,Adults & Health,Bexley Care
21/08/2023,889179,0,5596.96,CABRINI HOUSE,8400034700,ResPlcmts-ProvPayWA,Adults & Health,Bexley Care
21/08/2023,889181,0,19108.32,CAMBIAN GROUP,8400481400,ResPlcmts-ProvPayWA,Adults & Health,Bexley Care
21/08/2023,889184,0,562.65,CAMPHILL MILTON KEYNES COMMUNITIES LTD,8400482100,CommServs-ProvPayWA,Adults & Health,Bexley Care
21/08/2023,889185,0,1750.48,CAMPHILL MILTON KEYNES COMMUNITIES LTD,8400482100,CommServs-ProvPayWA,Adults & Health,Bexley Care
21/08/2023,889186,0,1750.48,CAMPHILL MILTON KEYNES COMMUNITIES LTD,8400482100,CommServs-ProvPayWA,Adults & Health,Bexley Care
21/08/2023,889187,0,4649,CAMPHILL MILTON KEYNES COMMUNITIES LTD,8400482100,CommServs-ProvPayWA,Adults & Health,Bexley Care
21/08/2023,889191,0,7943.12,CANUTE CARE HOME,8400033100,ResPlcmts-ProvPayWA,Adults & Health,Bexley Care
21/08/2023,889192,0,11090.72,CANUTE CARE HOME,8400033100,ResPlcmts-ProvPayWA,Adults & Health,Bexley Care
21/08/2023,889193,0,12803.68,CANUTE CARE HOME,8400033100,ResPlcmts-ProvPayWA,Adults & Health,Bexley Care
04/08/2023,889204,0,635.2,CAPITAL HEALTHCARE,8400000300,CommServs-ProvPayOP,Adults & Health,Bexley Care
04/08/2023,889205,0,656.04,CAPITAL HEALTHCARE,8400000300,CommServs-ProvPayOP,Adults & Health,Bexley Care
04/08/2023,889206,0,656.08,CAPITAL HEALTHCARE,8400000300,CommServs-ProvPayOP,Adults & Health,Bexley Care
04/08/2023,889207,0,674.48,CAPITAL HEALTHCARE,8400000300,CommServs-ProvPayOP,Adults & Health,Bexley Care
04/08/2023,889208,0,752.96,CAPITAL HEALTHCARE,8400000300,CommServs-ProvPayOP,Adults & Health,Bexley Care
14/08/2023,889209,0,646.84,CAPITAL HEALTHCARE,8400000300,CommServs-ProvPayOP,Adults & Health,Bexley Care
14/08/2023,889210,0,656,CAPITAL HEALTHCARE,8400000300,CommServs-ProvPayOP,Adults & Health,Bexley Care
14/08/2023,889211,0,656.08,CAPITAL HEALTHCARE,8400000300,CommServs-ProvPayOP,Adults & Health,Bexley Care
14/08/2023,889212,0,674.44,CAPITAL HEALTHCARE,8400000300,CommServs-ProvPayOP,Adults & Health,Bexley Care
14/08/2023,889213,0,766.64,CAPITAL HEALTHCARE,8400000300,CommServs-ProvPayOP,Adults & Health,Bexley Care
21/08/2023,889214,0,651.44,CAPITAL HEALTHCARE,8400000300,CommServs-ProvPayOP,Adults & Health,Bexley Care
21/08/2023,889215,0,656,CAPITAL HEALTHCARE,8400000300,CommServs-ProvPayOP,Adults & Health,Bexley Care
21/08/2023,889216,0,665.2,CAPITAL HEALTHCARE,8400000300,CommServs-ProvPayOP,Adults & Health,Bexley Care
21/08/2023,889217,0,665.28,CAPITAL HEALTHCARE,8400000300,CommServs-ProvPayOP,Adults & Health,Bexley Care
21/08/2023,889218,0,734.36,CAPITAL HEALTHCARE,8400000300,CommServs-ProvPayOP,Adults & Health,Bexley Care
29/08/2023,889219,0,646.8,CAPITAL HEALTHCARE,8400000300,CommServs-ProvPayOP,Adults & Health,Bexley Care
29/08/2023,889220,0,646.8,CAPITAL HEALTHCARE,8400000300,CommServs-ProvPayOP,Adults & Health,Bexley Care
29/08/2023,889221,0,656.08,CAPITAL HEALTHCARE,8400000300,CommServs-ProvPayOP,Adults & Health,Bexley Care
29/08/2023,889222,0,656.08,CAPITAL HEALTHCARE,8400000300,CommServs-ProvPayOP,Adults & Health,Bexley Care
29/08/2023,889223,0,762.16,CAPITAL HEALTHCARE,8400000300,CommServs-ProvPayOP,Adults & Health,Bexley Care
21/08/2023,889231,0,6106.36,CARE MANAGEMENT GROUP LTD,8400024600,CommServs-ProvPayWA,Adults & Health,Bexley Care
21/08/2023,889232,0,8444.16,CARE MANAGEMENT GROUP LTD,8400024600,CommServs-ProvPayWA,Adults & Health,Bexley Care
14/08/2023,889233,0,-784.96,CAREFOCAL LTD,8400045200,CommServs-ProvPayOP,Adults & Health,Bexley Care
14/08/2023,889234,0,-784.96,CAREFOCAL LTD,8400045200,CommServs-ProvPayOP,Adults & Health,Bexley Care
14/08/2023,889235,0,-784.96,CAREFOCAL LTD,8400045200,CommServs-ProvPayOP,Adults & Health,Bexley Care
14/08/2023,889236,0,-784.96,CAREFOCAL LTD,8400045200,CommServs-ProvPayOP,Adults & Health,Bexley Care
14/08/2023,889237,0,784.96,CAREFOCAL LTD,8400045200,CommServs-ProvPayOP,Adults & Health,Bexley Care
14/08/2023,889238,0,784.96,CAREFOCAL LTD,8400045200,CommServs-ProvPayOP,Adults & Health,Bexley Care
14/08/2023,889239,0,784.96,CAREFOCAL LTD,8400045200,CommServs-ProvPayOP,Adults & Health,Bexley Care
14/08/2023,889240,0,784.96,CAREFOCAL LTD,8400045200,CommServs-ProvPayOP,Adults & Health,Bexley Care
14/08/2023,889241,0,1124.88,CAREFOCAL LTD,8400045200,CommServs-ProvPayOP,Adults & Health,Bexley Care
14/08/2023,889242,0,1124.88,CAREFOCAL LTD,8400045200,CommServs-ProvPayOP,Adults & Health,Bexley Care
14/08/2023,889243,0,1124.88,CAREFOCAL LTD,8400045200,CommServs-ProvPayOP,Adults & Health,Bexley Care
14/08/2023,889244,0,1124.88,CAREFOCAL LTD,8400045200,CommServs-ProvPayOP,Adults & Health,Bexley Care
21/08/2023,889245,0,-508.4,CAREFOCAL LTD,8400045200,CommServs-ProvPayWA,Adults & Health,Bexley Care
21/08/2023,889246,0,508.4,CAREFOCAL LTD,8400045200,CommServs-ProvPayWA,Adults & Health,Bexley Care
21/08/2023,889247,0,569.16,CAREFOCAL LTD,8400045200,CommServs-ProvPayWA,Adults & Health,Bexley Care
21/08/2023,889248,0,569.16,CAREFOCAL LTD,8400045200,CommServs-ProvPayWA,Adults & Health,Bexley Care
21/08/2023,889249,0,569.16,CAREFOCAL LTD,8400045200,CommServs-ProvPayWA,Adults & Health,Bexley Care
21/08/2023,889250,0,603.8,CAREFOCAL LTD,8400045200,CommServs-ProvPayWA,Adults & Health,Bexley Care
21/08/2023,889251,0,603.8,CAREFOCAL LTD,8400045200,CommServs-ProvPayWA,Adults & Health,Bexley Care
21/08/2023,889252,0,603.8,CAREFOCAL LTD,8400045200,CommServs-ProvPayWA,Adults & Health,Bexley Care
21/08/2023,889253,0,603.8,CAREFOCAL LTD,8400045200,CommServs-ProvPayWA,Adults & Health,Bexley Care
21/08/2023,889254,0,603.8,CAREFOCAL LTD,8400045200,CommServs-ProvPayWA,Adults & Health,Bexley Care
21/08/2023,889255,0,609.56,CAREFOCAL LTD,8400045200,CommServs-ProvPayOP,Adults & Health,Bexley Care
21/08/2023,889256,0,609.56,CAREFOCAL LTD,8400045200,CommServs-ProvPayOP,Adults & Health,Bexley Care
21/08/2023,889257,0,609.56,CAREFOCAL LTD,8400045200,CommServs-ProvPayOP,Adults & Health,Bexley Care
29/08/2023,889258,0,-596,CAREFOCAL LTD,8400045200,CommServs-ProvPayOP,Adults & Health,Bexley Care
29/08/2023,889259,0,-575.2,CAREFOCAL LTD,8400045200,CommServs-ProvPayOP,Adults & Health,Bexley Care
29/08/2023,889260,0,-508.4,CAREFOCAL LTD,8400045200,CommServs-ProvPayWA,Adults & Health,Bexley Care
29/08/2023,889261,0,-508.4,CAREFOCAL LTD,8400045200,CommServs-ProvPayWA,Adults & Health,Bexley Care
29/08/2023,889262,0,-508.4,CAREFOCAL LTD,8400045200,CommServs-ProvPayWA,Adults & Health,Bexley Care
29/08/2023,889263,0,-508.4,CAREFOCAL LTD,8400045200,CommServs-ProvPayWA,Adults & Health,Bexley Care
29/08/2023,889264,0,-508.4,CAREFOCAL LTD,8400045200,CommServs-ProvPayWA,Adults & Health,Bexley Care
29/08/2023,889265,0,-508.4,CAREFOCAL LTD,8400045200,CommServs-ProvPayWA,Adults & Health,Bexley Care
29/08/2023,889266,0,501.2,CAREFOCAL LTD,8400045200,CommServs-ProvPayOP,Adults & Health,Bexley Care
29/08/2023,889267,0,501.2,CAREFOCAL LTD,8400045200,CommServs-ProvPayOP,Adults & Health,Bexley Care
29/08/2023,889268,0,501.2,CAREFOCAL LTD,8400045200,CommServs-ProvPayOP,Adults & Health,Bexley Care
29/08/2023,889269,0,501.2,CAREFOCAL LTD,8400045200,CommServs-ProvPayOP,Adults & Health,Bexley Care
29/08/2023,889270,0,508.4,CAREFOCAL LTD,8400045200,CommServs-ProvPayWA,Adults & Health,Bexley Care
29/08/2023,889271,0,508.4,CAREFOCAL LTD,8400045200,CommServs-ProvPayWA,Adults & Health,Bexley Care
29/08/2023,889272,0,508.4,CAREFOCAL LTD,8400045200,CommServs-ProvPayWA,Adults & Health,Bexley Care
29/08/2023,889273,0,508.4,CAREFOCAL LTD,8400045200,CommServs-ProvPayWA,Adults & Health,Bexley Care
29/08/2023,889274,0,508.4,CAREFOCAL LTD,8400045200,CommServs-ProvPayWA,Adults & Health,Bexley Care
29/08/2023,889275,0,508.4,CAREFOCAL LTD,8400045200,CommServs-ProvPayWA,Adults & Health,Bexley Care
29/08/2023,889276,0,569.16,CAREFOCAL LTD,8400045200,CommServs-ProvPayWA,Adults & Health,Bexley Care
29/08/2023,889277,0,569.16,CAREFOCAL LTD,8400045200,CommServs-ProvPayWA,Adults & Health,Bexley Care
29/08/2023,889278,0,569.16,CAREFOCAL LTD,8400045200,CommServs-ProvPayWA,Adults & Health,Bexley Care
29/08/2023,889279,0,569.16,CAREFOCAL LTD,8400045200,CommServs-ProvPayWA,Adults & Health,Bexley Care
29/08/2023,889280,0,569.16,CAREFOCAL LTD,8400045200,CommServs-ProvPayWA,Adults & Health,Bexley Care
29/08/2023,889281,0,569.16,CAREFOCAL LTD,8400045200,CommServs-ProvPayWA,Adults & Health,Bexley Care
29/08/2023,889282,0,582.4,CAREFOCAL LTD,8400045200,CommServs-ProvPayOP,Adults & Health,Bexley Care
29/08/2023,889283,0,603.8,CAREFOCAL LTD,8400045200,CommServs-ProvPayWA,Adults & Health,Bexley Care
29/08/2023,889284,0,603.8,CAREFOCAL LTD,8400045200,CommServs-ProvPayWA,Adults & Health,Bexley Care
29/08/2023,889285,0,603.8,CAREFOCAL LTD,8400045200,CommServs-ProvPayWA,Adults & Health,Bexley Care
29/08/2023,889286,0,603.8,CAREFOCAL LTD,8400045200,CommServs-ProvPayWA,Adults & Health,Bexley Care
29/08/2023,889287,0,646.8,CAREFOCAL LTD,8400045200,CommServs-ProvPayOP,Adults & Health,Bexley Care
29/08/2023,889288,0,646.8,CAREFOCAL LTD,8400045200,CommServs-ProvPayOP,Adults & Health,Bexley Care
29/08/2023,889289,0,646.8,CAREFOCAL LTD,8400045200,CommServs-ProvPayOP,Adults & Health,Bexley Care
29/08/2023,889290,0,646.8,CAREFOCAL LTD,8400045200,CommServs-ProvPayOP,Adults & Health,Bexley Care
29/08/2023,889291,0,646.8,CAREFOCAL LTD,8400045200,CommServs-ProvPayOP,Adults & Health,Bexley Care
29/08/2023,889292,0,646.8,CAREFOCAL LTD,8400045200,CommServs-ProvPayOP,Adults & Health,Bexley Care
29/08/2023,889293,0,646.8,CAREFOCAL LTD,8400045200,CommServs-ProvPayOP,Adults & Health,Bexley Care
29/08/2023,889294,0,646.8,CAREFOCAL LTD,8400045200,CommServs-ProvPayOP,Adults & Health,Bexley Care
29/08/2023,889295,0,646.8,CAREFOCAL LTD,8400045200,CommServs-ProvPayOP,Adults & Health,Bexley Care
29/08/2023,889296,0,646.8,CAREFOCAL LTD,8400045200,CommServs-ProvPayOP,Adults & Health,Bexley Care
29/08/2023,889297,0,646.8,CAREFOCAL LTD,8400045200,CommServs-ProvPayOP,Adults & Health,Bexley Care
29/08/2023,889298,0,646.8,CAREFOCAL LTD,8400045200,CommServs-ProvPayOP,Adults & Health,Bexley Care
29/08/2023,889299,0,646.8,CAREFOCAL LTD,8400045200,CommServs-ProvPayWA,Adults & Health,Bexley Care
29/08/2023,889300,0,646.8,CAREFOCAL LTD,8400045200,CommServs-ProvPayWA,Adults & Health,Bexley Care
29/08/2023,889301,0,646.8,CAREFOCAL LTD,8400045200,CommServs-ProvPayWA,Adults & Health,Bexley Care
29/08/2023,889302,0,646.8,CAREFOCAL LTD,8400045200,CommServs-ProvPayWA,Adults & Health,Bexley Care
29/08/2023,889303,0,646.8,CAREFOCAL LTD,8400045200,CommServs-ProvPayOP,Adults & Health,Bexley Care
29/08/2023,889304,0,646.8,CAREFOCAL LTD,8400045200,CommServs-ProvPayOP,Adults & Health,Bexley Care
29/08/2023,889305,0,646.8,CAREFOCAL LTD,8400045200,CommServs-ProvPayOP,Adults & Health,Bexley Care
29/08/2023,889306,0,646.8,CAREFOCAL LTD,8400045200,CommServs-ProvPayOP,Adults & Health,Bexley Care
29/08/2023,889307,0,686.08,CAREFOCAL LTD,8400045200,CommServs-ProvPayOP,Adults & Health,Bexley Care
29/08/2023,889308,0,686.08,CAREFOCAL LTD,8400045200,CommServs-ProvPayOP,Adults & Health,Bexley Care
29/08/2023,889309,0,686.08,CAREFOCAL LTD,8400045200,CommServs-ProvPayOP,Adults & Health,Bexley Care
29/08/2023,889310,0,764.64,CAREFOCAL LTD,8400045200,CommServs-ProvPayOP,Adults & Health,Bexley Care
29/08/2023,889311,0,784.96,CAREFOCAL LTD,8400045200,CommServs-ProvPayOP,Adults & Health,Bexley Care
29/08/2023,889312,0,784.96,CAREFOCAL LTD,8400045200,CommServs-ProvPayOP,Adults & Health,Bexley Care
29/08/2023,889313,0,784.96,CAREFOCAL LTD,8400045200,CommServs-ProvPayOP,Adults & Health,Bexley Care
29/08/2023,889314,0,824.88,CAREFOCAL LTD,8400045200,CommServs-ProvPayWA,Adults & Health,Bexley Care
29/08/2023,889315,0,824.88,CAREFOCAL LTD,8400045200,CommServs-ProvPayWA,Adults & Health,Bexley Care
29/08/2023,889316,0,824.88,CAREFOCAL LTD,8400045200,CommServs-ProvPayWA,Adults & Health,Bexley Care
29/08/2023,889317,0,824.88,CAREFOCAL LTD,8400045200,CommServs-ProvPayWA,Adults & Health,Bexley Care
29/08/2023,889318,0,840,CAREFOCAL LTD,8400045200,CommServs-ProvPayOP,Adults & Health,Bexley Care
29/08/2023,889319,0,840,CAREFOCAL LTD,8400045200,CommServs-ProvPayOP,Adults & Health,Bexley Care
29/08/2023,889320,0,840,CAREFOCAL LTD,8400045200,CommServs-ProvPayOP,Adults & Health,Bexley Care
29/08/2023,889321,0,840,CAREFOCAL LTD,8400045200,CommServs-ProvPayOP,Adults & Health,Bexley Care
29/08/2023,889322,0,1124.88,CAREFOCAL LTD,8400045200,CommServs-ProvPayOP,Adults & Health,Bexley Care
29/08/2023,889323,0,1237.32,CAREFOCAL LTD,8400045200,CommServs-ProvPayOP,Adults & Health,Bexley Care
29/08/2023,889324,0,1237.32,CAREFOCAL LTD,8400045200,CommServs-ProvPayOP,Adults & Health,Bexley Care
29/08/2023,889325,0,1237.32,CAREFOCAL LTD,8400045200,CommServs-ProvPayOP,Adults & Health,Bexley Care
29/08/2023,889326,0,1237.32,CAREFOCAL LTD,8400045200,CommServs-ProvPayOP,Adults & Health,Bexley Care
04/08/2023,889327,0,804.46,CARERS 4 U LTD,8400018900,CommServs-ProvPayOP,Adults & Health,Bexley Care
29/08/2023,889328,0,804.54,CARERS 4 U LTD,8400018900,CommServs-ProvPayOP,Adults & Health,Bexley Care
04/08/2023,889329,0,501.2,CAREWATCH AGENCY,8400021200,CommServs-ProvPayOP,Adults & Health,Bexley Care
04/08/2023,889330,0,501.2,CAREWATCH AGENCY,8400021200,CommServs-ProvPayOP,Adults & Health,Bexley Care
04/08/2023,889331,0,511.68,CAREWATCH AGENCY,8400021200,CommServs-ProvPayWA,Adults & Health,Bexley Care
04/08/2023,889332,0,626,CAREWATCH AGENCY,8400021200,CommServs-ProvPayOP,Adults & Health,Bexley Care
04/08/2023,889333,0,646.92,CAREWATCH AGENCY,8400021200,CommServs-ProvPayOP,Adults & Health,Bexley Care
04/08/2023,889334,0,656.08,CAREWATCH AGENCY,8400021200,CommServs-ProvPayOP,Adults & Health,Bexley Care
04/08/2023,889335,0,812.96,CAREWATCH AGENCY,8400021200,CommServs-ProvPayWA,Adults & Health,Bexley Care
04/08/2023,889336,0,813.04,CAREWATCH AGENCY,8400021200,CommServs-ProvPayOP,Adults & Health,Bexley Care
04/08/2023,889337,0,849.84,CAREWATCH AGENCY,8400021200,CommServs-ProvPayOP,Adults & Health,Bexley Care
04/08/2023,889338,0,857.36,CAREWATCH AGENCY,8400021200,CommServs-ProvPayOP,Adults & Health,Bexley Care
14/08/2023,889339,0,501.2,CAREWATCH AGENCY,8400021200,CommServs-ProvPayOP,Adults & Health,Bexley Care
14/08/2023,889340,0,501.2,CAREWATCH AGENCY,8400021200,CommServs-ProvPayOP,Adults & Health,Bexley Care
14/08/2023,889341,0,518.84,CAREWATCH AGENCY,8400021200,CommServs-ProvPayOP,Adults & Health,Bexley Care
14/08/2023,889342,0,646.8,CAREWATCH AGENCY,8400021200,CommServs-ProvPayOP,Adults & Health,Bexley Care
14/08/2023,889343,0,683.8,CAREWATCH AGENCY,8400021200,CommServs-ProvPayOP,Adults & Health,Bexley Care
14/08/2023,889344,0,785.48,CAREWATCH AGENCY,8400021200,CommServs-ProvPayOP,Adults & Health,Bexley Care
14/08/2023,889345,0,831.36,CAREWATCH AGENCY,8400021200,CommServs-ProvPayOP,Adults & Health,Bexley Care
14/08/2023,889346,0,831.36,CAREWATCH AGENCY,8400021200,CommServs-ProvPayWA,Adults & Health,Bexley Care
14/08/2023,889347,0,840.48,CAREWATCH AGENCY,8400021200,CommServs-ProvPayWA,Adults & Health,Bexley Care
14/08/2023,889348,0,848.52,CAREWATCH AGENCY,8400021200,CommServs-ProvPayOP,Adults & Health,Bexley Care
21/08/2023,889349,0,519.6,CAREWATCH AGENCY,8400021200,CommServs-ProvPayOP,Adults & Health,Bexley Care
21/08/2023,889350,0,646.8,CAREWATCH AGENCY,8400021200,CommServs-ProvPayOP,Adults & Health,Bexley Care
21/08/2023,889351,0,646.8,CAREWATCH AGENCY,8400021200,CommServs-ProvPayOP,Adults & Health,Bexley Care
21/08/2023,889352,0,656.08,CAREWATCH AGENCY,8400021200,CommServs-ProvPayOP,Adults & Health,Bexley Care
21/08/2023,889353,0,776.16,CAREWATCH AGENCY,8400021200,CommServs-ProvPayOP,Adults & Health,Bexley Care
21/08/2023,889354,0,831.44,CAREWATCH AGENCY,8400021200,CommServs-ProvPayWA,Adults & Health,Bexley Care
21/08/2023,889355,0,840.56,CAREWATCH AGENCY,8400021200,CommServs-ProvPayOP,Adults & Health,Bexley Care
21/08/2023,889356,0,859.04,CAREWATCH AGENCY,8400021200,CommServs-ProvPayWA,Adults & Health,Bexley Care
21/08/2023,889357,0,885.16,CAREWATCH AGENCY,8400021200,CommServs-ProvPayOP,Adults & Health,Bexley Care
29/08/2023,889358,0,500.68,CAREWATCH AGENCY,8400021200,CommServs-ProvPayOP,Adults & Health,Bexley Care
29/08/2023,889359,0,501.2,CAREWATCH AGENCY,8400021200,CommServs-ProvPayOP,Adults & Health,Bexley Care
29/08/2023,889360,0,501.2,CAREWATCH AGENCY,8400021200,CommServs-ProvPayOP,Adults & Health,Bexley Care
29/08/2023,889361,0,646.8,CAREWATCH AGENCY,8400021200,CommServs-ProvPayOP,Adults & Health,Bexley Care
29/08/2023,889362,0,674.4,CAREWATCH AGENCY,8400021200,CommServs-ProvPayOP,Adults & Health,Bexley Care
29/08/2023,889363,0,674.56,CAREWATCH AGENCY,8400021200,CommServs-ProvPayOP,Adults & Health,Bexley Care
29/08/2023,889364,0,794.72,CAREWATCH AGENCY,8400021200,CommServs-ProvPayOP,Adults & Health,Bexley Care
29/08/2023,889365,0,794.8,CAREWATCH AGENCY,8400021200,CommServs-ProvPayWA,Adults & Health,Bexley Care
29/08/2023,889366,0,849.76,CAREWATCH AGENCY,8400021200,CommServs-ProvPayWA,Adults & Health,Bexley Care
29/08/2023,889367,0,850.46,CAREWATCH AGENCY,8400021200,CommServs-ProvPayOP,Adults & Health,Bexley Care
29/08/2023,889368,0,855.62,CAREWATCH AGENCY,8400021200,CommServs-ProvPayOP,Adults & Health,Bexley Care
21/08/2023,889371,0,6305.84,REDACTED PERSONAL DATA,8300085600,CommServs-ISFDirectPayOP,Adults & Health,Bexley Care
21/08/2023,889372,0,500,REDACTED PERSONAL DATA,8300105700,CommServs-DirectPayWA,Adults & Health,Bexley Care
21/08/2023,889374,0,6210.4,CASTEL FROMA NEURO CARE,8400031001,NurPlcmts-ProvPayWA,Adults & Health,Bexley Care
21/08/2023,889378,0,10956.8,CASTLETON ROAD,8400031400,ResPlcmts-ProvPayWA,Adults & Health,Bexley Care
21/08/2023,889380,0,2998.8,CEDAR COURT EMI RCHE,8400008200,ResPlcmts-ProvPayOP,Adults & Health,Bexley Care
21/08/2023,889381,0,2998.8,CEDAR COURT EMI RCHE,8400008200,ResPlcmts-ProvPayOP,Adults & Health,Bexley Care
21/08/2023,889382,0,2998.8,CEDAR COURT EMI RCHE,8400008200,ResPlcmts-ProvPayOP,Adults & Health,Bexley Care
21/08/2023,889383,0,2998.8,CEDAR COURT EMI RCHE,8400008200,ResPlcmts-ProvPayOP,Adults & Health,Bexley Care
21/08/2023,889384,0,2998.8,CEDAR COURT EMI RCHE,8400008200,ResPlcmts-ProvPayOP,Adults & Health,Bexley Care
21/08/2023,889385,0,2998.8,CEDAR COURT EMI RCHE,8400008200,ResPlcmts-ProvPayOP,Adults & Health,Bexley Care
21/08/2023,889386,0,2998.8,CEDAR COURT EMI RCHE,8400008200,ResPlcmts-ProvPayOP,Adults & Health,Bexley Care
21/08/2023,889387,0,2998.8,CEDAR COURT EMI RCHE,8400008200,ResPlcmts-ProvPayOP,Adults & Health,Bexley Care
21/08/2023,889388,0,2998.8,CEDAR COURT EMI RCHE,8400008200,ResPlcmts-ProvPayOP,Adults & Health,Bexley Care
21/08/2023,889389,0,2998.8,CEDAR COURT EMI RCHE,8400008200,ResPlcmts-ProvPayOP,Adults & Health,Bexley Care
21/08/2023,889390,0,2998.8,CEDAR COURT EMI RCHE,8400008200,ResPlcmts-ProvPayOP,Adults & Health,Bexley Care
21/08/2023,889391,0,2998.8,CEDAR COURT EMI RCHE,8400008200,ResPlcmts-ProvPayOP,Adults & Health,Bexley Care
21/08/2023,889392,0,2998.8,CEDAR COURT EMI RCHE,8400008200,ResPlcmts-ProvPayOP,Adults & Health,Bexley Care
21/08/2023,889393,0,2998.8,CEDAR COURT EMI RCHE,8400008200,ResPlcmts-ProvPayOP,Adults & Health,Bexley Care
21/08/2023,889394,0,2998.8,CEDAR COURT EMI RCHE,8400008200,ResPlcmts-ProvPayOP,Adults & Health,Bexley Care
21/08/2023,889395,0,2998.8,CEDAR COURT EMI RCHE,8400008200,ResPlcmts-ProvPayOP,Adults & Health,Bexley Care
21/08/2023,889396,0,2998.8,CEDAR COURT EMI RCHE,8400008200,ResPlcmts-ProvPayWA,Adults & Health,Bexley Care
21/08/2023,889397,0,2998.8,CEDAR COURT EMI RCHE,8400008200,ResPlcmts-ProvPayOP,Adults & Health,Bexley Care
21/08/2023,889398,0,2998.8,CEDAR COURT EMI RCHE,8400008200,ResPlcmts-ProvPayOP,Adults & Health,Bexley Care
21/08/2023,889399,0,2998.8,CEDAR COURT EMI RCHE,8400008200,ResPlcmts-ProvPayOP,Adults & Health,Bexley Care
21/08/2023,889400,0,2998.8,CEDAR COURT EMI RCHE,8400008200,ResPlcmts-ProvPayOP,Adults & Health,Bexley Care
21/08/2023,889401,0,2998.8,CEDAR COURT EMI RCHE,8400008200,ResPlcmts-ProvPayOP,Adults & Health,Bexley Care
21/08/2023,889402,0,2998.8,CEDAR COURT EMI RCHE,8400008200,ResPlcmts-ProvPayOP,Adults & Health,Bexley Care
21/08/2023,889403,0,2998.8,CEDAR COURT EMI RCHE,8400008200,ASC Interim Beds,Adults & Health,Bexley Care
21/08/2023,889404,0,2998.8,CEDAR COURT EMI RCHE,8400008200,ASC Interim Beds,Adults & Health,Bexley Care
21/08/2023,889405,0,4688,CEDAR COURT EMI RCHE,8400008200,ResPlcmts-ProvPayOP,Adults & Health,Bexley Care
21/08/2023,889406,0,4800,CEDAR COURT EMI RCHE,8400008200,ResPlcmts-ProvPayOP,Adults & Health,Bexley Care
21/08/2023,889432,0,-674.08,CHARLTON PARK CARE CENTRE,8400034600,CRAG income - Nursing,Adults & Health,Bexley Care
21/08/2023,889433,0,2904.12,CHARLTON PARK CARE CENTRE,8400034600,NurPlcmts-ProvPayOP,Adults & Health,Bexley Care
21/08/2023,889434,0,2999.12,CHARLTON PARK CARE CENTRE,8400034600,NurPlcmts-ProvPayOP,Adults & Health,Bexley Care
21/08/2023,889435,0,3573.88,CHARLTON PARK CARE CENTRE,8400034600,NurPlcmts-ProvPayOP,Adults & Health,Bexley Care
21/08/2023,889436,0,3855.6,CHARLTON PARK CARE CENTRE,8400034600,NurPlcmts-ProvPayOP,Adults & Health,Bexley Care
21/08/2023,889437,0,1376.52,REDACTED PERSONAL DATA,8400025800,CommServs-ProvPayWA,Adults & Health,Bexley Care
21/08/2023,889438,0,1535.44,REDACTED PERSONAL DATA,8400025800,CommServs-ProvPayOP,Adults & Health,Bexley Care
21/08/2023,889439,0,-1382.52,REDACTED PERSONAL DATA,8300084300,CommServs-DirectPayOP,Adults & Health,Bexley Care
21/08/2023,889440,0,1780.23,REDACTED PERSONAL DATA,8300084300,CommServs-DirectPayOP,Adults & Health,Bexley Care
21/08/2023,889441,0,1846.16,REDACTED PERSONAL DATA,8300084300,CommServs-DirectPayOP,Adults & Health,Bexley Care
21/08/2023,889445,0,805.24,REDACTED PERSONAL DATA,8300105800,CommServs-DirectPayWA,Adults & Health,Bexley Care
21/08/2023,889446,0,805.24,REDACTED PERSONAL DATA,8300105800,CommServs-DirectPayWA,Adults & Health,Bexley Care
21/08/2023,889447,0,7817.52,CHILTERN SUPPORT AND HOUSING LIMITED,8400479800,CommServs-ProvPayWA,Adults & Health,Bexley Care
21/08/2023,889450,0,86703.65,CHOICE SUPPORT,8387600,ResPlcmts-ProvPayWA,Adults & Health,Bexley Care
21/08/2023,889451,0,-870.3,CHOICE SUPPORT COMMUNITY SUPPORT,8400012300,CommServs-ProvPayOP,Adults & Health,Bexley Care
21/08/2023,889452,0,522.18,CHOICE SUPPORT COMMUNITY SUPPORT,8400012300,CommServs-ProvPayWA,Adults & Health,Bexley Care
21/08/2023,889453,0,540.36,CHOICE SUPPORT COMMUNITY SUPPORT,8400012300,CommServs-ProvPayWA,Adults & Health,Bexley Care
21/08/2023,889454,0,540.36,CHOICE SUPPORT COMMUNITY SUPPORT,8400012300,CommServs-ProvPayWA,Adults & Health,Bexley Care
21/08/2023,889455,0,540.36,CHOICE SUPPORT COMMUNITY SUPPORT,8400012300,CommServs-ProvPayWA,Adults & Health,Bexley Care
21/08/2023,889456,0,540.36,CHOICE SUPPORT COMMUNITY SUPPORT,8400012300,CommServs-ProvPayWA,Adults & Health,Bexley Care
21/08/2023,889457,0,540.36,CHOICE SUPPORT COMMUNITY SUPPORT,8400012300,CommServs-ProvPayWA,Adults & Health,Bexley Care
21/08/2023,889458,0,564.36,CHOICE SUPPORT COMMUNITY SUPPORT,8400012300,CommServs-ProvPayWA,Adults & Health,Bexley Care
21/08/2023,889459,0,564.36,CHOICE SUPPORT COMMUNITY SUPPORT,8400012300,CommServs-ProvPayWA,Adults & Health,Bexley Care
21/08/2023,889460,0,564.36,CHOICE SUPPORT COMMUNITY SUPPORT,8400012300,CommServs-ProvPayWA,Adults & Health,Bexley Care
21/08/2023,889461,0,564.36,CHOICE SUPPORT COMMUNITY SUPPORT,8400012300,CommServs-ProvPayWA,Adults & Health,Bexley Care
21/08/2023,889462,0,564.36,CHOICE SUPPORT COMMUNITY SUPPORT,8400012300,CommServs-ProvPayWA,Adults & Health,Bexley Care
21/08/2023,889463,0,564.36,CHOICE SUPPORT COMMUNITY SUPPORT,8400012300,CommServs-ProvPayWA,Adults & Health,Bexley Care
21/08/2023,889464,0,564.36,CHOICE SUPPORT COMMUNITY SUPPORT,8400012300,CommServs-ProvPayWA,Adults & Health,Bexley Care
21/08/2023,889465,0,696.24,CHOICE SUPPORT COMMUNITY SUPPORT,8400012300,CommServs-ProvPayWA,Adults & Health,Bexley Care
21/08/2023,889466,0,696.24,CHOICE SUPPORT COMMUNITY SUPPORT,8400012300,CommServs-ProvPayWA,Adults & Health,Bexley Care
21/08/2023,889467,0,696.24,CHOICE SUPPORT COMMUNITY SUPPORT,8400012300,CommServs-ProvPayWA,Adults & Health,Bexley Care
21/08/2023,889468,0,696.24,CHOICE SUPPORT COMMUNITY SUPPORT,8400012300,CommServs-ProvPayWA,Adults & Health,Bexley Care
21/08/2023,889469,0,720.48,CHOICE SUPPORT COMMUNITY SUPPORT,8400012300,CommServs-ProvPayOP,Adults & Health,Bexley Care
21/08/2023,889470,0,720.48,CHOICE SUPPORT COMMUNITY SUPPORT,8400012300,CommServs-ProvPayWA,Adults & Health,Bexley Care
21/08/2023,889471,0,720.48,CHOICE SUPPORT COMMUNITY SUPPORT,8400012300,CommServs-ProvPayWA,Adults & Health,Bexley Care
21/08/2023,889472,0,720.48,CHOICE SUPPORT COMMUNITY SUPPORT,8400012300,CommServs-ProvPayWA,Adults & Health,Bexley Care
21/08/2023,889473,0,720.48,CHOICE SUPPORT COMMUNITY SUPPORT,8400012300,CommServs-ProvPayWA,Adults & Health,Bexley Care
21/08/2023,889474,0,720.48,CHOICE SUPPORT COMMUNITY SUPPORT,8400012300,CommServs-ProvPayWA,Adults & Health,Bexley Care
21/08/2023,889475,0,720.48,CHOICE SUPPORT COMMUNITY SUPPORT,8400012300,CommServs-ProvPayWA,Adults & Health,Bexley Care
21/08/2023,889476,0,735.68,CHOICE SUPPORT COMMUNITY SUPPORT,8400012300,CommServs-ProvPayWA,Adults & Health,Bexley Care
21/08/2023,889477,0,752.48,CHOICE SUPPORT COMMUNITY SUPPORT,8400012300,CommServs-ProvPayWA,Adults & Health,Bexley Care
21/08/2023,889478,0,752.48,CHOICE SUPPORT COMMUNITY SUPPORT,8400012300,CommServs-ProvPayWA,Adults & Health,Bexley Care
21/08/2023,889479,0,752.48,CHOICE SUPPORT COMMUNITY SUPPORT,8400012300,CommServs-ProvPayWA,Adults & Health,Bexley Care
21/08/2023,889480,0,752.48,CHOICE SUPPORT COMMUNITY SUPPORT,8400012300,CommServs-ProvPayWA,Adults & Health,Bexley Care
21/08/2023,889481,0,752.48,CHOICE SUPPORT COMMUNITY SUPPORT,8400012300,CommServs-ProvPayWA,Adults & Health,Bexley Care
21/08/2023,889482,0,900.6,CHOICE SUPPORT COMMUNITY SUPPORT,8400012300,CommServs-ProvPayWA,Adults & Health,Bexley Care
21/08/2023,889483,0,900.6,CHOICE SUPPORT COMMUNITY SUPPORT,8400012300,CommServs-ProvPayWA,Adults & Health,Bexley Care
21/08/2023,889484,0,900.6,CHOICE SUPPORT COMMUNITY SUPPORT,8400012300,CommServs-ProvPayWA,Adults & Health,Bexley Care
21/08/2023,889485,0,900.6,CHOICE SUPPORT COMMUNITY SUPPORT,8400012300,CommServs-ProvPayWA,Adults & Health,Bexley Care
21/08/2023,889486,0,900.6,CHOICE SUPPORT COMMUNITY SUPPORT,8400012300,CommServs-ProvPayWA,Adults & Health,Bexley Care
21/08/2023,889487,0,900.6,CHOICE SUPPORT COMMUNITY SUPPORT,8400012300,CommServs-ProvPayWA,Adults & Health,Bexley Care
21/08/2023,889488,0,900.6,CHOICE SUPPORT COMMUNITY SUPPORT,8400012300,CommServs-ProvPayWA,Adults & Health,Bexley Care
21/08/2023,889489,0,900.6,CHOICE SUPPORT COMMUNITY SUPPORT,8400012300,CommServs-ProvPayWA,Adults & Health,Bexley Care
21/08/2023,889490,0,900.6,CHOICE SUPPORT COMMUNITY SUPPORT,8400012300,CommServs-ProvPayWA,Adults & Health,Bexley Care
21/08/2023,889491,0,900.6,CHOICE SUPPORT COMMUNITY SUPPORT,8400012300,CommServs-ProvPayWA,Adults & Health,Bexley Care
21/08/2023,889492,0,900.6,CHOICE SUPPORT COMMUNITY SUPPORT,8400012300,CommServs-ProvPayWA,Adults & Health,Bexley Care
21/08/2023,889493,0,900.6,CHOICE SUPPORT COMMUNITY SUPPORT,8400012300,CommServs-ProvPayWA,Adults & Health,Bexley Care
21/08/2023,889494,0,900.6,CHOICE SUPPORT COMMUNITY SUPPORT,8400012300,CommServs-ProvPayWA,Adults & Health,Bexley Care
21/08/2023,889495,0,900.6,CHOICE SUPPORT COMMUNITY SUPPORT,8400012300,CommServs-ProvPayWA,Adults & Health,Bexley Care
21/08/2023,889496,0,900.6,CHOICE SUPPORT COMMUNITY SUPPORT,8400012300,CommServs-ProvPayWA,Adults & Health,Bexley Care
21/08/2023,889497,0,940.6,CHOICE SUPPORT COMMUNITY SUPPORT,8400012300,CommServs-ProvPayWA,Adults & Health,Bexley Care
21/08/2023,889498,0,940.6,CHOICE SUPPORT COMMUNITY SUPPORT,8400012300,CommServs-ProvPayWA,Adults & Health,Bexley Care
21/08/2023,889499,0,1044.36,CHOICE SUPPORT COMMUNITY SUPPORT,8400012300,CommServs-ProvPayWA,Adults & Health,Bexley Care
21/08/2023,889500,0,1103.52,CHOICE SUPPORT COMMUNITY SUPPORT,8400012300,CommServs-ProvPayWA,Adults & Health,Bexley Care
21/08/2023,889501,0,1176.7,CHOICE SUPPORT COMMUNITY SUPPORT,8400027700,CommServs-ProvPayWA,Adults & Health,Bexley Care
21/08/2023,889502,0,1392.48,CHOICE SUPPORT COMMUNITY SUPPORT,8400012300,CommServs-ProvPayOP,Adults & Health,Bexley Care
21/08/2023,889503,0,1392.48,CHOICE SUPPORT COMMUNITY SUPPORT,8400012300,CommServs-ProvPayWA,Adults & Health,Bexley Care
21/08/2023,889504,0,1621.76,CHOICE SUPPORT COMMUNITY SUPPORT,8400027700,CommServs-ProvPayOP,Adults & Health,Bexley Care
21/08/2023,889505,0,1740.6,CHOICE SUPPORT COMMUNITY SUPPORT,8400012300,CommServs-ProvPayWA,Adults & Health,Bexley Care
21/08/2023,889506,0,1819.16,CHOICE SUPPORT COMMUNITY SUPPORT,8400027700,CommServs-ProvPayWA,Adults & Health,Bexley Care
21/08/2023,889507,0,1839.2,CHOICE SUPPORT COMMUNITY SUPPORT,8400012300,CommServs-ProvPayWA,Adults & Health,Bexley Care
21/08/2023,889508,0,2341.56,CHOICE SUPPORT COMMUNITY SUPPORT,8400012300,CommServs-ProvPayOP,Adults & Health,Bexley Care
21/08/2023,889509,0,2353.4,CHOICE SUPPORT COMMUNITY SUPPORT,8400027700,CommServs-ProvPayWA,Adults & Health,Bexley Care
21/08/2023,889510,0,2353.4,CHOICE SUPPORT COMMUNITY SUPPORT,8400027700,CommServs-ProvPayWA,Adults & Health,Bexley Care
21/08/2023,889511,0,2353.4,CHOICE SUPPORT COMMUNITY SUPPORT,8400027700,CommServs-ProvPayWA,Adults & Health,Bexley Care
21/08/2023,889512,0,2353.4,CHOICE SUPPORT COMMUNITY SUPPORT,8400027700,CommServs-ProvPayWA,Adults & Health,Bexley Care
21/08/2023,889513,0,2581.88,CHOICE SUPPORT COMMUNITY SUPPORT,8400027700,CommServs-ProvPayWA,Adults & Health,Bexley Care
21/08/2023,889514,0,2742.16,CHOICE SUPPORT COMMUNITY SUPPORT,8400027700,CommServs-ProvPayWA,Adults & Health,Bexley Care
21/08/2023,889515,0,3191.4,CHOICE SUPPORT COMMUNITY SUPPORT,8400027700,CommServs-ProvPayWA,Adults & Health,Bexley Care
21/08/2023,889516,0,3191.4,CHOICE SUPPORT COMMUNITY SUPPORT,8400027700,CommServs-ProvPayWA,Adults & Health,Bexley Care
21/08/2023,889517,0,3191.4,CHOICE SUPPORT COMMUNITY SUPPORT,8400027700,CommServs-ProvPayWA,Adults & Health,Bexley Care
21/08/2023,889518,0,3191.4,CHOICE SUPPORT COMMUNITY SUPPORT,8400027700,CommServs-ProvPayWA,Adults & Health,Bexley Care
21/08/2023,889519,0,3814,CHOICE SUPPORT COMMUNITY SUPPORT,8400017000,ResPlcmts-ProvPayWA,Adults & Health,Bexley Care
21/08/2023,889520,0,3967.8,CHOICE SUPPORT COMMUNITY SUPPORT,8400017000,ResPlcmts-ProvPayWA,Adults & Health,Bexley Care
21/08/2023,889521,0,4152.56,CHOICE SUPPORT COMMUNITY SUPPORT,8400017000,ResPlcmts-ProvPayWA,Adults & Health,Bexley Care
21/08/2023,889522,0,4711.72,CHOICE SUPPORT COMMUNITY SUPPORT,8400027700,CommServs-ProvPayOP,Adults & Health,Bexley Care
21/08/2023,889523,0,5300.36,CHOICE SUPPORT COMMUNITY SUPPORT,8400027700,CommServs-ProvPayWA,Adults & Health,Bexley Care
21/08/2023,889524,0,5300.36,CHOICE SUPPORT COMMUNITY SUPPORT,8400027700,CommServs-ProvPayWA,Adults & Health,Bexley Care
21/08/2023,889525,0,6180.88,CHOICE SUPPORT COMMUNITY SUPPORT,8400027700,CommServs-ProvPayWA,Adults & Health,Bexley Care
21/08/2023,889526,0,6534.12,CHOICE SUPPORT COMMUNITY SUPPORT,8400027700,CommServs-ProvPayOP,Adults & Health,Bexley Care
21/08/2023,889527,0,11314.76,CHOICE SUPPORT COMMUNITY SUPPORT,8400027700,CommServs-ProvPayWA,Adults & Health,Bexley Care
21/08/2023,889528,0,1024.48,CHOICE SUPPORT RENT,8400022100,CommServs-ProvPayWA,Adults & Health,Bexley Care
21/08/2023,889533,0,1237.32,REDACTED PERSONAL DATA,8300101800,CommServs-DirectPayOP,Adults & Health,Bexley Care
21/08/2023,889535,0,911.04,REDACTED PERSONAL DATA,8400006000,CommServs-ProvPayWA,Adults & Health,Bexley Care
21/08/2023,889536,0,911.04,REDACTED PERSONAL DATA,8400006000,CommServs-ProvPayWA,Adults & Health,Bexley Care
21/08/2023,889537,0,1245.4,REDACTED PERSONAL DATA,8300085400,CommServs-ISFDirectPayOP,Adults & Health,Bexley Care
21/08/2023,889539,0,628.48,REDACTED PERSONAL DATA,8300091300,CommServs-DirectPayWA,Adults & Health,Bexley Care
21/08/2023,889543,0,4000,CHURCHILL HOUSE RCH,8400481500,ASC Interim Beds,Adults & Health,Bexley Care
15/08/2023,889546,0,11750,CITY OF LONDON CORPORATION,6156900,Public Health Payments,Adults & Health,Health & Wellbeing
22/08/2023,889548,0,5750,CITY OF LONDON CORPORATION,6156900,Public Health Payments,Adults & Health,Health & Wellbeing
21/08/2023,889564,0,7941.88,REDACTED PERSONAL DATA,8300074500,CommServs-ISFDirectPayWA,Adults & Health,Bexley Care
21/08/2023,889574,0,4670.88,REDACTED PERSONAL DATA,8300096900,CommServs-ISFDirectPayWA,Adults & Health,Bexley Care
21/08/2023,889583,0,628.48,REDACTED PERSONAL DATA,8300101900,CommServs-DirectPayWA,Adults & Health,Bexley Care
21/08/2023,889601,0,3293.32,COPPER BEECHES CARE HOME,8400483800,ResPlcmts-ProvPayOP,Adults & Health,Bexley Care
21/08/2023,889662,0,9400,CROHAM NURSING HOME,8400014100,ResPlcmts-ProvPayOP,Adults & Health,Bexley Care
21/08/2023,889663,0,9400,CROHAM NURSING HOME,8400014100,ResPlcmts-ProvPayOP,Adults & Health,Bexley Care
21/08/2023,889664,0,9626.88,CROHAM NURSING HOME,8400014100,ResPlcmts-ProvPayWA,Adults & Health,Bexley Care
21/08/2023,889665,0,9682,CROHAM NURSING HOME,8400014100,NurPlcmts-ProvPayWA,Adults & Health,Bexley Care
17/08/2023,889675,0,202000,CROYDON COUNCIL,6130701,Specialist Equip for Svce Prov,Adults & Health,Bexley Care
21/08/2023,889676,0,1027.68,REDACTED PERSONAL DATA,8400040100,CommServs-ProvPayWA,Adults & Health,Bexley Care
21/08/2023,889677,0,1395.36,REDACTED PERSONAL DATA,8300097900,CommServs-DirectPayWA,Adults & Health,Bexley Care
21/08/2023,889685,0,1750,REDACTED PERSONAL DATA,8300100500,CommServs-DirectPayWA,Adults & Health,Bexley Care
21/08/2023,889686,0,568.48,REDACTED PERSONAL DATA,8300099200,CommServs-DirectPayWA,Adults & Health,Bexley Care
21/08/2023,889687,0,725.16,REDACTED PERSONAL DATA,8300086800,CommServs-DirectPayWA,Adults & Health,Bexley Care
21/08/2023,889692,0,1767.6,REDACTED PERSONAL DATA,8300079600,CommServs-DirectPayOP,Adults & Health,Bexley Care
21/08/2023,889693,0,516.8,REDACTED PERSONAL DATA,8300077400,CommServs-DirectPayWA,Adults & Health,Bexley Care
21/08/2023,889696,0,863.48,REDACTED PERSONAL DATA,8300100000,CommServs-DirectPayWA,Adults & Health,Bexley Care
21/08/2023,889698,0,2199.68,REDACTED PERSONAL DATA,8300098200,CommServs-DirectPayOP,Adults & Health,Bexley Care
21/08/2023,889700,0,682.64,REDACTED PERSONAL DATA,8300102000,CommServs-DirectPayWA,Adults & Health,Bexley Care
21/08/2023,889701,0,682.64,REDACTED PERSONAL DATA,8300102000,CommServs-DirectPayWA,Adults & Health,Bexley Care
21/08/2023,889702,0,682.64,REDACTED PERSONAL DATA,8300102000,CommServs-DirectPayWA,Adults & Health,Bexley Care
21/08/2023,889703,0,682.64,REDACTED PERSONAL DATA,8300102000,CommServs-DirectPayWA,Adults & Health,Bexley Care
21/08/2023,889704,0,682.64,REDACTED PERSONAL DATA,8300102000,CommServs-DirectPayWA,Adults & Health,Bexley Care
21/08/2023,889705,0,682.64,REDACTED PERSONAL DATA,8300102000,CommServs-DirectPayWA,Adults & Health,Bexley Care
21/08/2023,889708,0,12696.16,DEAFWAY SERVICES,8400037700,ResPlcmts-ProvPayWA,Adults & Health,Bexley Care
02/08/2023,889709,0,2000,DEBORAH BARNETT,8740000,Professional Services General,Adults & Health,Bexley Care
21/08/2023,889713,0,942.72,REDACTED PERSONAL DATA,8300106000,CommServs-DirectPayOP,Adults & Health,Bexley Care
21/08/2023,889714,0,942.72,REDACTED PERSONAL DATA,8300106000,CommServs-DirectPayOP,Adults & Health,Bexley Care
21/08/2023,889715,0,1099.84,REDACTED PERSONAL DATA,8300080000,CommServs-DirectPayOP,Adults & Health,Bexley Care
24/08/2023,889718,0,48731.49,DEPARTMENT OF HEALTH AND SOCIAL INCOME,10036100,Other ASC Payments,Adults & Health,ASC Non Bexley Care
24/08/2023,889719,0,50692.81,DEPARTMENT OF HEALTH AND SOCIAL INCOME,10036100,Other ASC Payments,Adults & Health,ASC Non Bexley Care
21/08/2023,889730,0,600.52,REDACTED PERSONAL DATA,8300073600,CommServs-DirectPayWA,Adults & Health,Bexley Care
29/08/2023,889732,0,1102.5,DOMUS LIVE IN CARE LIMITED,8400046300,CommServs-ProvPayOP,Adults & Health,Bexley Care
29/08/2023,889733,0,1102.5,DOMUS LIVE IN CARE LIMITED,8400046300,CommServs-ProvPayOP,Adults & Health,Bexley Care
29/08/2023,889734,0,1102.5,DOMUS LIVE IN CARE LIMITED,8400046300,CommServs-ProvPayOP,Adults & Health,Bexley Care
29/08/2023,889735,0,1102.5,DOMUS LIVE IN CARE LIMITED,8400046300,CommServs-ProvPayOP,Adults & Health,Bexley Care
29/08/2023,889736,0,1250,DOMUS LIVE IN CARE LIMITED,8400046300,CommServs-ProvPayWA,Adults & Health,Bexley Care
29/08/2023,889737,0,1250,DOMUS LIVE IN CARE LIMITED,8400046300,CommServs-ProvPayWA,Adults & Health,Bexley Care
29/08/2023,889738,0,1250,DOMUS LIVE IN CARE LIMITED,8400046300,CommServs-ProvPayWA,Adults & Health,Bexley Care
29/08/2023,889739,0,1250,DOMUS LIVE IN CARE LIMITED,8400046300,CommServs-ProvPayWA,Adults & Health,Bexley Care
21/08/2023,889753,0,1237.32,REDACTED PERSONAL DATA,8300086700,CommServs-DirectPayOP,Adults & Health,Bexley Care
21/08/2023,889767,0,517.5,REDACTED PERSONAL DATA,8304100,DoLS Payments-Section 12 Docs,Adults & Health,Bexley Care
14/08/2023,889768,0,612.6,REDACTED PERSONAL DATA,8661000,DoLS Payments-Section 12 Docs,Adults & Health,Bexley Care
04/08/2023,889783,0,501.2,DREAM COMMUNITY PERSONNEL,8400010500,CommServs-ProvPayOP,Adults & Health,Bexley Care
04/08/2023,889784,0,582.4,DREAM COMMUNITY PERSONNEL,8400010500,CommServs-ProvPayOP,Adults & Health,Bexley Care
04/08/2023,889785,0,584.4,DREAM COMMUNITY PERSONNEL,8400010500,CommServs-ProvPayWA,Adults & Health,Bexley Care
04/08/2023,889786,0,636.4,DREAM COMMUNITY PERSONNEL,8400010500,CommServs-ProvPayOP,Adults & Health,Bexley Care
04/08/2023,889787,0,711.2,DREAM COMMUNITY PERSONNEL,8400010500,CommServs-ProvPayOP,Adults & Health,Bexley Care
04/08/2023,889788,0,1127.99,DREAM COMMUNITY PERSONNEL,8400010500,CommServs-ProvPayWA,Adults & Health,Bexley Care
14/08/2023,889789,0,501.2,DREAM COMMUNITY PERSONNEL,8400010500,CommServs-ProvPayOP,Adults & Health,Bexley Care
14/08/2023,889790,0,501.2,DREAM COMMUNITY PERSONNEL,8400010500,CommServs-ProvPayOP,Adults & Health,Bexley Care
14/08/2023,889791,0,582.4,DREAM COMMUNITY PERSONNEL,8400010500,CommServs-ProvPayOP,Adults & Health,Bexley Care
14/08/2023,889792,0,646.8,DREAM COMMUNITY PERSONNEL,8400010500,CommServs-ProvPayWA,Adults & Health,Bexley Care
14/08/2023,889793,0,646.8,DREAM COMMUNITY PERSONNEL,8400010500,CommServs-ProvPayOP,Adults & Health,Bexley Care
14/08/2023,889794,0,711.2,DREAM COMMUNITY PERSONNEL,8400010500,CommServs-ProvPayOP,Adults & Health,Bexley Care
14/08/2023,889795,0,1042.1,DREAM COMMUNITY PERSONNEL,8400010500,CommServs-ProvPayOP,Adults & Health,Bexley Care
21/08/2023,889796,0,501.2,DREAM COMMUNITY PERSONNEL,8400010500,CommServs-ProvPayOP,Adults & Health,Bexley Care
21/08/2023,889797,0,501.2,DREAM COMMUNITY PERSONNEL,8400010500,CommServs-ProvPayOP,Adults & Health,Bexley Care
21/08/2023,889798,0,582.4,DREAM COMMUNITY PERSONNEL,8400010500,CommServs-ProvPayOP,Adults & Health,Bexley Care
21/08/2023,889799,0,646.8,DREAM COMMUNITY PERSONNEL,8400010500,CommServs-ProvPayWA,Adults & Health,Bexley Care
21/08/2023,889800,0,646.8,DREAM COMMUNITY PERSONNEL,8400010500,CommServs-ProvPayOP,Adults & Health,Bexley Care
21/08/2023,889801,0,711.2,DREAM COMMUNITY PERSONNEL,8400010500,CommServs-ProvPayOP,Adults & Health,Bexley Care
21/08/2023,889802,0,1047.05,DREAM COMMUNITY PERSONNEL,8400010500,CommServs-ProvPayOP,Adults & Health,Bexley Care
29/08/2023,889803,0,501.2,DREAM COMMUNITY PERSONNEL,8400010500,CommServs-ProvPayOP,Adults & Health,Bexley Care
29/08/2023,889804,0,501.2,DREAM COMMUNITY PERSONNEL,8400010500,CommServs-ProvPayOP,Adults & Health,Bexley Care
29/08/2023,889805,0,582.4,DREAM COMMUNITY PERSONNEL,8400010500,CommServs-ProvPayOP,Adults & Health,Bexley Care
29/08/2023,889806,0,646.8,DREAM COMMUNITY PERSONNEL,8400010500,CommServs-ProvPayWA,Adults & Health,Bexley Care
29/08/2023,889807,0,646.8,DREAM COMMUNITY PERSONNEL,8400010500,CommServs-ProvPayOP,Adults & Health,Bexley Care
29/08/2023,889808,0,646.8,DREAM COMMUNITY PERSONNEL,8400010500,CommServs-ProvPayOP,Adults & Health,Bexley Care
29/08/2023,889809,0,711.2,DREAM COMMUNITY PERSONNEL,8400010500,CommServs-ProvPayOP,Adults & Health,Bexley Care
29/08/2023,889810,0,1167.97,DREAM COMMUNITY PERSONNEL,8400010500,CommServs-ProvPayWA,Adults & Health,Bexley Care
21/08/2023,889819,0,2868.44,DUNKIRK MEMORIAL HOUSE,8400003400,ResPlcmts-ProvPayOP,Adults & Health,Bexley Care
21/08/2023,889821,0,1447.04,REDACTED PERSONAL DATA,8300098700,CommServs-DirectPayWA,Adults & Health,Bexley Care
21/08/2023,889822,0,549.92,REDACTED PERSONAL DATA,8300078200,CommServs-DirectPayWA,Adults & Health,Bexley Care
21/08/2023,889833,0,542.64,REDACTED PERSONAL DATA,8300097800,CommServs-DirectPayOP,Adults & Health,Bexley Care
21/08/2023,889834,0,3745.08,EDGE HILL CARE HOME,8400023700,ResPlcmts-ProvPayWA,Adults & Health,Bexley Care
21/08/2023,889838,0,-751.23,REDACTED PERSONAL DATA,8300071800,CommServs-DirectPayOP,Adults & Health,Bexley Care
21/08/2023,889839,0,530.28,REDACTED PERSONAL DATA,8300071800,CommServs-DirectPayOP,Adults & Health,Bexley Care
21/08/2023,889840,0,574.47,REDACTED PERSONAL DATA,8300071800,CommServs-DirectPayOP,Adults & Health,Bexley Care
21/08/2023,889841,0,1640,REDACTED PERSONAL DATA,8300071800,CommServs-DirectPayOP,Adults & Health,Bexley Care
21/08/2023,889842,0,3936,REDACTED PERSONAL DATA,8300071800,CommServs-DirectPayOP,Adults & Health,Bexley Care
21/08/2023,889846,0,-1273.97,ELEANOR LIVING SKILLS LIMITED,8400005800,CommServs-ProvPayOP,Adults & Health,Bexley Care
21/08/2023,889847,0,664.68,ELEANOR LIVING SKILLS LIMITED,8400005800,CommServs-ProvPayWA,Adults & Health,Bexley Care
21/08/2023,889848,0,664.68,ELEANOR LIVING SKILLS LIMITED,8400005800,CommServs-ProvPayOP,Adults & Health,Bexley Care
21/08/2023,889849,0,664.68,ELEANOR LIVING SKILLS LIMITED,8400005800,CommServs-ProvPayOP,Adults & Health,Bexley Care
21/08/2023,889850,0,664.68,ELEANOR LIVING SKILLS LIMITED,8400005800,CommServs-ProvPayWA,Adults & Health,Bexley Care
21/08/2023,889851,0,664.68,ELEANOR LIVING SKILLS LIMITED,8400005800,CommServs-ProvPayWA,Adults & Health,Bexley Care
21/08/2023,889852,0,664.68,ELEANOR LIVING SKILLS LIMITED,8400005800,CommServs-ProvPayWA,Adults & Health,Bexley Care
21/08/2023,889853,0,664.68,ELEANOR LIVING SKILLS LIMITED,8400005800,CommServs-ProvPayWA,Adults & Health,Bexley Care
21/08/2023,889854,0,664.68,ELEANOR LIVING SKILLS LIMITED,8400005800,CommServs-ProvPayWA,Adults & Health,Bexley Care
21/08/2023,889855,0,664.68,ELEANOR LIVING SKILLS LIMITED,8400005800,CommServs-ProvPayWA,Adults & Health,Bexley Care
21/08/2023,889856,0,664.68,ELEANOR LIVING SKILLS LIMITED,8400005800,CommServs-ProvPayWA,Adults & Health,Bexley Care
21/08/2023,889857,0,664.68,ELEANOR LIVING SKILLS LIMITED,8400005800,CommServs-ProvPayWA,Adults & Health,Bexley Care
21/08/2023,889858,0,664.68,ELEANOR LIVING SKILLS LIMITED,8400005800,CommServs-ProvPayWA,Adults & Health,Bexley Care
21/08/2023,889859,0,664.68,ELEANOR LIVING SKILLS LIMITED,8400005800,CommServs-ProvPayWA,Adults & Health,Bexley Care
21/08/2023,889860,0,664.68,ELEANOR LIVING SKILLS LIMITED,8400005800,CommServs-ProvPayWA,Adults & Health,Bexley Care
21/08/2023,889861,0,664.68,ELEANOR LIVING SKILLS LIMITED,8400005800,CommServs-ProvPayWA,Adults & Health,Bexley Care
21/08/2023,889862,0,744,ELEANOR LIVING SKILLS LIMITED,8400005800,CommServs-ProvPayWA,Adults & Health,Bexley Care
21/08/2023,889863,0,744,ELEANOR LIVING SKILLS LIMITED,8400005800,CommServs-ProvPayOP,Adults & Health,Bexley Care
21/08/2023,889864,0,830.85,ELEANOR LIVING SKILLS LIMITED,8400005800,CommServs-ProvPayWA,Adults & Health,Bexley Care
21/08/2023,889865,0,886.24,ELEANOR LIVING SKILLS LIMITED,8400005800,CommServs-ProvPayOP,Adults & Health,Bexley Care
21/08/2023,889866,0,886.24,ELEANOR LIVING SKILLS LIMITED,8400005800,CommServs-ProvPayWA,Adults & Health,Bexley Care
21/08/2023,889867,0,886.24,ELEANOR LIVING SKILLS LIMITED,8400005800,CommServs-ProvPayWA,Adults & Health,Bexley Care
21/08/2023,889868,0,886.24,ELEANOR LIVING SKILLS LIMITED,8400005800,CommServs-ProvPayWA,Adults & Health,Bexley Care
21/08/2023,889869,0,886.24,ELEANOR LIVING SKILLS LIMITED,8400005800,CommServs-ProvPayWA,Adults & Health,Bexley Care
21/08/2023,889870,0,1107.8,ELEANOR LIVING SKILLS LIMITED,8400005800,CommServs-ProvPayWA,Adults & Health,Bexley Care
21/08/2023,889871,0,1107.8,ELEANOR LIVING SKILLS LIMITED,8400005800,CommServs-ProvPayOP,Adults & Health,Bexley Care
21/08/2023,889872,0,1107.8,ELEANOR LIVING SKILLS LIMITED,8400005800,CommServs-ProvPayOP,Adults & Health,Bexley Care
21/08/2023,889873,0,1107.8,ELEANOR LIVING SKILLS LIMITED,8400005800,CommServs-ProvPayOP,Adults & Health,Bexley Care
21/08/2023,889874,0,1107.8,ELEANOR LIVING SKILLS LIMITED,8400005800,CommServs-ProvPayOP,Adults & Health,Bexley Care
21/08/2023,889875,0,1107.8,ELEANOR LIVING SKILLS LIMITED,8400005800,CommServs-ProvPayOP,Adults & Health,Bexley Care
21/08/2023,889876,0,1107.8,ELEANOR LIVING SKILLS LIMITED,8400005800,CommServs-ProvPayWA,Adults & Health,Bexley Care
21/08/2023,889877,0,1107.8,ELEANOR LIVING SKILLS LIMITED,8400005800,CommServs-ProvPayWA,Adults & Health,Bexley Care
21/08/2023,889878,0,1107.8,ELEANOR LIVING SKILLS LIMITED,8400005800,CommServs-ProvPayWA,Adults & Health,Bexley Care
21/08/2023,889879,0,1107.8,ELEANOR LIVING SKILLS LIMITED,8400005800,CommServs-ProvPayWA,Adults & Health,Bexley Care
21/08/2023,889880,0,1107.8,ELEANOR LIVING SKILLS LIMITED,8400005800,CommServs-ProvPayWA,Adults & Health,Bexley Care
21/08/2023,889881,0,1107.8,ELEANOR LIVING SKILLS LIMITED,8400005800,CommServs-ProvPayWA,Adults & Health,Bexley Care
21/08/2023,889882,0,1107.8,ELEANOR LIVING SKILLS LIMITED,8400005800,CommServs-ProvPayWA,Adults & Health,Bexley Care
21/08/2023,889883,0,1107.8,ELEANOR LIVING SKILLS LIMITED,8400005800,CommServs-ProvPayWA,Adults & Health,Bexley Care
21/08/2023,889884,0,1107.8,ELEANOR LIVING SKILLS LIMITED,8400005800,CommServs-ProvPayWA,Adults & Health,Bexley Care
21/08/2023,889885,0,1107.8,ELEANOR LIVING SKILLS LIMITED,8400005800,CommServs-ProvPayWA,Adults & Health,Bexley Care
21/08/2023,889886,0,1107.8,ELEANOR LIVING SKILLS LIMITED,8400005800,CommServs-ProvPayWA,Adults & Health,Bexley Care
21/08/2023,889887,0,1107.8,ELEANOR LIVING SKILLS LIMITED,8400005800,CommServs-ProvPayWA,Adults & Health,Bexley Care
21/08/2023,889888,0,1107.8,ELEANOR LIVING SKILLS LIMITED,8400005800,CommServs-ProvPayWA,Adults & Health,Bexley Care
21/08/2023,889889,0,1107.8,ELEANOR LIVING SKILLS LIMITED,8400005800,CommServs-ProvPayWA,Adults & Health,Bexley Care
21/08/2023,889890,0,1107.8,ELEANOR LIVING SKILLS LIMITED,8400005800,CommServs-ProvPayWA,Adults & Health,Bexley Care
21/08/2023,889891,0,1107.8,ELEANOR LIVING SKILLS LIMITED,8400005800,CommServs-ProvPayWA,Adults & Health,Bexley Care
21/08/2023,889892,0,1107.8,ELEANOR LIVING SKILLS LIMITED,8400005800,CommServs-ProvPayWA,Adults & Health,Bexley Care
21/08/2023,889893,0,1107.8,ELEANOR LIVING SKILLS LIMITED,8400005800,CommServs-ProvPayWA,Adults & Health,Bexley Care
21/08/2023,889894,0,1107.8,ELEANOR LIVING SKILLS LIMITED,8400005800,CommServs-ProvPayWA,Adults & Health,Bexley Care
21/08/2023,889895,0,1107.8,ELEANOR LIVING SKILLS LIMITED,8400005800,CommServs-ProvPayWA,Adults & Health,Bexley Care
21/08/2023,889896,0,1488,ELEANOR LIVING SKILLS LIMITED,8400005800,CommServs-ProvPayWA,Adults & Health,Bexley Care
21/08/2023,889897,0,1488,ELEANOR LIVING SKILLS LIMITED,8400005800,CommServs-ProvPayWA,Adults & Health,Bexley Care
21/08/2023,889898,0,1860,ELEANOR LIVING SKILLS LIMITED,8400005800,CommServs-ProvPayWA,Adults & Health,Bexley Care
21/08/2023,889899,0,1860,ELEANOR LIVING SKILLS LIMITED,8400005800,CommServs-ProvPayWA,Adults & Health,Bexley Care
21/08/2023,889900,0,1860,ELEANOR LIVING SKILLS LIMITED,8400005800,CommServs-ProvPayWA,Adults & Health,Bexley Care
21/08/2023,889901,0,1860,ELEANOR LIVING SKILLS LIMITED,8400005800,CommServs-ProvPayWA,Adults & Health,Bexley Care
21/08/2023,889902,0,1860,ELEANOR LIVING SKILLS LIMITED,8400005800,CommServs-ProvPayWA,Adults & Health,Bexley Care
21/08/2023,889903,0,1860,ELEANOR LIVING SKILLS LIMITED,8400005800,CommServs-ProvPayWA,Adults & Health,Bexley Care
21/08/2023,889904,0,7311.48,ELEANOR LIVING SKILLS LIMITED,8400005800,CommServs-ProvPayOP,Adults & Health,Bexley Care
04/08/2023,889905,0,505.5,ELEANOR LIVING SKILLS LTD,8400041500,CommServs-ProvPayWA,Adults & Health,Bexley Care
04/08/2023,889906,0,505.5,ELEANOR LIVING SKILLS LTD,8400041500,CommServs-ProvPayWA,Adults & Health,Bexley Care
04/08/2023,889907,0,505.5,ELEANOR LIVING SKILLS LTD,8400041500,CommServs-ProvPayWA,Adults & Health,Bexley Care
04/08/2023,889908,0,505.5,ELEANOR LIVING SKILLS LTD,8400041500,CommServs-ProvPayWA,Adults & Health,Bexley Care
04/08/2023,889909,0,505.5,ELEANOR LIVING SKILLS LTD,8400041500,CommServs-ProvPayWA,Adults & Health,Bexley Care
04/08/2023,889910,0,505.5,ELEANOR LIVING SKILLS LTD,8400041500,CommServs-ProvPayWA,Adults & Health,Bexley Care
04/08/2023,889911,0,505.5,ELEANOR LIVING SKILLS LTD,8400041500,CommServs-ProvPayWA,Adults & Health,Bexley Care
04/08/2023,889912,0,505.5,ELEANOR LIVING SKILLS LTD,8400041500,CommServs-ProvPayWA,Adults & Health,Bexley Care
04/08/2023,889913,0,505.5,ELEANOR LIVING SKILLS LTD,8400041500,CommServs-ProvPayWA,Adults & Health,Bexley Care
04/08/2023,889914,0,505.5,ELEANOR LIVING SKILLS LTD,8400041500,CommServs-ProvPayWA,Adults & Health,Bexley Care
04/08/2023,889915,0,505.5,ELEANOR LIVING SKILLS LTD,8400041500,CommServs-ProvPayWA,Adults & Health,Bexley Care
04/08/2023,889916,0,505.5,ELEANOR LIVING SKILLS LTD,8400041500,CommServs-ProvPayWA,Adults & Health,Bexley Care
04/08/2023,889917,0,505.5,ELEANOR LIVING SKILLS LTD,8400041500,CommServs-ProvPayWA,Adults & Health,Bexley Care
04/08/2023,889918,0,505.5,ELEANOR LIVING SKILLS LTD,8400041500,CommServs-ProvPayWA,Adults & Health,Bexley Care
04/08/2023,889919,0,505.5,ELEANOR LIVING SKILLS LTD,8400041500,CommServs-ProvPayWA,Adults & Health,Bexley Care
04/08/2023,889920,0,505.5,ELEANOR LIVING SKILLS LTD,8400041500,CommServs-ProvPayWA,Adults & Health,Bexley Care
04/08/2023,889921,0,505.5,ELEANOR LIVING SKILLS LTD,8400041500,CommServs-ProvPayWA,Adults & Health,Bexley Care
04/08/2023,889922,0,501.2,ELEANOR NURSING AND SOCIAL CARE,8400002300,CommServs-ProvPayWA,Adults & Health,Bexley Care
04/08/2023,889923,0,501.2,ELEANOR NURSING AND SOCIAL CARE,8400002300,CommServs-ProvPayOP,Adults & Health,Bexley Care
04/08/2023,889924,0,501.2,ELEANOR NURSING AND SOCIAL CARE,8400002300,CommServs-ProvPayOP,Adults & Health,Bexley Care
04/08/2023,889925,0,501.2,ELEANOR NURSING AND SOCIAL CARE,8400002300,CommServs-ProvPayOP,Adults & Health,Bexley Care
04/08/2023,889926,0,582.4,ELEANOR NURSING AND SOCIAL CARE,8400002300,CommServs-ProvPayOP,Adults & Health,Bexley Care
04/08/2023,889927,0,582.4,ELEANOR NURSING AND SOCIAL CARE,8400002300,CommServs-ProvPayOP,Adults & Health,Bexley Care
04/08/2023,889928,0,583.24,ELEANOR NURSING AND SOCIAL CARE,8400002300,CommServs-ProvPayOP,Adults & Health,Bexley Care
04/08/2023,889929,0,646.8,ELEANOR NURSING AND SOCIAL CARE,8400002300,CommServs-ProvPayOP,Adults & Health,Bexley Care
04/08/2023,889930,0,646.8,ELEANOR NURSING AND SOCIAL CARE,8400002300,CommServs-ProvPayOP,Adults & Health,Bexley Care
04/08/2023,889931,0,646.8,ELEANOR NURSING AND SOCIAL CARE,8400002300,CommServs-ProvPayOP,Adults & Health,Bexley Care
04/08/2023,889932,0,646.8,ELEANOR NURSING AND SOCIAL CARE,8400002300,CommServs-ProvPayOP,Adults & Health,Bexley Care
04/08/2023,889933,0,646.8,ELEANOR NURSING AND SOCIAL CARE,8400002300,CommServs-ProvPayOP,Adults & Health,Bexley Care
04/08/2023,889934,0,648.27,ELEANOR NURSING AND SOCIAL CARE,8400002300,CommServs-ProvPayWA,Adults & Health,Bexley Care
04/08/2023,889935,0,913.08,ELEANOR NURSING AND SOCIAL CARE,8400002300,CommServs-ProvPayOP,Adults & Health,Bexley Care
14/08/2023,889936,0,501.2,ELEANOR NURSING AND SOCIAL CARE,8400002300,CommServs-ProvPayWA,Adults & Health,Bexley Care
14/08/2023,889937,0,501.2,ELEANOR NURSING AND SOCIAL CARE,8400002300,CommServs-ProvPayOP,Adults & Health,Bexley Care
14/08/2023,889938,0,501.2,ELEANOR NURSING AND SOCIAL CARE,8400002300,CommServs-ProvPayOP,Adults & Health,Bexley Care
14/08/2023,889939,0,501.2,ELEANOR NURSING AND SOCIAL CARE,8400002300,CommServs-ProvPayOP,Adults & Health,Bexley Care
14/08/2023,889940,0,582.4,ELEANOR NURSING AND SOCIAL CARE,8400002300,CommServs-ProvPayOP,Adults & Health,Bexley Care
14/08/2023,889941,0,582.4,ELEANOR NURSING AND SOCIAL CARE,8400002300,CommServs-ProvPayOP,Adults & Health,Bexley Care
14/08/2023,889942,0,583.24,ELEANOR NURSING AND SOCIAL CARE,8400002300,CommServs-ProvPayOP,Adults & Health,Bexley Care
14/08/2023,889943,0,646.8,ELEANOR NURSING AND SOCIAL CARE,8400002300,CommServs-ProvPayOP,Adults & Health,Bexley Care
14/08/2023,889944,0,646.8,ELEANOR NURSING AND SOCIAL CARE,8400002300,CommServs-ProvPayOP,Adults & Health,Bexley Care
14/08/2023,889945,0,646.8,ELEANOR NURSING AND SOCIAL CARE,8400002300,CommServs-ProvPayOP,Adults & Health,Bexley Care
14/08/2023,889946,0,646.8,ELEANOR NURSING AND SOCIAL CARE,8400002300,CommServs-ProvPayOP,Adults & Health,Bexley Care
14/08/2023,889947,0,646.8,ELEANOR NURSING AND SOCIAL CARE,8400002300,CommServs-ProvPayOP,Adults & Health,Bexley Care
14/08/2023,889948,0,913.08,ELEANOR NURSING AND SOCIAL CARE,8400002300,CommServs-ProvPayOP,Adults & Health,Bexley Care
14/08/2023,889949,0,9418.09,ELEANOR NURSING AND SOCIAL CARE,8400002300,CommServs-ProvPayWA,Adults & Health,Bexley Care
21/08/2023,889950,0,501.2,ELEANOR NURSING AND SOCIAL CARE,8400002300,CommServs-ProvPayWA,Adults & Health,Bexley Care
21/08/2023,889951,0,501.2,ELEANOR NURSING AND SOCIAL CARE,8400002300,CommServs-ProvPayOP,Adults & Health,Bexley Care
21/08/2023,889952,0,501.2,ELEANOR NURSING AND SOCIAL CARE,8400002300,CommServs-ProvPayOP,Adults & Health,Bexley Care
21/08/2023,889953,0,501.2,ELEANOR NURSING AND SOCIAL CARE,8400002300,CommServs-ProvPayOP,Adults & Health,Bexley Care
21/08/2023,889954,0,582.4,ELEANOR NURSING AND SOCIAL CARE,8400002300,CommServs-ProvPayOP,Adults & Health,Bexley Care
21/08/2023,889955,0,582.4,ELEANOR NURSING AND SOCIAL CARE,8400002300,CommServs-ProvPayOP,Adults & Health,Bexley Care
21/08/2023,889956,0,583.24,ELEANOR NURSING AND SOCIAL CARE,8400002300,CommServs-ProvPayOP,Adults & Health,Bexley Care
21/08/2023,889957,0,646.8,ELEANOR NURSING AND SOCIAL CARE,8400002300,CommServs-ProvPayOP,Adults & Health,Bexley Care
21/08/2023,889958,0,646.8,ELEANOR NURSING AND SOCIAL CARE,8400002300,CommServs-ProvPayOP,Adults & Health,Bexley Care
21/08/2023,889959,0,646.8,ELEANOR NURSING AND SOCIAL CARE,8400002300,CommServs-ProvPayOP,Adults & Health,Bexley Care
21/08/2023,889960,0,646.8,ELEANOR NURSING AND SOCIAL CARE,8400002300,CommServs-ProvPayOP,Adults & Health,Bexley Care
21/08/2023,889961,0,646.8,ELEANOR NURSING AND SOCIAL CARE,8400002300,CommServs-ProvPayOP,Adults & Health,Bexley Care
21/08/2023,889962,0,650.09,ELEANOR NURSING AND SOCIAL CARE,8400002300,CommServs-ProvPayWA,Adults & Health,Bexley Care
21/08/2023,889963,0,913.08,ELEANOR NURSING AND SOCIAL CARE,8400002300,CommServs-ProvPayOP,Adults & Health,Bexley Care
29/08/2023,889964,0,501.2,ELEANOR NURSING AND SOCIAL CARE,8400002300,CommServs-ProvPayWA,Adults & Health,Bexley Care
29/08/2023,889965,0,501.2,ELEANOR NURSING AND SOCIAL CARE,8400002300,CommServs-ProvPayOP,Adults & Health,Bexley Care
29/08/2023,889966,0,501.2,ELEANOR NURSING AND SOCIAL CARE,8400002300,CommServs-ProvPayOP,Adults & Health,Bexley Care
29/08/2023,889967,0,501.2,ELEANOR NURSING AND SOCIAL CARE,8400002300,CommServs-ProvPayOP,Adults & Health,Bexley Care
29/08/2023,889968,0,510.25,ELEANOR NURSING AND SOCIAL CARE,8400002300,CommServs-ProvPayWA,Adults & Health,Bexley Care
29/08/2023,889969,0,582.4,ELEANOR NURSING AND SOCIAL CARE,8400002300,CommServs-ProvPayOP,Adults & Health,Bexley Care
29/08/2023,889970,0,582.4,ELEANOR NURSING AND SOCIAL CARE,8400002300,CommServs-ProvPayOP,Adults & Health,Bexley Care
29/08/2023,889971,0,583.24,ELEANOR NURSING AND SOCIAL CARE,8400002300,CommServs-ProvPayOP,Adults & Health,Bexley Care
29/08/2023,889972,0,646.8,ELEANOR NURSING AND SOCIAL CARE,8400002300,CommServs-ProvPayOP,Adults & Health,Bexley Care
29/08/2023,889973,0,646.8,ELEANOR NURSING AND SOCIAL CARE,8400002300,CommServs-ProvPayOP,Adults & Health,Bexley Care
29/08/2023,889974,0,646.8,ELEANOR NURSING AND SOCIAL CARE,8400002300,CommServs-ProvPayOP,Adults & Health,Bexley Care
29/08/2023,889975,0,646.8,ELEANOR NURSING AND SOCIAL CARE,8400002300,CommServs-ProvPayOP,Adults & Health,Bexley Care
29/08/2023,889976,0,646.8,ELEANOR NURSING AND SOCIAL CARE,8400002300,CommServs-ProvPayOP,Adults & Health,Bexley Care
29/08/2023,889977,0,913.08,ELEANOR NURSING AND SOCIAL CARE,8400002300,CommServs-ProvPayOP,Adults & Health,Bexley Care
29/08/2023,889978,0,7567,ELEANOR NURSING AND SOCIAL CARE,8400002300,CommServs-ProvPayOP,Adults & Health,Bexley Care
29/08/2023,889979,0,46000,ELEANOR NURSING AND SOCIAL CARE,8400002300,CommServs-ProvPayOP,Adults & Health,Bexley Care
21/08/2023,889981,0,1669.4,REDACTED PERSONAL DATA,8300094300,CommServs-DirectPayOP,Adults & Health,Bexley Care
21/08/2023,889988,0,4120,ELMWOOD LODGE,8400018800,ResPlcmts-ProvPayOP,Adults & Health,Bexley Care
21/08/2023,889989,0,5063.24,ELMWOOD LODGE,8400018800,ResPlcmts-ProvPayWA,Adults & Health,Bexley Care
21/08/2023,889992,0,7519.36,ELYSIUM CARE LTD,8400033000,ResPlcmts-ProvPayWA,Adults & Health,Bexley Care
21/08/2023,889993,0,8494.28,ELYSIUM CARE LTD,8400033000,ResPlcmts-ProvPayWA,Adults & Health,Bexley Care
21/08/2023,889994,0,942.72,REDACTED PERSONAL DATA,8300092900,CommServs-DirectPayWA,Adults & Health,Bexley Care
21/08/2023,889995,0,10353.12,EMILY JACKSON CLOSE,8400046800,ResPlcmts-ProvPayWA,Adults & Health,Bexley Care
21/08/2023,889996,0,736,REDACTED PERSONAL DATA,8300070500,CommServs-DirectPayWA,Adults & Health,Bexley Care
21/08/2023,889997,0,1571.2,REDACTED PERSONAL DATA,8300070500,CommServs-DirectPayWA,Adults & Health,Bexley Care
21/08/2023,890013,0,2780.36,ENHAM TRUST,8400013100,CommServs-ProvPayWA,Adults & Health,Bexley Care
21/08/2023,890022,0,1382.44,REDACTED PERSONAL DATA,8300071000,CommServs-DirectPayOP,Adults & Health,Bexley Care
21/08/2023,890026,0,1049.4,ESSENTIAL SOCIAL CARE,8400032100,CommServs-ProvPayWA,Adults & Health,Bexley Care
21/08/2023,890027,0,1049.4,ESSENTIAL SOCIAL CARE,8400032100,CommServs-ProvPayWA,Adults & Health,Bexley Care
21/08/2023,890028,0,2816.28,ESSENTIAL SOCIAL CARE,8400032100,CommServs-ProvPayWA,Adults & Health,Bexley Care
21/08/2023,890029,0,3691.84,ESSENTIAL SOCIAL CARE,8400032100,CommServs-ProvPayWA,Adults & Health,Bexley Care
21/08/2023,890030,0,4057.96,ESSENTIAL SOCIAL CARE,8400032100,CommServs-ProvPayWA,Adults & Health,Bexley Care
21/08/2023,890031,0,4130.4,ESSENTIAL SOCIAL CARE,8400032100,CommServs-ProvPayWA,Adults & Health,Bexley Care
21/08/2023,890032,0,4130.4,ESSENTIAL SOCIAL CARE,8400032100,CommServs-ProvPayWA,Adults & Health,Bexley Care
21/08/2023,890033,0,4130.4,ESSENTIAL SOCIAL CARE,8400032100,CommServs-ProvPayWA,Adults & Health,Bexley Care
21/08/2023,890034,0,4150.92,ESSENTIAL SOCIAL CARE,8400032100,CommServs-ProvPayWA,Adults & Health,Bexley Care
21/08/2023,890035,0,4211,ESSENTIAL SOCIAL CARE,8400032100,CommServs-ProvPayWA,Adults & Health,Bexley Care
21/08/2023,890036,0,4409.68,ESSENTIAL SOCIAL CARE,8400032100,CommServs-ProvPayWA,Adults & Health,Bexley Care
21/08/2023,890037,0,4434.44,ESSENTIAL SOCIAL CARE,8400032100,CommServs-ProvPayWA,Adults & Health,Bexley Care
21/08/2023,890038,0,4622.36,ESSENTIAL SOCIAL CARE,8400032100,CommServs-ProvPayWA,Adults & Health,Bexley Care
21/08/2023,890039,0,5272.52,ESSENTIAL SOCIAL CARE,8400032100,CommServs-ProvPayWA,Adults & Health,Bexley Care
21/08/2023,890040,0,5503,ESSENTIAL SOCIAL CARE,8400032100,CommServs-ProvPayWA,Adults & Health,Bexley Care
21/08/2023,890041,0,6399.72,ESSENTIAL SOCIAL CARE,8400032100,CommServs-ProvPayWA,Adults & Health,Bexley Care
04/08/2023,890043,0,501.2,ETERNAL CARE,8400038900,CommServs-ProvPayOP,Adults & Health,Bexley Care
04/08/2023,890044,0,626,ETERNAL CARE,8400038900,CommServs-ProvPayOP,Adults & Health,Bexley Care
04/08/2023,890045,0,646.8,ETERNAL CARE,8400038900,CommServs-ProvPayOP,Adults & Health,Bexley Care
04/08/2023,890046,0,646.8,ETERNAL CARE,8400038900,CommServs-ProvPayOP,Adults & Health,Bexley Care
04/08/2023,890047,0,646.8,ETERNAL CARE,8400038900,CommServs-ProvPayOP,Adults & Health,Bexley Care
04/08/2023,890048,0,790.32,ETERNAL CARE,8400038900,CommServs-ProvPayOP,Adults & Health,Bexley Care
04/08/2023,890049,0,832.44,ETERNAL CARE,8400038900,CommServs-ProvPayOP,Adults & Health,Bexley Care
14/08/2023,890050,0,501.2,ETERNAL CARE,8400038900,CommServs-ProvPayOP,Adults & Health,Bexley Care
14/08/2023,890051,0,646.8,ETERNAL CARE,8400038900,CommServs-ProvPayOP,Adults & Health,Bexley Care
14/08/2023,890052,0,646.8,ETERNAL CARE,8400038900,CommServs-ProvPayOP,Adults & Health,Bexley Care
14/08/2023,890053,0,646.8,ETERNAL CARE,8400038900,CommServs-ProvPayOP,Adults & Health,Bexley Care
14/08/2023,890054,0,646.8,ETERNAL CARE,8400038900,CommServs-ProvPayOP,Adults & Health,Bexley Care
14/08/2023,890055,0,775.6,ETERNAL CARE,8400038900,CommServs-ProvPayOP,Adults & Health,Bexley Care
14/08/2023,890056,0,790.32,ETERNAL CARE,8400038900,CommServs-ProvPayOP,Adults & Health,Bexley Care
14/08/2023,890057,0,832.44,ETERNAL CARE,8400038900,CommServs-ProvPayOP,Adults & Health,Bexley Care
21/08/2023,890058,0,501.2,ETERNAL CARE,8400038900,CommServs-ProvPayOP,Adults & Health,Bexley Care
21/08/2023,890059,0,646.8,ETERNAL CARE,8400038900,CommServs-ProvPayOP,Adults & Health,Bexley Care
21/08/2023,890060,0,646.8,ETERNAL CARE,8400038900,CommServs-ProvPayOP,Adults & Health,Bexley Care
21/08/2023,890061,0,646.8,ETERNAL CARE,8400038900,CommServs-ProvPayOP,Adults & Health,Bexley Care
21/08/2023,890062,0,646.8,ETERNAL CARE,8400038900,CommServs-ProvPayOP,Adults & Health,Bexley Care
21/08/2023,890063,0,775.6,ETERNAL CARE,8400038900,CommServs-ProvPayOP,Adults & Health,Bexley Care
21/08/2023,890064,0,790.32,ETERNAL CARE,8400038900,CommServs-ProvPayOP,Adults & Health,Bexley Care
21/08/2023,890065,0,832.44,ETERNAL CARE,8400038900,CommServs-ProvPayOP,Adults & Health,Bexley Care
29/08/2023,890066,0,501.2,ETERNAL CARE,8400038900,CommServs-ProvPayOP,Adults & Health,Bexley Care
29/08/2023,890067,0,646.8,ETERNAL CARE,8400038900,CommServs-ProvPayOP,Adults & Health,Bexley Care
29/08/2023,890068,0,646.8,ETERNAL CARE,8400038900,CommServs-ProvPayOP,Adults & Health,Bexley Care
29/08/2023,890069,0,646.8,ETERNAL CARE,8400038900,CommServs-ProvPayOP,Adults & Health,Bexley Care
29/08/2023,890070,0,646.8,ETERNAL CARE,8400038900,CommServs-ProvPayOP,Adults & Health,Bexley Care
29/08/2023,890071,0,775.6,ETERNAL CARE,8400038900,CommServs-ProvPayOP,Adults & Health,Bexley Care
29/08/2023,890072,0,790.32,ETERNAL CARE,8400038900,CommServs-ProvPayOP,Adults & Health,Bexley Care
29/08/2023,890073,0,832.44,ETERNAL CARE,8400038900,CommServs-ProvPayOP,Adults & Health,Bexley Care
04/08/2023,890076,0,646.8,EVERLASTING ARMS CARE LTD,8400013500,CommServs-ProvPayOP,Adults & Health,Bexley Care
04/08/2023,890077,0,646.8,EVERLASTING ARMS CARE LTD,8400013500,CommServs-ProvPayOP,Adults & Health,Bexley Care
04/08/2023,890078,0,646.8,EVERLASTING ARMS CARE LTD,8400013500,CommServs-ProvPayOP,Adults & Health,Bexley Care
04/08/2023,890079,0,646.8,EVERLASTING ARMS CARE LTD,8400013500,CommServs-ProvPayOP,Adults & Health,Bexley Care
04/08/2023,890080,0,656.08,EVERLASTING ARMS CARE LTD,8400013500,CommServs-ProvPayOP,Adults & Health,Bexley Care
04/08/2023,890081,0,711.76,EVERLASTING ARMS CARE LTD,8400013500,CommServs-ProvPayOP,Adults & Health,Bexley Care
04/08/2023,890082,0,840,EVERLASTING ARMS CARE LTD,8400013500,CommServs-ProvPayOP,Adults & Health,Bexley Care
14/08/2023,890083,0,597.24,EVERLASTING ARMS CARE LTD,8400013500,CommServs-ProvPayOP,Adults & Health,Bexley Care
14/08/2023,890084,0,597.24,EVERLASTING ARMS CARE LTD,8400013500,CommServs-ProvPayOP,Adults & Health,Bexley Care
14/08/2023,890085,0,597.24,EVERLASTING ARMS CARE LTD,8400013500,CommServs-ProvPayOP,Adults & Health,Bexley Care
14/08/2023,890086,0,597.24,EVERLASTING ARMS CARE LTD,8400013500,CommServs-ProvPayOP,Adults & Health,Bexley Care
14/08/2023,890087,0,597.24,EVERLASTING ARMS CARE LTD,8400013500,CommServs-ProvPayOP,Adults & Health,Bexley Care
14/08/2023,890088,0,597.24,EVERLASTING ARMS CARE LTD,8400013500,CommServs-ProvPayOP,Adults & Health,Bexley Care
14/08/2023,890089,0,597.24,EVERLASTING ARMS CARE LTD,8400013500,CommServs-ProvPayOP,Adults & Health,Bexley Care
14/08/2023,890090,0,597.24,EVERLASTING ARMS CARE LTD,8400013500,CommServs-ProvPayOP,Adults & Health,Bexley Care
14/08/2023,890091,0,637.6,EVERLASTING ARMS CARE LTD,8400013500,CommServs-ProvPayOP,Adults & Health,Bexley Care
14/08/2023,890092,0,646.8,EVERLASTING ARMS CARE LTD,8400013500,CommServs-ProvPayOP,Adults & Health,Bexley Care
14/08/2023,890093,0,646.8,EVERLASTING ARMS CARE LTD,8400013500,CommServs-ProvPayOP,Adults & Health,Bexley Care
14/08/2023,890094,0,646.8,EVERLASTING ARMS CARE LTD,8400013500,CommServs-ProvPayOP,Adults & Health,Bexley Care
14/08/2023,890095,0,646.8,EVERLASTING ARMS CARE LTD,8400013500,CommServs-ProvPayOP,Adults & Health,Bexley Care
14/08/2023,890096,0,646.8,EVERLASTING ARMS CARE LTD,8400013500,CommServs-ProvPayOP,Adults & Health,Bexley Care
14/08/2023,890097,0,646.8,EVERLASTING ARMS CARE LTD,8400013500,CommServs-ProvPayOP,Adults & Health,Bexley Care
14/08/2023,890098,0,646.8,EVERLASTING ARMS CARE LTD,8400013500,CommServs-ProvPayOP,Adults & Health,Bexley Care
14/08/2023,890099,0,656.08,EVERLASTING ARMS CARE LTD,8400013500,CommServs-ProvPayOP,Adults & Health,Bexley Care
14/08/2023,890100,0,674.84,EVERLASTING ARMS CARE LTD,8400013500,CommServs-ProvPayOP,Adults & Health,Bexley Care
14/08/2023,890101,0,692.8,EVERLASTING ARMS CARE LTD,8400013500,CommServs-ProvPayOP,Adults & Health,Bexley Care
14/08/2023,890102,0,697.84,EVERLASTING ARMS CARE LTD,8400013500,CommServs-ProvPayOP,Adults & Health,Bexley Care
14/08/2023,890103,0,711.76,EVERLASTING ARMS CARE LTD,8400013500,CommServs-ProvPayOP,Adults & Health,Bexley Care
14/08/2023,890104,0,840,EVERLASTING ARMS CARE LTD,8400013500,CommServs-ProvPayOP,Adults & Health,Bexley Care
14/08/2023,890105,0,1099.84,EVERLASTING ARMS CARE LTD,8400013500,CommServs-ProvPayOP,Adults & Health,Bexley Care
21/08/2023,890106,0,610.3,EVERLASTING ARMS CARE LTD,8400013500,CommServs-ProvPayOP,Adults & Health,Bexley Care
21/08/2023,890107,0,646.8,EVERLASTING ARMS CARE LTD,8400013500,CommServs-ProvPayOP,Adults & Health,Bexley Care
21/08/2023,890108,0,646.8,EVERLASTING ARMS CARE LTD,8400013500,CommServs-ProvPayOP,Adults & Health,Bexley Care
21/08/2023,890109,0,656.08,EVERLASTING ARMS CARE LTD,8400013500,CommServs-ProvPayOP,Adults & Health,Bexley Care
21/08/2023,890110,0,660.82,EVERLASTING ARMS CARE LTD,8400013500,CommServs-ProvPayOP,Adults & Health,Bexley Care
21/08/2023,890111,0,683.84,EVERLASTING ARMS CARE LTD,8400013500,CommServs-ProvPayOP,Adults & Health,Bexley Care
21/08/2023,890112,0,688.2,EVERLASTING ARMS CARE LTD,8400013500,CommServs-ProvPayOP,Adults & Health,Bexley Care
21/08/2023,890113,0,693.2,EVERLASTING ARMS CARE LTD,8400013500,CommServs-ProvPayOP,Adults & Health,Bexley Care
29/08/2023,890114,0,584.4,EVERLASTING ARMS CARE LTD,8400013500,CommServs-ProvPayOP,Adults & Health,Bexley Care
29/08/2023,890115,0,637.72,EVERLASTING ARMS CARE LTD,8400013500,CommServs-ProvPayOP,Adults & Health,Bexley Care
29/08/2023,890116,0,646.8,EVERLASTING ARMS CARE LTD,8400013500,CommServs-ProvPayOP,Adults & Health,Bexley Care
29/08/2023,890117,0,646.8,EVERLASTING ARMS CARE LTD,8400013500,CommServs-ProvPayOP,Adults & Health,Bexley Care
29/08/2023,890118,0,656.08,EVERLASTING ARMS CARE LTD,8400013500,CommServs-ProvPayOP,Adults & Health,Bexley Care
29/08/2023,890119,0,702.48,EVERLASTING ARMS CARE LTD,8400013500,CommServs-ProvPayOP,Adults & Health,Bexley Care
29/08/2023,890120,0,703.02,EVERLASTING ARMS CARE LTD,8400013500,CommServs-ProvPayOP,Adults & Health,Bexley Care
29/08/2023,890121,0,720.48,EVERLASTING ARMS CARE LTD,8400013500,CommServs-ProvPayOP,Adults & Health,Bexley Care
21/08/2023,890150,0,5397.72,FAITH HOUSE,8400025900,ResPlcmts-ProvPayWA,Adults & Health,Bexley Care
21/08/2023,890199,0,1292,REDACTED PERSONAL DATA,8300082400,CommServs-DirectPayWA,Adults & Health,Bexley Care
21/08/2023,890203,0,4967.64,FRINDSBURY HOME (MORTIMOR SOCIETY),8400018700,ResPlcmts-ProvPayOP,Adults & Health,Bexley Care
21/08/2023,890204,0,6116.44,FRINDSBURY HOME (MORTIMOR SOCIETY),8400018700,ResPlcmts-ProvPayWA,Adults & Health,Bexley Care
21/08/2023,890205,0,7600,FRINDSBURY HOME (MORTIMOR SOCIETY),8400018700,NurPlcmts-ProvPayWA,Adults & Health,Bexley Care
21/08/2023,890206,0,10131.32,FRINDSBURY HOME (MORTIMOR SOCIETY),8400018700,ResPlcmts-ProvPayWA,Adults & Health,Bexley Care
21/08/2023,890207,0,-1292,Frognal House Care Home,8400485700,CRAG income - Residential,Adults & Health,Bexley Care
21/08/2023,890208,0,-1002.08,Frognal House Care Home,8400485700,CRAG income - Residential,Adults & Health,Bexley Care
21/08/2023,890209,0,1112,Frognal House Care Home,8400485700,ResEmRespPlcmts-ProvPayOP,Adults & Health,Bexley Care
21/08/2023,890210,0,2958.04,Frognal House Care Home,8400485700,ResPlcmts-ProvPayOP,Adults & Health,Bexley Care
21/08/2023,890211,0,4185.92,Frognal House Care Home,8400485700,ResPlcmts-ProvPayOP,Adults & Health,Bexley Care
21/08/2023,890212,0,5811.28,Frognal House Care Home,8400485700,ResPlcmts-ProvPayOP,Adults & Health,Bexley Care
21/08/2023,890213,0,6224.8,Frognal House Care Home,8400485700,ASC Interim Beds,Adults & Health,Bexley Care
21/08/2023,890214,0,6224.8,Frognal House Care Home,8400485700,ASC Interim Beds,Adults & Health,Bexley Care
21/08/2023,890215,0,6224.8,Frognal House Care Home,8400485700,ASC Interim Beds,Adults & Health,Bexley Care
21/08/2023,890216,0,6224.8,Frognal House Care Home,8400485700,ASC Interim Beds,Adults & Health,Bexley Care
21/08/2023,890217,0,6491.8,Frognal House Care Home,8400485700,ResPlcmts-ProvPayOP,Adults & Health,Bexley Care
21/08/2023,890218,0,6524,Frognal House Care Home,8400485700,ASC Interim Beds,Adults & Health,Bexley Care
21/08/2023,890219,0,7644,Frognal House Care Home,8400485700,ResPlcmts-ProvPayOP,Adults & Health,Bexley Care
21/08/2023,890220,0,7847,Frognal House Care Home,8400485700,ResPlcmts-ProvPayOP,Adults & Health,Bexley Care
21/08/2023,890225,0,600,REDACTED PERSONAL DATA,8300102700,CommServs-DirectPayWA,Adults & Health,Bexley Care
21/08/2023,890226,0,-1569.98,REDACTED PERSONAL DATA,8300097200,CommServs-ISFDirectPayWA,Adults & Health,Bexley Care
21/08/2023,890227,0,1714.59,REDACTED PERSONAL DATA,8300097200,CommServs-ISFDirectPayWA,Adults & Health,Bexley Care
21/08/2023,890228,0,4000.72,REDACTED PERSONAL DATA,8300097200,CommServs-ISFDirectPayWA,Adults & Health,Bexley Care
21/08/2023,890232,0,1125,REDACTED PERSONAL DATA,8300094100,CommServs-DirectPayWA,Adults & Health,Bexley Care
21/08/2023,890258,0,4452,GLEBE COURT CARE HOME,8400025400,ResPlcmts-ProvPayOP,Adults & Health,Bexley Care
21/08/2023,890259,0,1098.44,REDACTED PERSONAL DATA,8300092400,CommServs-DirectPayOP,Adults & Health,Bexley Care
21/08/2023,890260,0,1139.12,REDACTED PERSONAL DATA,8300092400,CommServs-DirectPayOP,Adults & Health,Bexley Care
21/08/2023,890261,0,589.2,REDACTED PERSONAL DATA,8300106100,CommServs-DirectPayOP,Adults & Health,Bexley Care
21/08/2023,890262,0,1178.4,REDACTED PERSONAL DATA,8300106100,CommServs-DirectPayOP,Adults & Health,Bexley Care
21/08/2023,890263,0,1178.4,REDACTED PERSONAL DATA,8300106100,CommServs-DirectPayOP,Adults & Health,Bexley Care
21/08/2023,890264,0,1178.4,REDACTED PERSONAL DATA,8300106100,CommServs-DirectPayOP,Adults & Health,Bexley Care
08/08/2023,890265,0,1000,GLOSULLY LTD - GLORIA SULLIVAN,10157900,Agency Staff,Adults & Health,Bexley Care
29/08/2023,890266,0,1000,GLOSULLY LTD - GLORIA SULLIVAN,10157900,Agency Staff,Adults & Health,Bexley Care
21/08/2023,890268,0,1843.6,REDACTED PERSONAL DATA,8300085300,CommServs-ISFDirectPayOP,Adults & Health,Bexley Care
21/08/2023,890270,0,-3046.64,GRAVESEND INDEPENDENT LIVING SERVICES,8400481300,ResPlcmts-ProvPayWA,Adults & Health,Bexley Care
21/08/2023,890271,0,-3046.64,GRAVESEND INDEPENDENT LIVING SERVICES,8400481300,ResPlcmts-ProvPayWA,Adults & Health,Bexley Care
21/08/2023,890272,0,-3046.64,GRAVESEND INDEPENDENT LIVING SERVICES,8400481300,ResPlcmts-ProvPayWA,Adults & Health,Bexley Care
21/08/2023,890273,0,-1523.32,GRAVESEND INDEPENDENT LIVING SERVICES,8400481300,ResPlcmts-ProvPayWA,Adults & Health,Bexley Care
21/08/2023,890274,0,1764.34,GRAVESEND INDEPENDENT LIVING SERVICES,8400481300,ResPlcmts-ProvPayWA,Adults & Health,Bexley Care
21/08/2023,890275,0,3528.68,GRAVESEND INDEPENDENT LIVING SERVICES,8400481300,ResPlcmts-ProvPayWA,Adults & Health,Bexley Care
21/08/2023,890276,0,3528.68,GRAVESEND INDEPENDENT LIVING SERVICES,8400481300,ResPlcmts-ProvPayWA,Adults & Health,Bexley Care
21/08/2023,890277,0,3528.68,GRAVESEND INDEPENDENT LIVING SERVICES,8400481300,ResPlcmts-ProvPayWA,Adults & Health,Bexley Care
21/08/2023,890278,0,3528.68,GRAVESEND INDEPENDENT LIVING SERVICES,8400481300,ResPlcmts-ProvPayWA,Adults & Health,Bexley Care
21/08/2023,890279,0,3528.68,GRAVESEND INDEPENDENT LIVING SERVICES,8400481300,ResPlcmts-ProvPayOP,Adults & Health,Bexley Care
21/08/2023,890280,0,1996.28,GRAYWOOD RESIDENTIAL HOME,8400029900,ResPlcmts-ProvPayOP,Adults & Health,Bexley Care
21/08/2023,890287,0,2955,GREENBANKS HERITAGE,8400040300,CommServs-ProvPayWA,Adults & Health,Bexley Care
21/08/2023,890288,0,3225,GREENBANKS HERITAGE,8400040300,CommServs-ProvPayWA,Adults & Health,Bexley Care
21/08/2023,890289,0,3399,GREENBANKS HERITAGE,8400040300,CommServs-ProvPayWA,Adults & Health,Bexley Care
21/08/2023,890290,0,3641,GREENBANKS HERITAGE,8400040300,CommServs-ProvPayWA,Adults & Health,Bexley Care
21/08/2023,890291,0,3680,GREENBANKS HERITAGE,8400040300,CommServs-ProvPayWA,Adults & Health,Bexley Care
21/08/2023,890292,0,6000,GREENBANKS HERITAGE,8400040300,CommServs-ProvPayWA,Adults & Health,Bexley Care
21/08/2023,890299,0,973.96,REDACTED PERSONAL DATA,8400020800,CommServs-ProvPayWA,Adults & Health,Bexley Care
21/08/2023,890300,0,973.96,REDACTED PERSONAL DATA,8400020800,CommServs-ProvPayOP,Adults & Health,Bexley Care
21/08/2023,890305,0,-820.08,GROVELAND PARK CARE HOME,8400015300,CRAG income - Residential,Adults & Health,Bexley Care
21/08/2023,890306,0,2919.88,GROVELAND PARK CARE HOME,8400015300,ResPlcmts-ProvPayOP,Adults & Health,Bexley Care
21/08/2023,890307,0,3268.57,GROVELAND PARK CARE HOME,8400015300,ResPlcmts-ProvPayOP,Adults & Health,Bexley Care
21/08/2023,890308,0,3502,GROVELAND PARK CARE HOME,8400015300,ResPlcmts-ProvPayOP,Adults & Health,Bexley Care
21/08/2023,890309,0,3502,GROVELAND PARK CARE HOME,8400015300,ResPlcmts-ProvPayOP,Adults & Health,Bexley Care
21/08/2023,890310,0,4932,GROVELAND PARK CARE HOME,8400015300,ResPlcmts-ProvPayOP,Adults & Health,Bexley Care
21/08/2023,890311,0,4932,GROVELAND PARK CARE HOME,8400015300,ResPlcmts-ProvPayOP,Adults & Health,Bexley Care
21/08/2023,890312,0,4932,GROVELAND PARK CARE HOME,8400015300,ResPlcmts-ProvPayOP,Adults & Health,Bexley Care
21/08/2023,890313,0,7040,GROVELAND PARK CARE HOME,8400015300,ResPlcmts-ProvPayOP,Adults & Health,Bexley Care
21/08/2023,890314,0,7040,GROVELAND PARK CARE HOME,8400015300,ResPlcmts-ProvPayOP,Adults & Health,Bexley Care
31/08/2023,890315,0,960,GROWING AGAINST VIOLENCE,8686800,Public Health Payments,Adults & Health,Health & Wellbeing
21/08/2023,890316,0,1192.64,REDACTED PERSONAL DATA,8400003200,CommServs-ProvPayWA,Adults & Health,Bexley Care
21/08/2023,890317,0,1592.64,REDACTED PERSONAL DATA,8400034000,CommServs-ProvPayWA,Adults & Health,Bexley Care
21/08/2023,890318,0,-679.04,REDACTED PERSONAL DATA,8300077500,FC Income - Direct Payments,Adults & Health,Bexley Care
21/08/2023,890319,0,1550.4,REDACTED PERSONAL DATA,8300077500,CommServs-DirectPayOP,Adults & Health,Bexley Care
21/08/2023,890333,0,3711.84,HARBOUR CARE GROUP,8400014600,CommServs-ProvPayWA,Adults & Health,Bexley Care
04/08/2023,890336,0,1373.72,REDACTED PERSONAL DATA,8300103600,CommServs-ISFDirectPayWA,Adults & Health,Bexley Care
04/08/2023,890337,0,1373.72,REDACTED PERSONAL DATA,8300103600,CommServs-ISFDirectPayWA,Adults & Health,Bexley Care
21/08/2023,890338,0,1373.72,REDACTED PERSONAL DATA,8300103600,CommServs-ISFDirectPayWA,Adults & Health,Bexley Care
29/08/2023,890340,0,130000,HARTWIG CARE LTD,8400480700,CommServs-ProvPayOP,Adults & Health,Bexley Care
21/08/2023,890345,0,5600,HAZELWOOD CARE HOME,8400485200,NurPlcmts-ProvPayOP,Adults & Health,Bexley Care
21/08/2023,890347,0,4235.24,HD2 CARE SUPPORT SERVICES,8400002000,CommServs-ProvPayWA,Adults & Health,Bexley Care
21/08/2023,890348,0,5385.44,HD2 CARE SUPPORT SERVICES,8400002000,CommServs-ProvPayWA,Adults & Health,Bexley Care
21/08/2023,890349,0,6349.6,HD2 CARE SUPPORT SERVICES,8400002000,CommServs-ProvPayWA,Adults & Health,Bexley Care
21/08/2023,890350,0,6422.48,HD2 CARE SUPPORT SERVICES,8400002000,CommServs-ProvPayWA,Adults & Health,Bexley Care
21/08/2023,890351,0,6730.92,HD2 CARE SUPPORT SERVICES,8400002000,CommServs-ProvPayWA,Adults & Health,Bexley Care
21/08/2023,890352,0,7208,HD2 CARE SUPPORT SERVICES,8400002000,CommServs-ProvPayWA,Adults & Health,Bexley Care
21/08/2023,890353,0,7380.56,HD2 CARE SUPPORT SERVICES,8400002000,CommServs-ProvPayWA,Adults & Health,Bexley Care
21/08/2023,890354,0,7659.88,HD2 CARE SUPPORT SERVICES,8400002000,CommServs-ProvPayWA,Adults & Health,Bexley Care
21/08/2023,890355,0,8830.36,HD2 CARE SUPPORT SERVICES,8400002000,CommServs-ProvPayWA,Adults & Health,Bexley Care
08/08/2023,890357,0,3644.75,HEALTH DIAGNOSTICS LIMITED,10100500,Public Health Payments,Adults & Health,Health & Wellbeing
21/08/2023,890359,0,9812.28,HEATHERLEY,8400008600,ResPlcmts-ProvPayWA,Adults & Health,Bexley Care
21/08/2023,890360,0,-6027.52,HEATHFIELD COURT,8400026200,NurPlcmts-ProvPayOP,Adults & Health,Bexley Care
21/08/2023,890361,0,-6027.52,HEATHFIELD COURT,8400026200,NurPlcmts-ProvPayOP,Adults & Health,Bexley Care
21/08/2023,890362,0,-941.71,HEATHFIELD COURT,8400026200,ResPlcmts-ProvPayOP,Adults & Health,Bexley Care
21/08/2023,890363,0,1785.47,HEATHFIELD COURT,8400026200,NurPlcmts-ProvPayOP,Adults & Health,Bexley Care
21/08/2023,890364,0,2678.21,HEATHFIELD COURT,8400026200,NurPlcmts-ProvPayOP,Adults & Health,Bexley Care
21/08/2023,890365,0,3570.95,HEATHFIELD COURT,8400026200,NurPlcmts-ProvPayOP,Adults & Health,Bexley Care
21/08/2023,890366,0,3708,HEATHFIELD COURT,8400026200,ResPlcmts-ProvPayOP,Adults & Health,Bexley Care
21/08/2023,890367,0,6200,HEATHFIELD COURT,8400026200,ResPlcmts-ProvPayOP,Adults & Health,Bexley Care
21/08/2023,890368,0,6249.16,HEATHFIELD COURT,8400026200,NurPlcmts-ProvPayOP,Adults & Health,Bexley Care
21/08/2023,890369,0,6249.16,HEATHFIELD COURT,8400026200,NurPlcmts-ProvPayOP,Adults & Health,Bexley Care
21/08/2023,890370,0,6249.16,HEATHFIELD COURT,8400026200,NurPlcmts-ProvPayOP,Adults & Health,Bexley Care
21/08/2023,890371,0,6249.16,HEATHFIELD COURT,8400026200,NurPlcmts-ProvPayOP,Adults & Health,Bexley Care
21/08/2023,890372,0,6249.16,HEATHFIELD COURT,8400026200,NurPlcmts-ProvPayOP,Adults & Health,Bexley Care
21/08/2023,890373,0,6580,HEATHFIELD COURT,8400026200,NurPlcmts-ProvPayOP,Adults & Health,Bexley Care
21/08/2023,890374,0,6580,HEATHFIELD COURT,8400026200,NurPlcmts-ProvPayOP,Adults & Health,Bexley Care
21/08/2023,890375,0,6580,HEATHFIELD COURT,8400026200,NurPlcmts-ProvPayOP,Adults & Health,Bexley Care
21/08/2023,890379,0,4329.48,HEMMET HOUSE,8400039400,ResPlcmts-ProvPayWA,Adults & Health,Bexley Care
21/08/2023,890380,0,5350.48,HENDERSON & HARVARD - SALUTEM,8400481000,ResPlcmts-ProvPayOP,Adults & Health,Bexley Care
29/08/2023,890382,0,4460,HENRY,10060600,Public Health Payments,Adults & Health,Health & Wellbeing
21/08/2023,890383,0,3526.4,HERONDALE,8400013800,ResPlcmts-ProvPayWA,Adults & Health,Bexley Care
21/08/2023,890384,0,3605.12,HERONDALE,8400013800,ResPlcmts-ProvPayWA,Adults & Health,Bexley Care
21/08/2023,890386,0,2704.8,HIGHFIELD CH,8400484200,NurPlcmts-ProvPayOP,Adults & Health,Bexley Care
21/08/2023,890388,0,1256.96,REDACTED PERSONAL DATA,8300084500,CommServs-DirectPayOP,Adults & Health,Bexley Care
14/08/2023,890393,0,566.16,HOLISTIC COMMUNITY CARE LTD,8400032200,CommServs-ProvPayOP,Adults & Health,Bexley Care
14/08/2023,890394,0,665.28,HOLISTIC COMMUNITY CARE LTD,8400032200,CommServs-ProvPayOP,Adults & Health,Bexley Care
14/08/2023,890395,0,840.56,HOLISTIC COMMUNITY CARE LTD,8400032200,CommServs-ProvPayOP,Adults & Health,Bexley Care
14/08/2023,890396,0,842.42,HOLISTIC COMMUNITY CARE LTD,8400032200,CommServs-ProvPayOP,Adults & Health,Bexley Care
29/08/2023,890397,0,566.16,HOLISTIC COMMUNITY CARE LTD,8400032200,CommServs-ProvPayOP,Adults & Health,Bexley Care
29/08/2023,890398,0,566.16,HOLISTIC COMMUNITY CARE LTD,8400032200,CommServs-ProvPayOP,Adults & Health,Bexley Care
29/08/2023,890399,0,566.16,HOLISTIC COMMUNITY CARE LTD,8400032200,CommServs-ProvPayOP,Adults & Health,Bexley Care
29/08/2023,890400,0,644.48,HOLISTIC COMMUNITY CARE LTD,8400032200,CommServs-ProvPayOP,Adults & Health,Bexley Care
29/08/2023,890401,0,646.8,HOLISTIC COMMUNITY CARE LTD,8400032200,CommServs-ProvPayOP,Adults & Health,Bexley Care
29/08/2023,890402,0,646.8,HOLISTIC COMMUNITY CARE LTD,8400032200,CommServs-ProvPayOP,Adults & Health,Bexley Care
29/08/2023,890403,0,665.2,HOLISTIC COMMUNITY CARE LTD,8400032200,CommServs-ProvPayOP,Adults & Health,Bexley Care
29/08/2023,890404,0,720.79,HOLISTIC COMMUNITY CARE LTD,8400032200,CommServs-ProvPayOP,Adults & Health,Bexley Care
29/08/2023,890405,0,783.49,HOLISTIC COMMUNITY CARE LTD,8400032200,CommServs-ProvPayOP,Adults & Health,Bexley Care
29/08/2023,890406,0,821.87,HOLISTIC COMMUNITY CARE LTD,8400032200,CommServs-ProvPayOP,Adults & Health,Bexley Care
29/08/2023,890407,0,840.56,HOLISTIC COMMUNITY CARE LTD,8400032200,CommServs-ProvPayOP,Adults & Health,Bexley Care
29/08/2023,890408,0,840.56,HOLISTIC COMMUNITY CARE LTD,8400032200,CommServs-ProvPayOP,Adults & Health,Bexley Care
21/08/2023,890409,0,6928.52,HOLKHAM HOUSE,8400010300,ResPlcmts-ProvPayWA,Adults & Health,Bexley Care
21/08/2023,890410,0,707.04,REDACTED PERSONAL DATA,8300004000,CommServs-DirectPayWA,Adults & Health,Bexley Care
21/08/2023,890411,0,4874.12,HOLLY COTTAGE,8400034400,ResPlcmts-ProvPayWA,Adults & Health,Bexley Care
21/08/2023,890416,0,31862.6,HOME FROM HOME CARE LIMITED,8400482200,ResPlcmts-ProvPayWA,Adults & Health,Bexley Care
22/08/2023,890420,0,735.04,HOMERTON UNIVERSITY HOSPITAL NHS FOUNDAT,8493000,Sexual Health Payments,Adults & Health,Health & Wellbeing
21/08/2023,890425,0,2793.81,Horizon Care and Education Group Ltd,8400483900,ResPlcmts-ProvPayWA,Adults & Health,Bexley Care
21/08/2023,890437,0,2080.6,HOUSE OF SHAN,8400038100,ResPlcmts-ProvPayOP,Adults & Health,Bexley Care
21/08/2023,890451,0,2395.2,REDACTED PERSONAL DATA,8300097000,CommServs-ISFDirectPayWA,Adults & Health,Bexley Care
14/08/2023,890464,0,-2364.88,IMPACT PROJECT SOLUTIONS LTD,8400045900,CommServs-ProvPayWA,Adults & Health,Bexley Care
14/08/2023,890465,0,646.8,IMPACT PROJECT SOLUTIONS LTD,8400045900,CommServs-ProvPayOP,Adults & Health,Bexley Care
14/08/2023,890466,0,646.8,IMPACT PROJECT SOLUTIONS LTD,8400045900,CommServs-ProvPayOP,Adults & Health,Bexley Care
14/08/2023,890467,0,1189.55,IMPACT PROJECT SOLUTIONS LTD,8400045900,CommServs-ProvPayOP,Adults & Health,Bexley Care
14/08/2023,890468,0,2296,IMPACT PROJECT SOLUTIONS LTD,8400045900,CommServs-ProvPayOP,Adults & Health,Bexley Care
14/08/2023,890469,0,2364.88,IMPACT PROJECT SOLUTIONS LTD,8400045900,CommServs-ProvPayWA,Adults & Health,Bexley Care
14/08/2023,890470,0,2433.76,IMPACT PROJECT SOLUTIONS LTD,8400045900,CommServs-ProvPayWA,Adults & Health,Bexley Care
14/08/2023,890471,0,4383.8,IMPACT PROJECT SOLUTIONS LTD,8400045900,CommServs-ProvPayOP,Adults & Health,Bexley Care
14/08/2023,890472,0,6798.88,IMPACT PROJECT SOLUTIONS LTD,8400045900,CommServs-ProvPayWA,Adults & Health,Bexley Care
21/08/2023,890473,0,-2364.88,IMPACT PROJECT SOLUTIONS LTD,8400045900,CommServs-ProvPayWA,Adults & Health,Bexley Care
21/08/2023,890474,0,-1136.9,IMPACT PROJECT SOLUTIONS LTD,8400045900,CommServs-ProvPayWA,Adults & Health,Bexley Care
21/08/2023,890475,0,589.2,IMPACT PROJECT SOLUTIONS LTD,8400045900,CommServs-ProvPayWA,Adults & Health,Bexley Care
21/08/2023,890476,0,589.2,IMPACT PROJECT SOLUTIONS LTD,8400045900,CommServs-ProvPayWA,Adults & Health,Bexley Care
21/08/2023,890477,0,624.52,IMPACT PROJECT SOLUTIONS LTD,8400045900,CommServs-ProvPayOP,Adults & Health,Bexley Care
21/08/2023,890478,0,646.8,IMPACT PROJECT SOLUTIONS LTD,8400045900,CommServs-ProvPayOP,Adults & Health,Bexley Care
21/08/2023,890479,0,646.8,IMPACT PROJECT SOLUTIONS LTD,8400045900,CommServs-ProvPayOP,Adults & Health,Bexley Care
21/08/2023,890480,0,646.8,IMPACT PROJECT SOLUTIONS LTD,8400045900,CommServs-ProvPayOP,Adults & Health,Bexley Care
21/08/2023,890481,0,646.8,IMPACT PROJECT SOLUTIONS LTD,8400045900,CommServs-ProvPayOP,Adults & Health,Bexley Care
21/08/2023,890482,0,646.8,IMPACT PROJECT SOLUTIONS LTD,8400045900,CommServs-ProvPayOP,Adults & Health,Bexley Care
21/08/2023,890483,0,656,IMPACT PROJECT SOLUTIONS LTD,8400045900,CommServs-ProvPayOP,Adults & Health,Bexley Care
21/08/2023,890484,0,682.38,IMPACT PROJECT SOLUTIONS LTD,8400045900,CommServs-ProvPayOP,Adults & Health,Bexley Care
21/08/2023,890485,0,1989.45,IMPACT PROJECT SOLUTIONS LTD,8400045900,CommServs-ProvPayWA,Adults & Health,Bexley Care
21/08/2023,890486,0,1989.45,IMPACT PROJECT SOLUTIONS LTD,8400045900,CommServs-ProvPayWA,Adults & Health,Bexley Care
21/08/2023,890487,0,1989.45,IMPACT PROJECT SOLUTIONS LTD,8400045900,CommServs-ProvPayWA,Adults & Health,Bexley Care
21/08/2023,890488,0,1989.45,IMPACT PROJECT SOLUTIONS LTD,8400045900,CommServs-ProvPayWA,Adults & Health,Bexley Care
21/08/2023,890489,0,1989.45,IMPACT PROJECT SOLUTIONS LTD,8400045900,CommServs-ProvPayWA,Adults & Health,Bexley Care
21/08/2023,890490,0,1989.45,IMPACT PROJECT SOLUTIONS LTD,8400045900,CommServs-ProvPayWA,Adults & Health,Bexley Care
21/08/2023,890491,0,1989.45,IMPACT PROJECT SOLUTIONS LTD,8400045900,CommServs-ProvPayWA,Adults & Health,Bexley Care
21/08/2023,890492,0,1989.45,IMPACT PROJECT SOLUTIONS LTD,8400045900,CommServs-ProvPayWA,Adults & Health,Bexley Care
21/08/2023,890493,0,2296,IMPACT PROJECT SOLUTIONS LTD,8400045900,CommServs-ProvPayOP,Adults & Health,Bexley Care
21/08/2023,890494,0,2364.88,IMPACT PROJECT SOLUTIONS LTD,8400045900,CommServs-ProvPayWA,Adults & Health,Bexley Care
21/08/2023,890495,0,2433.76,IMPACT PROJECT SOLUTIONS LTD,8400045900,CommServs-ProvPayWA,Adults & Health,Bexley Care
21/08/2023,890496,0,2433.76,IMPACT PROJECT SOLUTIONS LTD,8400045900,CommServs-ProvPayWA,Adults & Health,Bexley Care
21/08/2023,890497,0,2433.76,IMPACT PROJECT SOLUTIONS LTD,8400045900,CommServs-ProvPayWA,Adults & Health,Bexley Care
21/08/2023,890498,0,2433.76,IMPACT PROJECT SOLUTIONS LTD,8400045900,CommServs-ProvPayWA,Adults & Health,Bexley Care
21/08/2023,890499,0,2557.8,IMPACT PROJECT SOLUTIONS LTD,8400045900,CommServs-ProvPayWA,Adults & Health,Bexley Care
21/08/2023,890500,0,5448.17,IMPACT PROJECT SOLUTIONS LTD,8400045900,CommServs-ProvPayOP,Adults & Health,Bexley Care
14/08/2023,890501,0,646.8,IMPECCABLE HEALTH CARE,8400013900,CommServs-ProvPayOP,Adults & Health,Bexley Care
14/08/2023,890502,0,646.8,IMPECCABLE HEALTH CARE,8400013900,CommServs-ProvPayOP,Adults & Health,Bexley Care
14/08/2023,890503,0,666.44,IMPECCABLE HEALTH CARE,8400013900,CommServs-ProvPayOP,Adults & Health,Bexley Care
14/08/2023,890504,0,705.72,IMPECCABLE HEALTH CARE,8400013900,CommServs-ProvPayOP,Adults & Health,Bexley Care
14/08/2023,890505,0,776.16,IMPECCABLE HEALTH CARE,8400013900,CommServs-ProvPayOP,Adults & Health,Bexley Care
14/08/2023,890506,0,776.16,IMPECCABLE HEALTH CARE,8400013900,CommServs-ProvPayOP,Adults & Health,Bexley Care
14/08/2023,890507,0,1254.26,IMPECCABLE HEALTH CARE,8400013900,CommServs-ProvPayWA,Adults & Health,Bexley Care
24/08/2023,890510,0,665,INDEPENDENT COMMUNITY ADVOCACY NETWORK N,8416300,DoLS Payments - Paid RPRs,Adults & Health,Bexley Care
04/08/2023,890511,0,646.8,INDEPENDENT HOMECARE TEAM,8400011900,CommServs-ProvPayOP,Adults & Health,Bexley Care
04/08/2023,890512,0,646.8,INDEPENDENT HOMECARE TEAM,8400011900,CommServs-ProvPayOP,Adults & Health,Bexley Care
14/08/2023,890513,0,646.8,INDEPENDENT HOMECARE TEAM,8400011900,CommServs-ProvPayOP,Adults & Health,Bexley Care
21/08/2023,890514,0,646.8,INDEPENDENT HOMECARE TEAM,8400011900,CommServs-ProvPayOP,Adults & Health,Bexley Care
29/08/2023,890515,0,646.8,INDEPENDENT HOMECARE TEAM,8400011900,CommServs-ProvPayOP,Adults & Health,Bexley Care
29/08/2023,890516,0,946.66,INDEPENDENT HOMECARE TEAM,8400011900,CommServs-ProvPayOP,Adults & Health,Bexley Care
21/08/2023,890517,0,2080.6,INDEX CARE,8400028300,CommServs-ProvPayWA,Adults & Health,Bexley Care
21/08/2023,890518,0,3780,INDEX CARE,8400028300,CommServs-ProvPayWA,Adults & Health,Bexley Care
21/08/2023,890519,0,4136.24,INDEX CARE,8400028300,CommServs-ProvPayWA,Adults & Health,Bexley Care
21/08/2023,890520,0,5342.56,INDEX CARE,8400028300,CommServs-ProvPayWA,Adults & Health,Bexley Care
21/08/2023,890521,0,5825.68,INDEX CARE,8400028300,CommServs-ProvPayWA,Adults & Health,Bexley Care
21/08/2023,890522,0,6241.8,INDEX CARE,8400028300,CommServs-ProvPayWA,Adults & Health,Bexley Care
04/08/2023,890527,0,1200.46,INSPIRE COMMUNITY TRUST,5943900,Adult Contract Pymt - Inspire,Adults & Health,Bexley Care
04/08/2023,890528,0,14833.33,INSPIRE COMMUNITY TRUST,5943900,Specialist Equip for Svce Prov,Adults & Health,Bexley Care
04/08/2023,890529,0,16449.63,INSPIRE COMMUNITY TRUST,5943900,Adult Contract Pymt - Inspire,Adults & Health,Bexley Care
04/08/2023,890530,0,23333.33,INSPIRE COMMUNITY TRUST,5943900,Adult Contract Pymt - Inspire,Adults & Health,Bexley Care
08/08/2023,890531,0,33833.33,INSPIRE COMMUNITY TRUST,5943900,Adult Contract Pymt - Inspire,Adults & Health,Bexley Care
10/08/2023,890532,0,8426.37,INSPIRE COMMUNITY TRUST,5943901,Specialist Equip for Svce Prov,Adults & Health,Bexley Care
22/08/2023,890533,0,25800,INSPIRE COMMUNITY TRUST,5943901,Specialist Equip for Svce Prov,Adults & Health,Bexley Care
21/08/2023,890534,0,-824.32,INSPIRE COMMUNITY TRUST DAY CENTRE,8400030000,CommServs-ProvPayWA,Adults & Health,Bexley Care
21/08/2023,890535,0,535.36,INSPIRE COMMUNITY TRUST DAY CENTRE,8400030000,CommServs-ProvPayWA,Adults & Health,Bexley Care
21/08/2023,890536,0,535.36,INSPIRE COMMUNITY TRUST DAY CENTRE,8400030000,CommServs-ProvPayWA,Adults & Health,Bexley Care
21/08/2023,890537,0,535.36,INSPIRE COMMUNITY TRUST DAY CENTRE,8400030000,CommServs-ProvPayOP,Adults & Health,Bexley Care
21/08/2023,890538,0,535.36,INSPIRE COMMUNITY TRUST DAY CENTRE,8400030000,CommServs-ProvPayOP,Adults & Health,Bexley Care
21/08/2023,890539,0,535.36,INSPIRE COMMUNITY TRUST DAY CENTRE,8400030000,CommServs-ProvPayOP,Adults & Health,Bexley Care
21/08/2023,890540,0,535.36,INSPIRE COMMUNITY TRUST DAY CENTRE,8400030000,CommServs-ProvPayOP,Adults & Health,Bexley Care
21/08/2023,890541,0,535.36,INSPIRE COMMUNITY TRUST DAY CENTRE,8400030000,CommServs-ProvPayWA,Adults & Health,Bexley Care
21/08/2023,890542,0,535.36,INSPIRE COMMUNITY TRUST DAY CENTRE,8400030000,CommServs-ProvPayWA,Adults & Health,Bexley Care
21/08/2023,890543,0,535.36,INSPIRE COMMUNITY TRUST DAY CENTRE,8400030000,CommServs-ProvPayWA,Adults & Health,Bexley Care
21/08/2023,890544,0,535.36,INSPIRE COMMUNITY TRUST DAY CENTRE,8400030000,CommServs-ProvPayWA,Adults & Health,Bexley Care
21/08/2023,890545,0,535.36,INSPIRE COMMUNITY TRUST DAY CENTRE,8400030000,CommServs-ProvPayWA,Adults & Health,Bexley Care
21/08/2023,890546,0,535.36,INSPIRE COMMUNITY TRUST DAY CENTRE,8400030000,CommServs-ProvPayWA,Adults & Health,Bexley Care
21/08/2023,890547,0,535.36,INSPIRE COMMUNITY TRUST DAY CENTRE,8400030000,CommServs-ProvPayWA,Adults & Health,Bexley Care
21/08/2023,890548,0,535.36,INSPIRE COMMUNITY TRUST DAY CENTRE,8400030000,CommServs-ProvPayWA,Adults & Health,Bexley Care
21/08/2023,890549,0,669.2,INSPIRE COMMUNITY TRUST DAY CENTRE,8400030000,CommServs-ProvPayWA,Adults & Health,Bexley Care
21/08/2023,890550,0,803.04,INSPIRE COMMUNITY TRUST DAY CENTRE,8400030000,CommServs-ProvPayWA,Adults & Health,Bexley Care
21/08/2023,890551,0,803.04,INSPIRE COMMUNITY TRUST DAY CENTRE,8400030000,CommServs-ProvPayWA,Adults & Health,Bexley Care
21/08/2023,890552,0,803.04,INSPIRE COMMUNITY TRUST DAY CENTRE,8400030000,CommServs-ProvPayOP,Adults & Health,Bexley Care
21/08/2023,890553,0,803.04,INSPIRE COMMUNITY TRUST DAY CENTRE,8400030000,CommServs-ProvPayWA,Adults & Health,Bexley Care
21/08/2023,890554,0,803.04,INSPIRE COMMUNITY TRUST DAY CENTRE,8400030000,CommServs-ProvPayWA,Adults & Health,Bexley Care
21/08/2023,890555,0,803.04,INSPIRE COMMUNITY TRUST DAY CENTRE,8400030000,CommServs-ProvPayWA,Adults & Health,Bexley Care
21/08/2023,890556,0,803.04,INSPIRE COMMUNITY TRUST DAY CENTRE,8400030000,CommServs-ProvPayWA,Adults & Health,Bexley Care
21/08/2023,890557,0,803.04,INSPIRE COMMUNITY TRUST DAY CENTRE,8400030000,CommServs-ProvPayWA,Adults & Health,Bexley Care
21/08/2023,890558,0,1070.72,INSPIRE COMMUNITY TRUST DAY CENTRE,8400030000,CommServs-ProvPayWA,Adults & Health,Bexley Care
21/08/2023,890559,0,1070.72,INSPIRE COMMUNITY TRUST DAY CENTRE,8400030000,CommServs-ProvPayWA,Adults & Health,Bexley Care
21/08/2023,890560,0,1338.4,INSPIRE COMMUNITY TRUST DAY CENTRE,8400030000,CommServs-ProvPayWA,Adults & Health,Bexley Care
21/08/2023,890571,0,628.48,REDACTED PERSONAL DATA,8300098500,CommServs-DirectPayOP,Adults & Health,Bexley Care
04/08/2023,890595,0,501.2,J C MICHAEL GROUPS LTD,8400036100,CommServs-ProvPayOP,Adults & Health,Bexley Care
04/08/2023,890596,0,501.2,J C MICHAEL GROUPS LTD,8400036100,CommServs-ProvPayOP,Adults & Health,Bexley Care
04/08/2023,890597,0,501.2,J C MICHAEL GROUPS LTD,8400036100,CommServs-ProvPayOP,Adults & Health,Bexley Care
04/08/2023,890598,0,575.2,J C MICHAEL GROUPS LTD,8400036100,CommServs-ProvPayOP,Adults & Health,Bexley Care
04/08/2023,890599,0,582.4,J C MICHAEL GROUPS LTD,8400036100,CommServs-ProvPayOP,Adults & Health,Bexley Care
04/08/2023,890600,0,646.8,J C MICHAEL GROUPS LTD,8400036100,CommServs-ProvPayOP,Adults & Health,Bexley Care
04/08/2023,890601,0,646.8,J C MICHAEL GROUPS LTD,8400036100,CommServs-ProvPayOP,Adults & Health,Bexley Care
04/08/2023,890602,0,646.8,J C MICHAEL GROUPS LTD,8400036100,CommServs-ProvPayOP,Adults & Health,Bexley Care
04/08/2023,890603,0,646.8,J C MICHAEL GROUPS LTD,8400036100,CommServs-ProvPayOP,Adults & Health,Bexley Care
04/08/2023,890604,0,646.8,J C MICHAEL GROUPS LTD,8400036100,CommServs-ProvPayOP,Adults & Health,Bexley Care
04/08/2023,890605,0,646.8,J C MICHAEL GROUPS LTD,8400036100,CommServs-ProvPayOP,Adults & Health,Bexley Care
04/08/2023,890606,0,646.8,J C MICHAEL GROUPS LTD,8400036100,CommServs-ProvPayOP,Adults & Health,Bexley Care
04/08/2023,890607,0,646.8,J C MICHAEL GROUPS LTD,8400036100,CommServs-ProvPayOP,Adults & Health,Bexley Care
04/08/2023,890608,0,646.8,J C MICHAEL GROUPS LTD,8400036100,CommServs-ProvPayOP,Adults & Health,Bexley Care
04/08/2023,890609,0,646.8,J C MICHAEL GROUPS LTD,8400036100,CommServs-ProvPayOP,Adults & Health,Bexley Care
04/08/2023,890610,0,646.8,J C MICHAEL GROUPS LTD,8400036100,CommServs-ProvPayOP,Adults & Health,Bexley Care
04/08/2023,890611,0,646.8,J C MICHAEL GROUPS LTD,8400036100,CommServs-ProvPayOP,Adults & Health,Bexley Care
04/08/2023,890612,0,646.8,J C MICHAEL GROUPS LTD,8400036100,CommServs-ProvPayOP,Adults & Health,Bexley Care
04/08/2023,890613,0,681.2,J C MICHAEL GROUPS LTD,8400036100,CommServs-ProvPayOP,Adults & Health,Bexley Care
04/08/2023,890614,0,696.09,J C MICHAEL GROUPS LTD,8400036100,CommServs-ProvPayOP,Adults & Health,Bexley Care
04/08/2023,890615,0,711.2,J C MICHAEL GROUPS LTD,8400036100,CommServs-ProvPayOP,Adults & Health,Bexley Care
04/08/2023,890616,0,711.76,J C MICHAEL GROUPS LTD,8400036100,CommServs-ProvPayOP,Adults & Health,Bexley Care
04/08/2023,890617,0,711.76,J C MICHAEL GROUPS LTD,8400036100,CommServs-ProvPayWA,Adults & Health,Bexley Care
04/08/2023,890618,0,775.6,J C MICHAEL GROUPS LTD,8400036100,CommServs-ProvPayOP,Adults & Health,Bexley Care
04/08/2023,890619,0,841.12,J C MICHAEL GROUPS LTD,8400036100,CommServs-ProvPayOP,Adults & Health,Bexley Care
04/08/2023,890620,0,882.48,J C MICHAEL GROUPS LTD,8400036100,CommServs-ProvPayOP,Adults & Health,Bexley Care
04/08/2023,890621,0,904.96,J C MICHAEL GROUPS LTD,8400036100,CommServs-ProvPayWA,Adults & Health,Bexley Care
04/08/2023,890622,0,904.96,J C MICHAEL GROUPS LTD,8400036100,CommServs-ProvPayOP,Adults & Health,Bexley Care
14/08/2023,890623,0,501.2,J C MICHAEL GROUPS LTD,8400036100,CommServs-ProvPayOP,Adults & Health,Bexley Care
14/08/2023,890624,0,501.2,J C MICHAEL GROUPS LTD,8400036100,CommServs-ProvPayOP,Adults & Health,Bexley Care
14/08/2023,890625,0,501.2,J C MICHAEL GROUPS LTD,8400036100,CommServs-ProvPayOP,Adults & Health,Bexley Care
14/08/2023,890626,0,501.2,J C MICHAEL GROUPS LTD,8400036100,CommServs-ProvPayOP,Adults & Health,Bexley Care
14/08/2023,890627,0,582.4,J C MICHAEL GROUPS LTD,8400036100,CommServs-ProvPayOP,Adults & Health,Bexley Care
14/08/2023,890628,0,646.8,J C MICHAEL GROUPS LTD,8400036100,CommServs-ProvPayOP,Adults & Health,Bexley Care
14/08/2023,890629,0,646.8,J C MICHAEL GROUPS LTD,8400036100,CommServs-ProvPayOP,Adults & Health,Bexley Care
14/08/2023,890630,0,646.8,J C MICHAEL GROUPS LTD,8400036100,CommServs-ProvPayOP,Adults & Health,Bexley Care
14/08/2023,890631,0,646.8,J C MICHAEL GROUPS LTD,8400036100,CommServs-ProvPayOP,Adults & Health,Bexley Care
14/08/2023,890632,0,646.8,J C MICHAEL GROUPS LTD,8400036100,CommServs-ProvPayOP,Adults & Health,Bexley Care
14/08/2023,890633,0,646.8,J C MICHAEL GROUPS LTD,8400036100,CommServs-ProvPayOP,Adults & Health,Bexley Care
14/08/2023,890634,0,646.8,J C MICHAEL GROUPS LTD,8400036100,CommServs-ProvPayWA,Adults & Health,Bexley Care
14/08/2023,890635,0,646.8,J C MICHAEL GROUPS LTD,8400036100,CommServs-ProvPayOP,Adults & Health,Bexley Care
14/08/2023,890636,0,646.8,J C MICHAEL GROUPS LTD,8400036100,CommServs-ProvPayOP,Adults & Health,Bexley Care
14/08/2023,890637,0,646.8,J C MICHAEL GROUPS LTD,8400036100,CommServs-ProvPayOP,Adults & Health,Bexley Care
14/08/2023,890638,0,646.8,J C MICHAEL GROUPS LTD,8400036100,CommServs-ProvPayWA,Adults & Health,Bexley Care
14/08/2023,890639,0,646.8,J C MICHAEL GROUPS LTD,8400036100,CommServs-ProvPayOP,Adults & Health,Bexley Care
14/08/2023,890640,0,646.8,J C MICHAEL GROUPS LTD,8400036100,CommServs-ProvPayOP,Adults & Health,Bexley Care
14/08/2023,890641,0,646.8,J C MICHAEL GROUPS LTD,8400036100,CommServs-ProvPayOP,Adults & Health,Bexley Care
14/08/2023,890642,0,696.09,J C MICHAEL GROUPS LTD,8400036100,CommServs-ProvPayOP,Adults & Health,Bexley Care
14/08/2023,890643,0,711.2,J C MICHAEL GROUPS LTD,8400036100,CommServs-ProvPayOP,Adults & Health,Bexley Care
14/08/2023,890644,0,711.76,J C MICHAEL GROUPS LTD,8400036100,CommServs-ProvPayOP,Adults & Health,Bexley Care
14/08/2023,890645,0,775.6,J C MICHAEL GROUPS LTD,8400036100,CommServs-ProvPayOP,Adults & Health,Bexley Care
14/08/2023,890646,0,841.12,J C MICHAEL GROUPS LTD,8400036100,CommServs-ProvPayOP,Adults & Health,Bexley Care
14/08/2023,890647,0,882.48,J C MICHAEL GROUPS LTD,8400036100,CommServs-ProvPayOP,Adults & Health,Bexley Care
14/08/2023,890648,0,904.96,J C MICHAEL GROUPS LTD,8400036100,CommServs-ProvPayOP,Adults & Health,Bexley Care
14/08/2023,890649,0,904.96,J C MICHAEL GROUPS LTD,8400036100,CommServs-ProvPayWA,Adults & Health,Bexley Care
14/08/2023,890650,0,904.96,J C MICHAEL GROUPS LTD,8400036100,CommServs-ProvPayOP,Adults & Health,Bexley Care
21/08/2023,890651,0,501.2,J C MICHAEL GROUPS LTD,8400036100,CommServs-ProvPayOP,Adults & Health,Bexley Care
21/08/2023,890652,0,501.2,J C MICHAEL GROUPS LTD,8400036100,CommServs-ProvPayOP,Adults & Health,Bexley Care
21/08/2023,890653,0,501.2,J C MICHAEL GROUPS LTD,8400036100,CommServs-ProvPayOP,Adults & Health,Bexley Care
21/08/2023,890654,0,582.4,J C MICHAEL GROUPS LTD,8400036100,CommServs-ProvPayOP,Adults & Health,Bexley Care
21/08/2023,890655,0,646.8,J C MICHAEL GROUPS LTD,8400036100,CommServs-ProvPayOP,Adults & Health,Bexley Care
21/08/2023,890656,0,646.8,J C MICHAEL GROUPS LTD,8400036100,CommServs-ProvPayOP,Adults & Health,Bexley Care
21/08/2023,890657,0,646.8,J C MICHAEL GROUPS LTD,8400036100,CommServs-ProvPayOP,Adults & Health,Bexley Care
21/08/2023,890658,0,646.8,J C MICHAEL GROUPS LTD,8400036100,CommServs-ProvPayOP,Adults & Health,Bexley Care
21/08/2023,890659,0,646.8,J C MICHAEL GROUPS LTD,8400036100,CommServs-ProvPayOP,Adults & Health,Bexley Care
21/08/2023,890660,0,646.8,J C MICHAEL GROUPS LTD,8400036100,CommServs-ProvPayOP,Adults & Health,Bexley Care
21/08/2023,890661,0,646.8,J C MICHAEL GROUPS LTD,8400036100,CommServs-ProvPayOP,Adults & Health,Bexley Care
21/08/2023,890662,0,646.8,J C MICHAEL GROUPS LTD,8400036100,CommServs-ProvPayOP,Adults & Health,Bexley Care
21/08/2023,890663,0,646.8,J C MICHAEL GROUPS LTD,8400036100,CommServs-ProvPayOP,Adults & Health,Bexley Care
21/08/2023,890664,0,646.8,J C MICHAEL GROUPS LTD,8400036100,CommServs-ProvPayOP,Adults & Health,Bexley Care
21/08/2023,890665,0,646.8,J C MICHAEL GROUPS LTD,8400036100,CommServs-ProvPayOP,Adults & Health,Bexley Care
21/08/2023,890666,0,646.8,J C MICHAEL GROUPS LTD,8400036100,CommServs-ProvPayWA,Adults & Health,Bexley Care
21/08/2023,890667,0,646.8,J C MICHAEL GROUPS LTD,8400036100,CommServs-ProvPayOP,Adults & Health,Bexley Care
21/08/2023,890668,0,646.8,J C MICHAEL GROUPS LTD,8400036100,CommServs-ProvPayOP,Adults & Health,Bexley Care
21/08/2023,890669,0,646.8,J C MICHAEL GROUPS LTD,8400036100,CommServs-ProvPayOP,Adults & Health,Bexley Care
21/08/2023,890670,0,681.2,J C MICHAEL GROUPS LTD,8400036100,CommServs-ProvPayOP,Adults & Health,Bexley Care
21/08/2023,890671,0,696.09,J C MICHAEL GROUPS LTD,8400036100,CommServs-ProvPayOP,Adults & Health,Bexley Care
21/08/2023,890672,0,711.2,J C MICHAEL GROUPS LTD,8400036100,CommServs-ProvPayOP,Adults & Health,Bexley Care
21/08/2023,890673,0,711.76,J C MICHAEL GROUPS LTD,8400036100,CommServs-ProvPayOP,Adults & Health,Bexley Care
21/08/2023,890674,0,711.76,J C MICHAEL GROUPS LTD,8400036100,CommServs-ProvPayWA,Adults & Health,Bexley Care
21/08/2023,890675,0,775.6,J C MICHAEL GROUPS LTD,8400036100,CommServs-ProvPayOP,Adults & Health,Bexley Care
21/08/2023,890676,0,841.12,J C MICHAEL GROUPS LTD,8400036100,CommServs-ProvPayOP,Adults & Health,Bexley Care
21/08/2023,890677,0,882.48,J C MICHAEL GROUPS LTD,8400036100,CommServs-ProvPayOP,Adults & Health,Bexley Care
21/08/2023,890678,0,904.96,J C MICHAEL GROUPS LTD,8400036100,CommServs-ProvPayOP,Adults & Health,Bexley Care
21/08/2023,890679,0,904.96,J C MICHAEL GROUPS LTD,8400036100,CommServs-ProvPayOP,Adults & Health,Bexley Care
21/08/2023,890680,0,904.96,J C MICHAEL GROUPS LTD,8400036100,CommServs-ProvPayWA,Adults & Health,Bexley Care
21/08/2023,890681,0,904.96,J C MICHAEL GROUPS LTD,8400036100,CommServs-ProvPayOP,Adults & Health,Bexley Care
21/08/2023,890682,0,16855.03,J C MICHAEL GROUPS LTD,8400036100,CommServs-ProvPayOP,Adults & Health,Bexley Care
21/08/2023,890710,0,824.88,REDACTED PERSONAL DATA,8300106200,CommServs-DirectPayOP,Adults & Health,Bexley Care
21/08/2023,890718,0,2906.44,JAMES TERRY COURT,8400047200,ResPlcmts-ProvPayOP,Adults & Health,Bexley Care
21/08/2023,890720,0,1513.52,REDACTED PERSONAL DATA,8300083100,CommServs-DirectPayWA,Adults & Health,Bexley Care
21/08/2023,890736,0,8593.04,REDACTED PERSONAL DATA,8300074400,CommServs-ISFDirectPayWA,Adults & Health,Bexley Care
31/08/2023,890738,0,5400,JANE WALKER CONSULTANCY LIMITED,3741600,Consultancy Fees,Adults & Health,Health & Wellbeing
21/08/2023,890743,0,628.48,REDACTED PERSONAL DATA,8300100700,CommServs-DirectPayOP,Adults & Health,Bexley Care
21/08/2023,890745,0,5600,JANSONDEAN CARE HOME,8400484100,ResPlcmts-ProvPayOP,Adults & Health,Bexley Care
21/08/2023,890749,0,877.72,REDACTED PERSONAL DATA,8400035400,CommServs-ProvPayWA,Adults & Health,Bexley Care
21/08/2023,890751,0,813.96,REDACTED PERSONAL DATA,8300094500,CommServs-DirectPayOP,Adults & Health,Bexley Care
21/08/2023,890752,0,549.92,REDACTED PERSONAL DATA,8300086900,CommServs-DirectPayWA,Adults & Health,Bexley Care
21/08/2023,890768,0,803.52,REDACTED PERSONAL DATA,8300064500,CommServs-DirectPayWA,Adults & Health,Bexley Care
21/08/2023,890769,0,1885.44,REDACTED PERSONAL DATA,8300064500,CommServs-DirectPayWA,Adults & Health,Bexley Care
21/08/2023,890770,0,5120,REDACTED PERSONAL DATA,8300064500,CommServs-DirectPayWA,Adults & Health,Bexley Care
21/08/2023,890771,0,516.8,REDACTED PERSONAL DATA,8300080800,CommServs-DirectPayWA,Adults & Health,Bexley Care
31/08/2023,890772,0,10000,JESSE'S PLACE FOUNDATION CIC,10066000,Adult Contract Pymt - General,Adults & Health,Bexley Care
21/08/2023,890774,0,2744.4,REDACTED PERSONAL DATA,8300088500,CommServs-ISFDirectPayWA,Adults & Health,Bexley Care
17/08/2023,890775,0,500,JK SOCIAL CARE LIMITED/ JAS KANG,10132500,Agency Staff,Adults & Health,Bexley Care
17/08/2023,890776,0,1500,JK SOCIAL CARE LIMITED/ JAS KANG,10132500,Agency Staff,Adults & Health,Bexley Care
21/08/2023,890777,0,3839.32,JM CAREHOMES LTD,8400031500,CommServs-ProvPayWA,Adults & Health,Bexley Care
21/08/2023,890786,0,1864,REDACTED PERSONAL DATA,8300105300,CommServs-DirectPayOP,Adults & Health,Bexley Care
21/08/2023,890787,0,2064.29,REDACTED PERSONAL DATA,8300105300,CommServs-DirectPayOP,Adults & Health,Bexley Care
21/08/2023,890788,0,3070.12,REDACTED PERSONAL DATA,8300105300,CommServs-DirectPayOP,Adults & Health,Bexley Care
21/08/2023,890789,0,3070.12,REDACTED PERSONAL DATA,8300105300,CommServs-DirectPayOP,Adults & Health,Bexley Care
21/08/2023,890790,0,3070.12,REDACTED PERSONAL DATA,8300105300,CommServs-DirectPayOP,Adults & Health,Bexley Care
21/08/2023,890791,0,3400,REDACTED PERSONAL DATA,8300105300,CommServs-DirectPayOP,Adults & Health,Bexley Care
21/08/2023,890792,0,3400,REDACTED PERSONAL DATA,8300105300,CommServs-DirectPayOP,Adults & Health,Bexley Care
21/08/2023,890793,0,3400,REDACTED PERSONAL DATA,8300105300,CommServs-DirectPayOP,Adults & Health,Bexley Care
21/08/2023,890795,0,785.6,REDACTED PERSONAL DATA,8300077600,CommServs-DirectPayOP,Adults & Health,Bexley Care
21/08/2023,890801,0,1414.08,REDACTED PERSONAL DATA,8300077100,CommServs-DirectPayOP,Adults & Health,Bexley Care
21/08/2023,890802,0,1335.52,REDACTED PERSONAL DATA,8300070600,CommServs-DirectPayWA,Adults & Health,Bexley Care
21/08/2023,890803,0,3070.12,REDACTED PERSONAL DATA,8300078900,CommServs-DirectPayOP,Adults & Health,Bexley Care
21/08/2023,890804,0,813.96,REDACTED PERSONAL DATA,8300095300,CommServs-DirectPayOP,Adults & Health,Bexley Care
21/08/2023,890805,0,1099.84,REDACTED PERSONAL DATA,8300092100,CommServs-DirectPayOP,Adults & Health,Bexley Care
21/08/2023,890807,0,537.22,REDACTED PERSONAL DATA,8400482800,ResRespPlcmts-ProvPayWA,Adults & Health,Bexley Care
21/08/2023,890812,0,2584,REDACTED PERSONAL DATA,8300090000,CommServs-DirectPayOP,Adults & Health,Bexley Care
21/08/2023,890813,0,3928,REDACTED PERSONAL DATA,8300090000,CommServs-DirectPayOP,Adults & Health,Bexley Care
21/08/2023,890815,0,7740.92,REDACTED PERSONAL DATA,8300074600,CommServs-ISFDirectPayWA,Adults & Health,Bexley Care
21/08/2023,890818,0,-1080.2,REDACTED PERSONAL DATA,8300106300,CommServs-DirectPayOP,Adults & Health,Bexley Care
21/08/2023,890819,0,-1080.2,REDACTED PERSONAL DATA,8300106300,CommServs-DirectPayOP,Adults & Health,Bexley Care
21/08/2023,890820,0,694.41,REDACTED PERSONAL DATA,8300106300,CommServs-DirectPayOP,Adults & Health,Bexley Care
21/08/2023,890821,0,1080.2,REDACTED PERSONAL DATA,8300106300,CommServs-DirectPayOP,Adults & Health,Bexley Care
21/08/2023,890822,0,1080.2,REDACTED PERSONAL DATA,8300106300,CommServs-DirectPayOP,Adults & Health,Bexley Care
21/08/2023,890823,0,1080.2,REDACTED PERSONAL DATA,8300106300,CommServs-DirectPayOP,Adults & Health,Bexley Care
21/08/2023,890824,0,1080.2,REDACTED PERSONAL DATA,8300106300,CommServs-DirectPayOP,Adults & Health,Bexley Care
21/08/2023,890825,0,1080.2,REDACTED PERSONAL DATA,8300106300,CommServs-DirectPayOP,Adults & Health,Bexley Care
21/08/2023,890830,0,1178.4,REDACTED PERSONAL DATA,8300072100,CommServs-DirectPayWA,Adults & Health,Bexley Care
15/08/2023,890836,0,910,REDACTED PERSONAL DATA,10138100,Staff Development and Training,Adults & Health,Bexley Care
21/08/2023,890845,0,516.8,REDACTED PERSONAL DATA,8300085200,CommServs-DirectPayWA,Adults & Health,Bexley Care
21/08/2023,890846,0,8593.04,REDACTED PERSONAL DATA,8300074100,CommServs-ISFDirectPayWA,Adults & Health,Bexley Care
21/08/2023,890848,0,3537.04,KENBROOK CARE HOME,8400013600,NurPlcmts-ProvPayOP,Adults & Health,Bexley Care
21/08/2023,890849,0,-1896.66,REDACTED PERSONAL DATA,8300097700,CommServs-DirectPayOP,Adults & Health,Bexley Care
21/08/2023,890850,0,1313.07,REDACTED PERSONAL DATA,8300097700,CommServs-DirectPayOP,Adults & Health,Bexley Care
21/08/2023,890851,0,2042.56,REDACTED PERSONAL DATA,8300097700,CommServs-DirectPayOP,Adults & Health,Bexley Care
21/08/2023,890855,0,1595.72,KENT AUTISTIC TRUST,8400029100,CommServs-ProvPayWA,Adults & Health,Bexley Care
21/08/2023,890874,0,628.48,REDACTED PERSONAL DATA,8300071900,CommServs-DirectPayWA,Adults & Health,Bexley Care
21/08/2023,890877,0,671.84,REDACTED PERSONAL DATA,8300018500,CommServs-DirectPayWA,Adults & Health,Bexley Care
21/08/2023,890878,0,600,REDACTED PERSONAL DATA,8300099900,CommServs-DirectPayWA,Adults & Health,Bexley Care
21/08/2023,890882,0,1004.4,REDACTED PERSONAL DATA,8300077700,CommServs-DirectPayWA,Adults & Health,Bexley Care
21/08/2023,890883,0,15057.28,KISIMUL GROUP LTD,8400018100,ResPlcmts-ProvPayWA,Adults & Health,Bexley Care
21/08/2023,890884,0,18681.68,KISIMUL GROUP LTD,8400018100,ResPlcmts-ProvPayWA,Adults & Health,Bexley Care
21/08/2023,890885,0,963.84,REDACTED PERSONAL DATA,8400024100,CommServs-ProvPayWA,Adults & Health,Bexley Care
21/08/2023,890886,0,1453.36,REDACTED PERSONAL DATA,8300104600,CommServs-DirectPayOP,Adults & Health,Bexley Care
21/08/2023,890888,0,1046.52,REDACTED PERSONAL DATA,8300075200,CommServs-DirectPayWA,Adults & Health,Bexley Care
21/08/2023,890900,0,1112.36,REDACTED PERSONAL DATA,8400012000,CommServs-ProvPayWA,Adults & Health,Bexley Care
21/08/2023,890905,0,7323.32,REDACTED PERSONAL DATA,8300074800,CommServs-ISFDirectPayWA,Adults & Health,Bexley Care
21/08/2023,890908,0,4086.36,LAUREL RESIDENTIAL HOMES LTD,8400043300,ResPlcmts-ProvPayWA,Adults & Health,Bexley Care
21/08/2023,890910,0,3180,LEAH LODGE,8400019400,ResPlcmts-ProvPayOP,Adults & Health,Bexley Care
21/08/2023,890911,0,1747.76,REDACTED PERSONAL DATA,8400038300,CommServs-ProvPayWA,Adults & Health,Bexley Care
21/08/2023,890914,0,942.72,REDACTED PERSONAL DATA,8300079800,CommServs-DirectPayWA,Adults & Health,Bexley Care
21/08/2023,890917,0,707.04,REDACTED PERSONAL DATA,8300104400,CommServs-DirectPayWA,Adults & Health,Bexley Care
21/08/2023,890920,0,1627.92,REDACTED PERSONAL DATA,8300088600,CommServs-DirectPayOP,Adults & Health,Bexley Care
21/08/2023,890922,0,877.72,REDACTED PERSONAL DATA,8400023100,CommServs-ProvPayWA,Adults & Health,Bexley Care
21/08/2023,890923,0,1311.04,REDACTED PERSONAL DATA,8400023100,CommServs-ProvPayWA,Adults & Health,Bexley Care
14/08/2023,890934,0,549.92,LIZNETT CARE SERVICES,8400029000,CommServs-ProvPayOP,Adults & Health,Bexley Care
14/08/2023,890935,0,549.92,LIZNETT CARE SERVICES,8400029000,CommServs-ProvPayOP,Adults & Health,Bexley Care
14/08/2023,890936,0,566.16,LIZNETT CARE SERVICES,8400029000,CommServs-ProvPayOP,Adults & Health,Bexley Care
14/08/2023,890937,0,566.16,LIZNETT CARE SERVICES,8400029000,CommServs-ProvPayOP,Adults & Health,Bexley Care
14/08/2023,890938,0,582.4,LIZNETT CARE SERVICES,8400029000,CommServs-ProvPayOP,Adults & Health,Bexley Care
14/08/2023,890939,0,582.4,LIZNETT CARE SERVICES,8400029000,CommServs-ProvPayOP,Adults & Health,Bexley Care
14/08/2023,890940,0,591.6,LIZNETT CARE SERVICES,8400029000,CommServs-ProvPayOP,Adults & Health,Bexley Care
14/08/2023,890941,0,591.6,LIZNETT CARE SERVICES,8400029000,CommServs-ProvPayOP,Adults & Health,Bexley Care
14/08/2023,890942,0,646.8,LIZNETT CARE SERVICES,8400029000,CommServs-ProvPayOP,Adults & Health,Bexley Care
14/08/2023,890943,0,646.8,LIZNETT CARE SERVICES,8400029000,CommServs-ProvPayOP,Adults & Health,Bexley Care
14/08/2023,890944,0,646.8,LIZNETT CARE SERVICES,8400029000,CommServs-ProvPayOP,Adults & Health,Bexley Care
14/08/2023,890945,0,646.8,LIZNETT CARE SERVICES,8400029000,CommServs-ProvPayOP,Adults & Health,Bexley Care
14/08/2023,890946,0,690.96,LIZNETT CARE SERVICES,8400029000,CommServs-ProvPayOP,Adults & Health,Bexley Care
14/08/2023,890947,0,690.96,LIZNETT CARE SERVICES,8400029000,CommServs-ProvPayOP,Adults & Health,Bexley Care
14/08/2023,890948,0,919.12,LIZNETT CARE SERVICES,8400029000,CommServs-ProvPayOP,Adults & Health,Bexley Care
14/08/2023,890949,0,919.12,LIZNETT CARE SERVICES,8400029000,CommServs-ProvPayOP,Adults & Health,Bexley Care
14/08/2023,890950,0,1237.32,LIZNETT CARE SERVICES,8400029000,CommServs-ProvPayOP,Adults & Health,Bexley Care
14/08/2023,890951,0,1237.32,LIZNETT CARE SERVICES,8400029000,CommServs-ProvPayOP,Adults & Health,Bexley Care
21/08/2023,890952,0,5997.6,LIZNETT CARE SERVICES LTD,8400478200,CommServs-ProvPayWA,Adults & Health,Bexley Care
21/08/2023,890953,0,8428,LIZNETT CARE SERVICES LTD,8400478200,CommServs-ProvPayWA,Adults & Health,Bexley Care
21/08/2023,890954,0,7698.24,LODGE GROUP CARE UK LTD,8400001200,ResPlcmts-ProvPayWA,Adults & Health,Bexley Care
04/08/2023,890966,0,504.92,LONDON CARE,8400000200,CommServs-ProvPayWA,Adults & Health,Bexley Care
04/08/2023,890967,0,540.94,LONDON CARE,8400000200,CommServs-ProvPayOP,Adults & Health,Bexley Care
04/08/2023,890968,0,596.86,LONDON CARE,8400000200,CommServs-ProvPayOP,Adults & Health,Bexley Care
04/08/2023,890969,0,619.44,LONDON CARE,8400000200,CommServs-ProvPayOP,Adults & Health,Bexley Care
04/08/2023,890970,0,625.92,LONDON CARE,8400000200,CommServs-ProvPayOP,Adults & Health,Bexley Care
04/08/2023,890971,0,636.4,LONDON CARE,8400000200,CommServs-ProvPayOP,Adults & Health,Bexley Care
04/08/2023,890972,0,730.96,LONDON CARE,8400000200,CommServs-ProvPayOP,Adults & Health,Bexley Care
04/08/2023,890973,0,766.4,LONDON CARE,8400000200,CommServs-ProvPayOP,Adults & Health,Bexley Care
04/08/2023,890974,0,824.88,LONDON CARE,8400000200,CommServs-ProvPayOP,Adults & Health,Bexley Care
04/08/2023,890975,0,868.22,LONDON CARE,8400000200,CommServs-ProvPayOP,Adults & Health,Bexley Care
04/08/2023,890976,0,1087.76,LONDON CARE,8400000200,CommServs-ProvPayWA,Adults & Health,Bexley Care
04/08/2023,890977,0,1107.4,LONDON CARE,8400000200,CommServs-ProvPayWA,Adults & Health,Bexley Care
04/08/2023,890978,0,1158.25,LONDON CARE,8400000200,CommServs-ProvPayOP,Adults & Health,Bexley Care
04/08/2023,890979,0,1348.2,LONDON CARE,8400000200,CommServs-ProvPayWA,Adults & Health,Bexley Care
14/08/2023,890980,0,609.16,LONDON CARE,8400000200,CommServs-ProvPayOP,Adults & Health,Bexley Care
14/08/2023,890981,0,627.26,LONDON CARE,8400000200,CommServs-ProvPayOP,Adults & Health,Bexley Care
14/08/2023,890982,0,630.56,LONDON CARE,8400000200,CommServs-ProvPayOP,Adults & Health,Bexley Care
14/08/2023,890983,0,631.8,LONDON CARE,8400000200,CommServs-ProvPayOP,Adults & Health,Bexley Care
14/08/2023,890984,0,725.16,LONDON CARE,8400000200,CommServs-ProvPayOP,Adults & Health,Bexley Care
14/08/2023,890985,0,757.32,LONDON CARE,8400000200,CommServs-ProvPayOP,Adults & Health,Bexley Care
14/08/2023,890986,0,824.88,LONDON CARE,8400000200,CommServs-ProvPayOP,Adults & Health,Bexley Care
14/08/2023,890987,0,845.46,LONDON CARE,8400000200,CommServs-ProvPayOP,Adults & Health,Bexley Care
14/08/2023,890988,0,1058.3,LONDON CARE,8400000200,CommServs-ProvPayWA,Adults & Health,Bexley Care
14/08/2023,890989,0,1098.16,LONDON CARE,8400000200,CommServs-ProvPayWA,Adults & Health,Bexley Care
14/08/2023,890990,0,1175.2,LONDON CARE,8400000200,CommServs-ProvPayWA,Adults & Health,Bexley Care
14/08/2023,890991,0,1348.2,LONDON CARE,8400000200,CommServs-ProvPayWA,Adults & Health,Bexley Care
21/08/2023,890992,0,509.22,LONDON CARE,8400000200,CommServs-ProvPayOP,Adults & Health,Bexley Care
21/08/2023,890993,0,585.08,LONDON CARE,8400000200,CommServs-ProvPayOP,Adults & Health,Bexley Care
21/08/2023,890994,0,630.56,LONDON CARE,8400000200,CommServs-ProvPayOP,Adults & Health,Bexley Care
21/08/2023,890995,0,646.8,LONDON CARE,8400000200,CommServs-ProvPayOP,Adults & Health,Bexley Care
21/08/2023,890996,0,646.8,LONDON CARE,8400000200,CommServs-ProvPayOP,Adults & Health,Bexley Care
21/08/2023,890997,0,735.56,LONDON CARE,8400000200,CommServs-ProvPayOP,Adults & Health,Bexley Care
21/08/2023,890998,0,824.88,LONDON CARE,8400000200,CommServs-ProvPayOP,Adults & Health,Bexley Care
21/08/2023,890999,0,871.56,LONDON CARE,8400000200,CommServs-ProvPayOP,Adults & Health,Bexley Care
21/08/2023,891000,0,1028.84,LONDON CARE,8400000200,CommServs-ProvPayWA,Adults & Health,Bexley Care
21/08/2023,891001,0,1107.4,LONDON CARE,8400000200,CommServs-ProvPayWA,Adults & Health,Bexley Care
21/08/2023,891002,0,1126.86,LONDON CARE,8400000200,CommServs-ProvPayOP,Adults & Health,Bexley Care
21/08/2023,891003,0,1348.2,LONDON CARE,8400000200,CommServs-ProvPayWA,Adults & Health,Bexley Care
29/08/2023,891004,0,528.76,LONDON CARE,8400000200,CommServs-ProvPayOP,Adults & Health,Bexley Care
29/08/2023,891005,0,601.4,LONDON CARE,8400000200,CommServs-ProvPayOP,Adults & Health,Bexley Care
29/08/2023,891006,0,611.04,LONDON CARE,8400000200,CommServs-ProvPayWA,Adults & Health,Bexley Care
29/08/2023,891007,0,630.56,LONDON CARE,8400000200,CommServs-ProvPayOP,Adults & Health,Bexley Care
29/08/2023,891008,0,642.2,LONDON CARE,8400000200,CommServs-ProvPayOP,Adults & Health,Bexley Care
29/08/2023,891009,0,735.56,LONDON CARE,8400000200,CommServs-ProvPayOP,Adults & Health,Bexley Care
29/08/2023,891010,0,824.88,LONDON CARE,8400000200,CommServs-ProvPayOP,Adults & Health,Bexley Care
29/08/2023,891011,0,895.76,LONDON CARE,8400000200,CommServs-ProvPayOP,Adults & Health,Bexley Care
29/08/2023,891012,0,1028.84,LONDON CARE,8400000200,CommServs-ProvPayWA,Adults & Health,Bexley Care
29/08/2023,891013,0,1102.76,LONDON CARE,8400000200,CommServs-ProvPayWA,Adults & Health,Bexley Care
29/08/2023,891014,0,1155.9,LONDON CARE,8400000200,CommServs-ProvPayWA,Adults & Health,Bexley Care
29/08/2023,891015,0,1348.2,LONDON CARE,8400000200,CommServs-ProvPayWA,Adults & Health,Bexley Care
04/08/2023,891016,0,738.45,LONDON CARE SUPPORT,8400001100,CommServs-ProvPayWA,Adults & Health,Bexley Care
29/08/2023,891017,0,738.45,LONDON CARE SUPPORT,8400001100,CommServs-ProvPayWA,Adults & Health,Bexley Care
10/08/2023,891020,0,44242.88,LONDON HIRE LIMITED,3865600,CommServs Payments Total,Adults & Health,Bexley Care
29/08/2023,891023,0,41535.28,LONDON HIRE LIMITED,3865600,CommServs Payments Total,Adults & Health,Bexley Care
21/08/2023,891033,0,516.8,REDACTED PERSONAL DATA,8300101200,CommServs-DirectPayWA,Adults & Health,Bexley Care
21/08/2023,891034,0,-894.68,LORING HALL LTD,8400003100,CRAG income - Residential,Adults & Health,Bexley Care
21/08/2023,891035,0,-538.56,LORING HALL LTD,8400003100,CRAG income - Residential,Adults & Health,Bexley Care
21/08/2023,891036,0,5242.84,LORING HALL LTD,8400003100,ResPlcmts-ProvPayWA,Adults & Health,Bexley Care
21/08/2023,891037,0,6360,LORING HALL LTD,8400003100,ResPlcmts-ProvPayWA,Adults & Health,Bexley Care
21/08/2023,891038,0,7210.44,LORING HALL LTD,8400003100,ResPlcmts-ProvPayWA,Adults & Health,Bexley Care
21/08/2023,891039,0,7349.56,LORING HALL LTD,8400003100,ResPlcmts-ProvPayWA,Adults & Health,Bexley Care
21/08/2023,891040,0,7349.56,LORING HALL LTD,8400003100,ResPlcmts-ProvPayWA,Adults & Health,Bexley Care
21/08/2023,891041,0,7652.92,LORING HALL LTD,8400003100,ResPlcmts-ProvPayWA,Adults & Health,Bexley Care
21/08/2023,891042,0,7966.8,LORING HALL LTD,8400003100,ResPlcmts-ProvPayWA,Adults & Health,Bexley Care
21/08/2023,891043,0,11012.04,LORING HALL LTD,8400003100,ResPlcmts-ProvPayWA,Adults & Health,Bexley Care
21/08/2023,891044,0,11709.88,LORING HALL LTD,8400003100,ResPlcmts-ProvPayWA,Adults & Health,Bexley Care
21/08/2023,891045,0,17649.6,LORING HALL RESPITE,8400020900,ResRespPlcmts-ProvPayWA,Adults & Health,Bexley Care
21/08/2023,891046,0,1653.76,REDACTED PERSONAL DATA,8300043300,CommServs-DirectPayWA,Adults & Health,Bexley Care
21/08/2023,891051,0,1000,REDACTED PERSONAL DATA,8300012201,CommServs-DirectPayWA,Adults & Health,Bexley Care
29/08/2023,891052,0,2975,LSI ARCHITECTS (DESIGN) LIMITED,8692900,Other ASC Payments,Adults & Health,Bexley Care
21/08/2023,891053,0,1033.6,REDACTED PERSONAL DATA,8300022400,CommServs-DirectPayWA,Adults & Health,Bexley Care
21/08/2023,891055,0,-1056.72,REDACTED PERSONAL DATA,8300100400,CommServs-ISFDirectPayWA,Adults & Health,Bexley Care
21/08/2023,891056,0,-1056.72,REDACTED PERSONAL DATA,8300100400,CommServs-ISFDirectPayWA,Adults & Health,Bexley Care
21/08/2023,891057,0,-1056.72,REDACTED PERSONAL DATA,8300100400,CommServs-ISFDirectPayWA,Adults & Health,Bexley Care
21/08/2023,891058,0,-1056.72,REDACTED PERSONAL DATA,8300100400,CommServs-ISFDirectPayWA,Adults & Health,Bexley Care
21/08/2023,891059,0,-603.84,REDACTED PERSONAL DATA,8300100400,CommServs-ISFDirectPayWA,Adults & Health,Bexley Care
21/08/2023,891060,0,846.63,REDACTED PERSONAL DATA,8300100400,CommServs-ISFDirectPayWA,Adults & Health,Bexley Care
21/08/2023,891061,0,1481.6,REDACTED PERSONAL DATA,8300100400,CommServs-ISFDirectPayWA,Adults & Health,Bexley Care
21/08/2023,891062,0,1481.6,REDACTED PERSONAL DATA,8300100400,CommServs-ISFDirectPayWA,Adults & Health,Bexley Care
21/08/2023,891063,0,1481.6,REDACTED PERSONAL DATA,8300100400,CommServs-ISFDirectPayWA,Adults & Health,Bexley Care
21/08/2023,891064,0,1481.6,REDACTED PERSONAL DATA,8300100400,CommServs-ISFDirectPayWA,Adults & Health,Bexley Care
21/08/2023,891065,0,1481.6,REDACTED PERSONAL DATA,8300100400,CommServs-ISFDirectPayWA,Adults & Health,Bexley Care
21/08/2023,891066,0,628.48,REDACTED PERSONAL DATA,8300102900,CommServs-DirectPayWA,Adults & Health,Bexley Care
21/08/2023,891067,0,516.8,REDACTED PERSONAL DATA,8300089300,CommServs-DirectPayWA,Adults & Health,Bexley Care
21/08/2023,891081,0,3784,MAIS HOUSE,8400484600,ResPlcmts-ProvPayOP,Adults & Health,Bexley Care
24/08/2023,891083,0,1991.2,REDACTED PERSONAL DATA,10096700,DoLS Payments - Paid RPRs,Adults & Health,Bexley Care
21/08/2023,891084,0,2548.36,REDACTED PERSONAL DATA,8300097100,CommServs-ISFDirectPayOP,Adults & Health,Bexley Care
21/08/2023,891085,0,6419.8,REDACTED PERSONAL DATA,8300070400,CommServs-ISFDirectPayOP,Adults & Health,Bexley Care
21/08/2023,891087,0,9446.12,MANOR FARM,8400012900,ResPlcmts-ProvPayWA,Adults & Health,Bexley Care
21/08/2023,891088,0,-1500,MAPLE CARE CENTRE,8400031100,ASC Interim Beds,Adults & Health,Bexley Care
21/08/2023,891089,0,-1371.43,MAPLE CARE CENTRE,8400031100,ResPlcmts-ProvPayOP,Adults & Health,Bexley Care
21/08/2023,891090,0,-548.7,MAPLE CARE CENTRE,8400031100,ASC Interim Beds,Adults & Health,Bexley Care
21/08/2023,891091,0,1280.3,MAPLE CARE CENTRE,8400031100,NurPlcmts-ProvPayOP,Adults & Health,Bexley Care
21/08/2023,891092,0,2165.13,MAPLE CARE CENTRE,8400031100,NurPlcmts-ProvPayOP,Adults & Health,Bexley Care
21/08/2023,891093,0,2642.28,MAPLE CARE CENTRE,8400031100,ResPlcmts-ProvPayOP,Adults & Health,Bexley Care
21/08/2023,891094,0,3230.7,MAPLE CARE CENTRE,8400031100,ASC Interim Beds,Adults & Health,Bexley Care
21/08/2023,891095,0,4133.43,MAPLE CARE CENTRE,8400031100,NurPlcmts-ProvPayOP,Adults & Health,Bexley Care
21/08/2023,891096,0,4160,MAPLE CARE CENTRE,8400031100,NurPlcmts-ProvPayOP,Adults & Health,Bexley Care
21/08/2023,891097,0,4434.88,MAPLE CARE CENTRE,8400031100,NurPlcmts-ProvPayOP,Adults & Health,Bexley Care
21/08/2023,891098,0,4560,MAPLE CARE CENTRE,8400031100,ResPlcmts-ProvPayOP,Adults & Health,Bexley Care
21/08/2023,891099,0,4560,MAPLE CARE CENTRE,8400031100,ResPlcmts-ProvPayOP,Adults & Health,Bexley Care
21/08/2023,891100,0,4649.6,MAPLE CARE CENTRE,8400031100,NurPlcmts-ProvPayOP,Adults & Health,Bexley Care
21/08/2023,891101,0,4800,MAPLE CARE CENTRE,8400031100,NurPlcmts-ProvPayOP,Adults & Health,Bexley Care
21/08/2023,891102,0,5091.32,MAPLE CARE CENTRE,8400031100,NurPlcmts-ProvPayOP,Adults & Health,Bexley Care
21/08/2023,891103,0,5121.2,MAPLE CARE CENTRE,8400031100,NurPlcmts-ProvPayOP,Adults & Health,Bexley Care
21/08/2023,891104,0,5321.16,MAPLE CARE CENTRE,8400031100,ASC Interim Beds,Adults & Health,Bexley Care
21/08/2023,891105,0,6000,MAPLE CARE CENTRE,8400031100,NurPlcmts-ProvPayOP,Adults & Health,Bexley Care
21/08/2023,891106,0,6000,MAPLE CARE CENTRE,8400031100,ResPlcmts-ProvPayOP,Adults & Health,Bexley Care
21/08/2023,891107,0,7439.32,REDACTED PERSONAL DATA,8300074300,CommServs-ISFDirectPayWA,Adults & Health,Bexley Care
21/08/2023,891109,0,1256.96,REDACTED PERSONAL DATA,8300083500,CommServs-DirectPayOP,Adults & Health,Bexley Care
21/08/2023,891110,0,3070.12,REDACTED PERSONAL DATA,8300081000,CommServs-DirectPayOP,Adults & Health,Bexley Care
21/08/2023,891112,0,3936.12,REDACTED PERSONAL DATA,8300096700,CommServs-ISFDirectPayWA,Adults & Health,Bexley Care
21/08/2023,891116,0,720,REDACTED PERSONAL DATA,8300087000,CommServs-DirectPayOP,Adults & Health,Bexley Care
21/08/2023,891119,0,785.6,REDACTED PERSONAL DATA,8300095100,CommServs-DirectPayWA,Adults & Health,Bexley Care
21/08/2023,891121,0,1072.68,REDACTED PERSONAL DATA,8400042700,CommServs-ProvPayOP,Adults & Health,Bexley Care
21/08/2023,891124,0,628.48,REDACTED PERSONAL DATA,8300104700,CommServs-DirectPayWA,Adults & Health,Bexley Care
21/08/2023,891125,0,-4408.71,MARLBOROUGH COURT NH/RCHE,8400010000,ASC Interim Beds,Adults & Health,Bexley Care
21/08/2023,891126,0,-4408.71,MARLBOROUGH COURT NH/RCHE,8400010000,ASC Interim Beds,Adults & Health,Bexley Care
21/08/2023,891127,0,-2432,MARLBOROUGH COURT NH/RCHE,8400010000,ResPlcmts-ProvPayOP,Adults & Health,Bexley Care
21/08/2023,891128,0,-1959.43,MARLBOROUGH COURT NH/RCHE,8400010000,ASC Interim Beds,Adults & Health,Bexley Care
21/08/2023,891129,0,-1499.4,MARLBOROUGH COURT NH/RCHE,8400010000,ASC Interim Beds,Adults & Health,Bexley Care
21/08/2023,891130,0,-1228.2,MARLBOROUGH COURT NH/RCHE,8400010000,CRAG income - Res Em Respite,Adults & Health,Bexley Care
21/08/2023,891131,0,-1072.2,MARLBOROUGH COURT NH/RCHE,8400010000,CRAG income - Res Em Respite,Adults & Health,Bexley Care
21/08/2023,891132,0,-900.12,MARLBOROUGH COURT NH/RCHE,8400010000,CRAG income - Nursing,Adults & Health,Bexley Care
21/08/2023,891133,0,1285.2,MARLBOROUGH COURT NH/RCHE,8400010000,ResPlcmts-ProvPayOP,Adults & Health,Bexley Care
21/08/2023,891134,0,1499.4,MARLBOROUGH COURT NH/RCHE,8400010000,ResPlcmts-ProvPayOP,Adults & Health,Bexley Care
21/08/2023,891135,0,1820.7,MARLBOROUGH COURT NH/RCHE,8400010000,ResEmRespPlcmts-ProvPayOP,Adults & Health,Bexley Care
21/08/2023,891136,0,1959.43,MARLBOROUGH COURT NH/RCHE,8400010000,ASC Interim Beds,Adults & Health,Bexley Care
21/08/2023,891137,0,2122.71,MARLBOROUGH COURT NH/RCHE,8400010000,ASC Interim Beds,Adults & Health,Bexley Care
21/08/2023,891138,0,2632.5,MARLBOROUGH COURT NH/RCHE,8400010000,NurPlcmts-ProvPayOP,Adults & Health,Bexley Care
21/08/2023,891139,0,2730,MARLBOROUGH COURT NH/RCHE,8400010000,NurPlcmts-ProvPayOP,Adults & Health,Bexley Care
21/08/2023,891140,0,2730,MARLBOROUGH COURT NH/RCHE,8400010000,NurPlcmts-ProvPayOP,Adults & Health,Bexley Care
21/08/2023,891141,0,2730,MARLBOROUGH COURT NH/RCHE,8400010000,ResPlcmts-ProvPayOP,Adults & Health,Bexley Care
21/08/2023,891142,0,2730,MARLBOROUGH COURT NH/RCHE,8400010000,NurPlcmts-ProvPayOP,Adults & Health,Bexley Care
21/08/2023,891143,0,2730,MARLBOROUGH COURT NH/RCHE,8400010000,NurPlcmts-ProvPayOP,Adults & Health,Bexley Care
21/08/2023,891144,0,2730,MARLBOROUGH COURT NH/RCHE,8400010000,NurPlcmts-ProvPayOP,Adults & Health,Bexley Care
21/08/2023,891145,0,2730,MARLBOROUGH COURT NH/RCHE,8400010000,NurPlcmts-ProvPayOP,Adults & Health,Bexley Care
21/08/2023,891146,0,2730,MARLBOROUGH COURT NH/RCHE,8400010000,NurPlcmts-ProvPayWA,Adults & Health,Bexley Care
21/08/2023,891147,0,2775.86,MARLBOROUGH COURT NH/RCHE,8400010000,ASC Interim Beds,Adults & Health,Bexley Care
21/08/2023,891148,0,2998.8,MARLBOROUGH COURT NH/RCHE,8400010000,ResPlcmts-ProvPayOP,Adults & Health,Bexley Care
21/08/2023,891149,0,2998.8,MARLBOROUGH COURT NH/RCHE,8400010000,ResPlcmts-ProvPayOP,Adults & Health,Bexley Care
21/08/2023,891150,0,2998.8,MARLBOROUGH COURT NH/RCHE,8400010000,ResPlcmts-ProvPayOP,Adults & Health,Bexley Care
21/08/2023,891151,0,2998.8,MARLBOROUGH COURT NH/RCHE,8400010000,ResPlcmts-ProvPayOP,Adults & Health,Bexley Care
21/08/2023,891152,0,2998.8,MARLBOROUGH COURT NH/RCHE,8400010000,ResPlcmts-ProvPayOP,Adults & Health,Bexley Care
21/08/2023,891153,0,2998.8,MARLBOROUGH COURT NH/RCHE,8400010000,ResPlcmts-ProvPayOP,Adults & Health,Bexley Care
21/08/2023,891154,0,2998.8,MARLBOROUGH COURT NH/RCHE,8400010000,ResPlcmts-ProvPayOP,Adults & Health,Bexley Care
21/08/2023,891155,0,2998.8,MARLBOROUGH COURT NH/RCHE,8400010000,ResPlcmts-ProvPayOP,Adults & Health,Bexley Care
21/08/2023,891156,0,2998.8,MARLBOROUGH COURT NH/RCHE,8400010000,ResPlcmts-ProvPayOP,Adults & Health,Bexley Care
21/08/2023,891157,0,2998.8,MARLBOROUGH COURT NH/RCHE,8400010000,ResPlcmts-ProvPayOP,Adults & Health,Bexley Care
21/08/2023,891158,0,2998.8,MARLBOROUGH COURT NH/RCHE,8400010000,ResPlcmts-ProvPayOP,Adults & Health,Bexley Care
21/08/2023,891159,0,2998.8,MARLBOROUGH COURT NH/RCHE,8400010000,ResPlcmts-ProvPayOP,Adults & Health,Bexley Care
21/08/2023,891160,0,2998.8,MARLBOROUGH COURT NH/RCHE,8400010000,ResPlcmts-ProvPayOP,Adults & Health,Bexley Care
21/08/2023,891161,0,2998.8,MARLBOROUGH COURT NH/RCHE,8400010000,ASC Interim Beds,Adults & Health,Bexley Care
21/08/2023,891162,0,2998.8,MARLBOROUGH COURT NH/RCHE,8400010000,ASC Interim Beds,Adults & Health,Bexley Care
21/08/2023,891163,0,2998.8,MARLBOROUGH COURT NH/RCHE,8400010000,NurPlcmts-ProvPayOP,Adults & Health,Bexley Care
21/08/2023,891164,0,2998.8,MARLBOROUGH COURT NH/RCHE,8400010000,ResEmRespPlcmts-ProvPayOP,Adults & Health,Bexley Care
21/08/2023,891165,0,3566.76,MARLBOROUGH COURT NH/RCHE,8400010000,ASC Interim Beds,Adults & Health,Bexley Care
21/08/2023,891166,0,3566.76,MARLBOROUGH COURT NH/RCHE,8400010000,ASC Interim Beds,Adults & Health,Bexley Care
21/08/2023,891167,0,3566.76,MARLBOROUGH COURT NH/RCHE,8400010000,ASC Interim Beds,Adults & Health,Bexley Care
21/08/2023,891168,0,3566.76,MARLBOROUGH COURT NH/RCHE,8400010000,ASC Interim Beds,Adults & Health,Bexley Care
21/08/2023,891169,0,3566.76,MARLBOROUGH COURT NH/RCHE,8400010000,ASC Interim Beds,Adults & Health,Bexley Care
21/08/2023,891170,0,3566.76,MARLBOROUGH COURT NH/RCHE,8400010000,ASC Interim Beds,Adults & Health,Bexley Care
21/08/2023,891171,0,3567.68,MARLBOROUGH COURT NH/RCHE,8400010000,NurPlcmts-ProvPayOP,Adults & Health,Bexley Care
21/08/2023,891172,0,4400,MARLBOROUGH COURT NH/RCHE,8400010000,ResPlcmts-ProvPayOP,Adults & Health,Bexley Care
21/08/2023,891173,0,4408.71,MARLBOROUGH COURT NH/RCHE,8400010000,ASC Interim Beds,Adults & Health,Bexley Care
21/08/2023,891174,0,4572,MARLBOROUGH COURT NH/RCHE,8400010000,ASC Interim Beds,Adults & Health,Bexley Care
21/08/2023,891175,0,4572,MARLBOROUGH COURT NH/RCHE,8400010000,ASC Interim Beds,Adults & Health,Bexley Care
21/08/2023,891176,0,4572,MARLBOROUGH COURT NH/RCHE,8400010000,ASC Interim Beds,Adults & Health,Bexley Care
21/08/2023,891177,0,4572,MARLBOROUGH COURT NH/RCHE,8400010000,ASC Interim Beds,Adults & Health,Bexley Care
21/08/2023,891178,0,4572,MARLBOROUGH COURT NH/RCHE,8400010000,ResPlcmts-ProvPayWA,Adults & Health,Bexley Care
21/08/2023,891179,0,4572,MARLBOROUGH COURT NH/RCHE,8400010000,ASC Interim Beds,Adults & Health,Bexley Care
21/08/2023,891180,0,4572,MARLBOROUGH COURT NH/RCHE,8400010000,ASC Interim Beds,Adults & Health,Bexley Care
21/08/2023,891181,0,4864,MARLBOROUGH COURT NH/RCHE,8400010000,ResPlcmts-ProvPayOP,Adults & Health,Bexley Care
21/08/2023,891182,0,17961.43,MARLBOROUGH COURT NH/RCHE,8400010000,ASC Interim Beds,Adults & Health,Bexley Care
21/08/2023,891186,0,1570,REDACTED PERSONAL DATA,8300096600,CommServs-ISFDirectPayWA,Adults & Health,Bexley Care
21/08/2023,891187,0,785.6,REDACTED PERSONAL DATA,8300080900,CommServs-DirectPayOP,Adults & Health,Bexley Care
21/08/2023,891188,0,1090.68,REDACTED PERSONAL DATA,8300077001,CommServs-ISFDirectPayWA,Adults & Health,Bexley Care
21/08/2023,891189,0,852.72,REDACTED PERSONAL DATA,8300066701,CommServs-DirectPayWA,Adults & Health,Bexley Care
21/08/2023,891190,0,864.16,REDACTED PERSONAL DATA,8300076700,CommServs-DirectPayOP,Adults & Health,Bexley Care
21/08/2023,891194,0,581.4,REDACTED PERSONAL DATA,8300103000,CommServs-DirectPayOP,Adults & Health,Bexley Care
21/08/2023,891195,0,785.6,REDACTED PERSONAL DATA,8300098400,CommServs-DirectPayWA,Adults & Health,Bexley Care
21/08/2023,891196,0,-555.12,REDACTED PERSONAL DATA,8300090200,FC Income - Direct Payments,Adults & Health,Bexley Care
21/08/2023,891197,0,1395.36,REDACTED PERSONAL DATA,8300090200,CommServs-DirectPayOP,Adults & Health,Bexley Care
21/08/2023,891198,0,1787.24,REDACTED PERSONAL DATA,8300083600,CommServs-DirectPayOP,Adults & Health,Bexley Care
21/08/2023,891199,0,-1020.68,REDACTED PERSONAL DATA,8300089600,FC Income - Direct Payments,Adults & Health,Bexley Care
21/08/2023,891200,0,2474.64,REDACTED PERSONAL DATA,8300089600,CommServs-DirectPayOP,Adults & Health,Bexley Care
21/08/2023,891202,0,911.04,REDACTED PERSONAL DATA,8400032600,CommServs-ProvPayWA,Adults & Health,Bexley Care
21/08/2023,891203,0,1311.04,REDACTED PERSONAL DATA,8400032600,CommServs-ProvPayWA,Adults & Health,Bexley Care
21/08/2023,891204,0,6000,MAYFLOWER CARE HOME,8400040200,ResPlcmts-ProvPayOP,Adults & Health,Bexley Care
21/08/2023,891205,0,6400,MAYFLOWER CARE HOME,8400040200,NurPlcmts-ProvPayOP,Adults & Health,Bexley Care
21/08/2023,891206,0,6600,MAYFLOWER CARE HOME,8400040200,ResPlcmts-ProvPayOP,Adults & Health,Bexley Care
21/08/2023,891211,0,4181.88,MELBA LODGE,8400044400,ResPlcmts-ProvPayOP,Adults & Health,Bexley Care
21/08/2023,891212,0,4181.88,MELBA LODGE,8400044400,ResPlcmts-ProvPayWA,Adults & Health,Bexley Care
21/08/2023,891213,0,4181.88,MELBA LODGE,8400044400,ResPlcmts-ProvPayOP,Adults & Health,Bexley Care
17/08/2023,891214,0,15000,MENCAP,4334200,Adult Contract Pymt - General,Adults & Health,Bexley Care
21/08/2023,891215,0,2140.76,REDACTED PERSONAL DATA,8300098600,CommServs-DirectPayOP,Adults & Health,Bexley Care
10/08/2023,891217,0,25000,METRO CENTRE LTD,5299901,Metro Centre Ltd,Adults & Health,Health & Wellbeing
10/08/2023,891218,0,25000,METRO CENTRE LTD,5299901,Metro Centre Ltd,Adults & Health,Health & Wellbeing
21/08/2023,891220,0,-983.2,MEYER HOUSE RESIDENTIAL CARE HOME,8400010400,CRAG income - Nursing,Adults & Health,Bexley Care
21/08/2023,891221,0,-970.32,MEYER HOUSE RESIDENTIAL CARE HOME,8400010400,CRAG income - Nursing,Adults & Health,Bexley Care
21/08/2023,891222,0,-697.36,MEYER HOUSE RESIDENTIAL CARE HOME,8400010400,CRAG income - Residential,Adults & Health,Bexley Care
21/08/2023,891223,0,2329.96,MEYER HOUSE RESIDENTIAL CARE HOME,8400010400,NurPlcmts-ProvPayOP,Adults & Health,Bexley Care
21/08/2023,891224,0,2329.96,MEYER HOUSE RESIDENTIAL CARE HOME,8400010400,NurPlcmts-ProvPayOP,Adults & Health,Bexley Care
21/08/2023,891225,0,2376.04,MEYER HOUSE RESIDENTIAL CARE HOME,8400010400,ResPlcmts-ProvPayOP,Adults & Health,Bexley Care
21/08/2023,891226,0,2423.44,MEYER HOUSE RESIDENTIAL CARE HOME,8400010400,ResPlcmts-ProvPayOP,Adults & Health,Bexley Care
21/08/2023,891227,0,2433.52,MEYER HOUSE RESIDENTIAL CARE HOME,8400010400,NurPlcmts-ProvPayWA,Adults & Health,Bexley Care
21/08/2023,891228,0,2600.76,MEYER HOUSE RESIDENTIAL CARE HOME,8400010400,NurPlcmts-ProvPayOP,Adults & Health,Bexley Care
21/08/2023,891229,0,2801.6,MEYER HOUSE RESIDENTIAL CARE HOME,8400010400,NurPlcmts-ProvPayOP,Adults & Health,Bexley Care
21/08/2023,891230,0,2801.6,MEYER HOUSE RESIDENTIAL CARE HOME,8400010400,NurPlcmts-ProvPayOP,Adults & Health,Bexley Care
21/08/2023,891231,0,2801.6,MEYER HOUSE RESIDENTIAL CARE HOME,8400010400,ResPlcmts-ProvPayOP,Adults & Health,Bexley Care
21/08/2023,891232,0,3249.6,MEYER HOUSE RESIDENTIAL CARE HOME,8400010400,NurPlcmts-ProvPayOP,Adults & Health,Bexley Care
21/08/2023,891233,0,4600,MEYER HOUSE RESIDENTIAL CARE HOME,8400010400,NurPlcmts-ProvPayOP,Adults & Health,Bexley Care
21/08/2023,891235,0,1369,REDACTED PERSONAL DATA,8300072200,CommServs-DirectPayWA,Adults & Health,Bexley Care
21/08/2023,891237,0,689.69,REDACTED PERSONAL DATA,8400486100,CommServs-ProvPayWA,Adults & Health,Bexley Care
21/08/2023,891238,0,602.64,REDACTED PERSONAL DATA,8300003400,CommServs-DirectPayWA,Adults & Health,Bexley Care
21/08/2023,891239,0,602.64,REDACTED PERSONAL DATA,8300093900,CommServs-DirectPayWA,Adults & Health,Bexley Care
